Workbook

Sheet Обложка
B8: Кол-во, шт.

Sheet Ваш заказ
A1: =fName() -> 
B3: Компания: | E3: Ваша скидка | F3: 0
F5: 78
B6: Кон.телефон
B7: E-mail | E7: Дата заказа
C10: ЛИСТ ЗАКАЗА ПРОДУКЦИИ FAAC
A14: № п/п | B14: Код артикула | C14: Наименование позиции | D14: Кол-во, шт. | E14: Розничная цена с НДС, руб. | F14: Ваша скидка % | G14: Ваш заказ с учетом скидки с НДС, руб.
F15: ИТОГО | G15: =SUM(G17:G59) -> 0
A16: Выбранные позиции
K17: `
A60: Не нашли нужную позицию? Ниже вы можете оставить запрос на цену и наличие на складе необходимых позиций

Sheet Спец.цены
M1: Спец. комплекты
E2: ВАША СКИДКА: | F2: =sale -> 0 | G2: ВАШ ЗАКАЗ:
B3: Технические характеристики | C3: Код артикула | D3: СПЕЦ.ПРЕДЛОЖЕНИЯ | E3: Компл. | F3: Розничная цена комплекта, руб. | G3: Кол-во, шт. | H3: Ваш заказ с учётом скидки, руб.
B6: до 5 м, интенсив 50%, 6 с | C6: 615_kit_new_light | D6: КОМПЛЕКТ ГИДРАВЛИЧЕСКОГО ШЛАГБАУМА 615 BPR +Лампа | E6: 1 шт. | F6: по запросу | H6: =IF(G6<>"",F6*G6*(1-F$2),"") -> 
C7: 10490677 | D7: Шлагбаум гидравлический 615 STD | E7: 1 шт. | H7: 615_kit_new_light
C8: 428091 | D8: Стрела прямоугольная с демпфером и светоотражающими наклейками, 25х90х4815мм | E8: 1 шт.
C9: 428342 | D9: Крепление для прямоугольных стрел 25х90мм | E9: 1 шт.
C10: 721018 | D10: Пружина балансировочная 8мм | E10: 1 шт.
C11: 490073 | D11: Пластина монтажная с анкерами | E11: 1 шт.
C12: 787856 | D12: Радиоприемник 1-канальный встраиваемый в разъем RP 433 МГц | E12: 1 шт.
C13: 410029 | D13: Сигнальная лампа XLED питание ~ 230В или = 24В | E13: 1 шт.
C14: 785102 | D14: Фотоэлементы XP20 D | E14: 1 шт.
B15: до 5 м, интенсив 50%, 6 с | C15: 615_kit_new_RC | D15: КОМПЛЕКТ ГИДРАВЛИЧЕСКОГО ШЛАГБАУМА 615 BPR +Пульты | E15: 1 шт. | F15: по запросу | H15: =IF(G15<>"",F15*G15*(1-F$2),"") -> 
C16: 10490677 | D16: Шлагбаум гидравлический 615 STD | E16: 1 шт. | H16: 615_kit_new_RC
C17: 428091 | D17: Стрела прямоугольная с демпфером и светоотражающими наклейками, 25х90х4815мм | E17: 1 шт.
C18: 428342 | D18: Крепление для прямоугольных стрел 25х90мм | E18: 1 шт.
C19: 721018 | D19: Пружина балансировочная 8мм | E19: 1 шт.
C20: 490073 | D20: Пластина монтажная с анкерами | E20: 1 шт.
C21: 787856 | D21: Радиоприемник 1-канальный встраиваемый в разъем RP 433 МГц | E21: 1 шт.
C22: 787456 | D22: Брелок-передатчик XT4 433 RC | E22: 2 шт.
C23: 785102 | D23: Фотоэлементы XP20 D | E23: 1 шт.
B24: до 4 м, интенсив 100%, 3 с | C24: 614_4_kit | D24: КОМПЛЕКТ ЭЛЕКТРОМЕХАНИЧЕСКОГО ШЛАГБАУМА B614/4 | E24: 1 шт. | F24: по запросу | H24: =IF(G24<>"",F24*G24*(1-F$2),"") -> 
C25: 104614 | D25: Шлагбаум электромеханический В614, 24 В | E25: 1 шт. | H25: 614_4_kit
C26: 428090 | D26: Стрела прямоугольная с демпфером и светоотражающими наклейками, 25х90х3815мм | E26: 1 шт.
C27: 428342 | D27: Крепление для прямоугольных стрел 25х90мм к 615, 617/4, 620 | E27: 1 шт.
C28: 721209 | D28: Пружина балансировочная 6мм | E28: 1 шт.
C29: 490183 | D29: Пластина монтажная | E29: 1 шт.
B30: до 5 м, интенсив 100%, 4 с | C30: 614_5_kit | D30: КОМПЛЕКТ ЭЛЕКТРОМЕХАНИЧЕСКОГО ШЛАГБАУМА B614/5 | E30: 1 шт. | F30: по запросу | H30: =IF(G30<>"",F30*G30*(1-F$2),"") -> 
C31: 104614 | D31: Шлагбаум электромеханический В614, 24 В | E31: 1 шт. | H31: 614_5_kit
C32: 428091 | D32: Стрела прямоугольная с демпфером и светоотражающими наклейками, 25х90х4815мм | E32: 1 шт.
C33: 428342 | D33: Крепление для прямоугольных стрел 25х90мм к 615, 617/4, 620 | E33: 1 шт.
C34: 721209 | D34: Пружина балансировочная 6мм | E34: 2 шт.
C35: 490183 | D35: Пластина монтажная | E35: 1 шт.
C36: 490186 | D36: Кронштейн для крепления двух пружин | E36: 1 шт.
B37: до 4 м, интенсив 50%, 6 с | C37: 615_4_kit | D37: КОМПЛЕКТ ГИДРАВЛИЧЕСКОГО ШЛАГБАУМА 615/4 BPR | E37: 1 шт. | F37: по запросу | H37: =IF(G37<>"",F37*G37*(1-F$2),"") -> 
C38: 10490677 | D38: Шлагбаум гидравлический 615 STD | E38: 1 шт. | H38: 615_4_kit
C39: 428090 | D39: Стрела прямоугольная с демпфером и светоотражающими наклейками, 25х90х3815мм | E39: 1 шт.
C40: 428342 | D40: Крепление для прямоугольных стрел 25х90мм | E40: 1 шт.
C41: 721006 | D41: Пружина балансировочная 7мм | E41: 1 шт.
C42: 490073 | D42: Пластина монтажная с анкерами | E42: 1 шт.
B43: до 5 м, интенсив 50%, 6 с | C43: 615_5_kit | D43: КОМПЛЕКТ ГИДРАВЛИЧЕСКОГО ШЛАГБАУМА 615/5 BPR | E43: 1 шт. | F43: по запросу | H43: =IF(G43<>"",F43*G43*(1-F$2),"") -> 
C44: 10490677 | D44: Шлагбаум гидравлический 615 STD | E44: 1 шт. | H44: 615_5_kit
C45: 428091 | D45: Стрела прямоугольная с демпфером и светоотражающими наклейками, 25х90х4815мм | E45: 1 шт.
C46: 428342 | D46: Крепление для прямоугольных стрел 25х90мм | E46: 1 шт.
C47: 721018 | D47: Пружина балансировочная 8мм | E47: 1 шт.
C48: 490073 | D48: Пластина монтажная с анкерами | E48: 1 шт.
B49: створки до 5 м, усилие 3500 Н | C49: 414long_kit_RC | D49: 414 LONG KIT + Пульты RC | E49: 1 шт. | F49: по запросу | H49: =IF(G49<>"",F49*G49*(1-F$2),"") -> 
C50: 6171023 | D50: Привод электромеханический линейный 414 LONG DX, 230В правосторонний | E50: 1 шт. | H50: 414long_kit_RC
C51: 6171024 | D51: Привод электромеханический линейный 414 LONG SX, 230В левосторонний | E51: 1 шт.
C52: 720119 | D52: Корпус "Е" для плат управления | E52: 1 шт.
C53: 790005 | D53: Плата управления E045 | E53: 1 шт.
C54: 404041 | D54: Энкодер SAFECODER для 412/414 серий | E54: 2 шт.
C55: 787831 | D55: Радиоприемник 2-канальный встраиваемый в разъем XF 433 МГц | E55: 1 шт.
C56: 787456 | D56: Брелок-передатчик XT4 433 RC | E56: 2 шт.
C57: 785103 | D57: Фотоэлементы XP20B D | E57: 1 шт.
B58: створки до 5м, усилие 3500 Н | C58: 414long_kit_SLH_91 | D58: 414 LONG KIT + Пульты SLH | E58: 1 шт. | F58: по запросу | H58: =IF(G58<>"",F58*G58*(1-F$2),"") -> 
C59: 6171023 | D59: Привод электромеханический линейный 414 LONG DX, 230В правосторонний | E59: 1 шт. | H59: 414long_kit_SLH
C60: 6171024 | D60: Привод электромеханический линейный 414 LONG SX, 230В левосторонний | E60: 1 шт.
C61: 720119 | D61: Корпус "Е" для плат управления | E61: 1 шт.
C62: 790005 | D62: Плата управления E045 | E62: 1 шт.
C63: 404041 | D63: Энкодер SAFECODER для 412/414 серий | E63: 2 шт.
C64: 787832 | D64: Радиоприемник 2-канальный встраиваемый в разъем XF 868 МГц | E64: 1 шт.
C65: 7870091 | D65: Брелок-передатчик XT2 868 SLH LR | E65: 2 шт
C66: 785103 | D66: Фотоэлементы XP20B D | E66: 1 шт.
B67: створки до 3 м усилие 3500 Н | C67: 414_kit_RC | D67: 414 KIT + Пульты RC | E67: 1 шт. | F67: по запросу | H67: =IF(G67<>"",F67*G67*(1-F$2),"") -> 
C68: 6171022 | D68: Привод электромеханический линейный 414 SX, 230В левосторонний | E68: 1 шт. | H68: 414_kit_RC
C69: 6171021 | D69: Привод электромеханический линейный 414 DX, 230В правосторонний | E69: 1 шт.
C70: 720119 | D70: Корпус "Е" для плат управления | E70: 1 шт.
C71: 790005 | D71: Плата управления E045 | E71: 1 шт.
C72: 404041 | D72: Энкодер SAFECODER для 412/414 серий | E72: 2 шт.
C73: 787831 | D73: Радиоприемник 2-канальный встраиваемый в разъем XF 433 МГц | E73: 1 шт.
C74: 787456 | D74: Брелок-передатчик XT4 433 RC | E74: 2 шт.
C75: 785103 | D75: Фотоэлементы XP20B D | E75: 1 шт.
B76: створки до 3 м, усилие 3500 Н | C76: 414_kit_SLH_91 | D76: 414 KIT + Пульты SLH | E76: 1 шт. | F76: по запросу | H76: =IF(G76<>"",F76*G76*(1-F$2),"") -> 
C77: 6171022 | D77: Привод электромеханический линейный 414 SX, 230В левосторонний | E77: 1 шт. | H77: 414_kit_SLH
C78: 6171021 | D78: Привод электромеханический линейный 414 DX, 230В правосторонний | E78: 1 шт.
C79: 720119 | D79: Корпус "Е" для плат управления | E79: 1 шт.
C80: 790005 | D80: Плата управления E045 | E80: 1 шт.
C81: 404041 | D81: Энкодер SAFECODER для 412/414 серий | E81: 2 шт.
C82: 787832 | D82: Радиоприемник 2-канальный встраиваемый в разъем XF 868 МГц | E82: 1 шт.
C83: 7870091 | D83: Брелок-передатчик XT2 868 SLH LR | E83: 2 шт.
C84: 785103 | D84: Фотоэлементы XP20B D | E84: 1 шт.
B85: створки до 2,5 м усилие 3000 Н | C85: 415_kit_RC | D85: 415 LLS KIT + Пульты RC | E85: 1 шт. | F85: по запросу | H85: =IF(G85<>"",F85*G85*(1-F$2),"") -> 
C86: 104418 | D86: Привод электромеханический линейный 415 L LS | E86: 2 шт. | H86: 415_kit_RC
C87: 720119 | D87: Корпус "Е" для плат управления | E87: 1 шт.
C88: 790917 | D88: Плата управления 455 D | E88: 1 шт.
C89: 787856 | D89: Радиоприемник 1-канальный встраиваемый в разъем RP 433 МГц | E89: 1 шт.
C90: 787456 | D90: Брелок-передатчик XT4 433 RC | E90: 2 шт.
C91: 785102 | D91: Фотоэлементы XP20 D | E91: 1 шт.
B92: створки до 2,5 м усилие 3000 Н | C92: 415_kit_SLH_91 | D92: 415 KIT + Пульты SLH | E92: 1 шт. | F92: по запросу | H92: =IF(G92<>"",F92*G92*(1-F$2),"") -> 
C93: 104418 | D93: Привод электромеханический линейный 415 L LS, 230В | E93: 2 шт. | H93: 415_kit_SLH
C94: 720119 | D94: Корпус "Е" для плат управления | E94: 1 шт.
C95: 790917 | D95: Плата управления 455 D | E95: 1 шт.
C96: 787854 | D96: Радиоприемник 1-канальный встраиваемый в разъем RP 868 МГц | E96: 1 шт.
C97: 7870091 | D97: Брелок-передатчик XT2 868 SLH LR | E97: 2 шт.
C98: 785102 | D98: Фотоэлементы XP20 D | E98: 1 шт.
B99: створки до 2,5 м | C99: 391_kit_RC | D99: 391 KIT + Пульты RC | E99: 1 шт. | F99: по запросу | H99: =IF(G99<>"",F99*G99*(1-F$2),"") -> 
C100: 104576 | D100: Привод электромеханический рычажный 391 Е, 24В, с платой управления Е024 S | E100: 1 шт. | H100: 391_kit_RC
C101: 104577 | D101: Привод электромеханический рычажный 391, 24В, без платы управления | E101: 1 шт.
C102: 787831 | D102: Радиоприемник 2-канальный встраиваемый в разъем XF 433 МГц | E102: 1 шт.
C103: 787456 | D103: Брелок-передатчик XT4 433 RC | E103: 2 шт.
C104: 785103 | D104: Фотоэлементы XP20B D | E104: 1 шт.
B105: створки до 2,5 м | C105: 391_kit_SLH_91 | D105: 391 KIT + Пульты SLH | E105: 1 шт. | F105: по запросу
C106: 104576 | D106: Привод электромеханический рычажный 391 Е, 24В, с платой управления Е024 S | E106: 1 шт. | H106: 391_kit_SLH
C107: 104577 | D107: Привод электромеханический рычажный 391, 24В, без платы управления | E107: 1 шт.
C108: 787832 | D108: Радиоприемник 2-канальный встраиваемый в разъем XF 868 МГц | E108: 1 шт.
C109: 7870091 | D109: Брелок-передатчик XT2 868 SLH LR | E109: 2 шт.
C110: 785103 | D110: Фотоэлементы XP20B D | E110: 1 шт.
B111: до 500 кг 12 м/мин. | C111: 740_kit_RC_1 | D111: 740 KIT + Пульты RC | E111: 1 шт. | F111: по запросу | H111: =IF(G111<>"",F111*G111*(1-F$2),"") -> 
C112: 109780 | D112: Привод 740 Е, блок управления 740 D, 230В | E112: 1 шт. | H112: 740_kit_RC
C113: 787856 | D113: Радиоприемник 1-канальный встраиваемый в разъем RP 433 МГц | E113: 1 шт.
C114: 787456 | D114: Брелок-передатчик XT4 433 RC | E114: 2 шт.
C115: 785102 | D115: Фотоэлементы XP20 D | E115: 1 шт.
B116: до 500 кг 12 м/мин. | C116: 740_kit_SLH_91 | D116: 740 KIT + Пульты SLH | E116: 1 шт. | F116: по запросу | H116: =IF(G116<>"",F116*G116*(1-F$2),"") -> 
C117: 109780 | D117: Привод 740 Е, блок управления 740 D, 230В | E117: 1 шт. | H117: 740_kit_SLH
C118: 787854 | D118: Радиоприемник 1-канальный встраиваемый в разъем RP 868 МГц | E118: 1 шт.
C119: 7870091 | D119: Брелок-передатчик XT2 868 SLH LR | E119: 2 шт.
C120: 785102 | D120: Фотоэлементы XP20 D | E120: 1 шт.
B121: до 400 кг 18 м/мин. | C121: С720_kit_RC | D121: С720 KIT + Пульты RC | E121: 1 шт. | F121: по запросу | H121: =IF(G121<>"",F121*G121*(1-F$2),"") -> 
C122: 109320 | D122: Привод C720, блок управления Е721 | E122: 1 шт. | H122: С720_kit_RC
C123: 787831 | D123: Радиоприемник 2-канальный встраиваемый в разъем XF 433 МГц | E123: 1 шт.
C124: 787456 | D124: Брелок-передатчик XT4 433 RC | E124: 2 шт.
C125: 785103 | D125: Фотоэлементы XP20B D | E125: 1 шт.
B126: до 400 кг 18 м/мин. | C126: С720_kit_SLH_91 | D126: С720 KIT + Пульты SLH | E126: 1 шт. | F126: по запросу
C127: 109320 | D127: Привод C720, блок управления Е721, 24В | E127: 1 шт. | H127: С720_kit_SLH
C128: 787832 | D128: Радиоприемник 2-канальный встраиваемый в разъем XF 868 МГц | E128: 1 шт.
C129: 7870091 | D129: Брелок-передатчик XT2 868 SLH LR | E129: 2 шт.
C130: 785103 | D130: Фотоэлементы XP20B D | E130: 1 шт.
B131: до 800 кг 18 м/мин. | C131: С721_kit_RC | D131: С721 KIT + Пульты RC | E131: 1 шт. | F131: по запросу | H131: =IF(G131<>"",F131*G131*(1-F$2),"") -> 
C132: 109321 | D132: Привод C721, блок управления Е721 | E132: 1 шт. | H132: С721_kit_RC
C133: 787831 | D133: Радиоприемник 2-канальный встраиваемый в разъем XF 433 МГц | E133: 1 шт.
C134: 787456 | D134: Брелок-передатчик XT4 433 RC | E134: 2 шт.
C135: 785103 | D135: Фотоэлементы XP20B D | E135: 1 шт.
B136: до 800 кг 18 м/мин. | C136: С721_kit_SLH_91 | D136: С721 KIT + Пульты SLH | E136: 1 шт. | F136: по запросу
C137: 109321 | D137: Привод C721, блок управления Е721 | E137: 1 шт. | H137: С721_kit_SLH
C138: 787832 | D138: Радиоприемник 2-канальный встраиваемый в разъем XF 868 МГц | E138: 1 шт.
C139: 7870091 | D139: Брелок-передатчик XT2 868 SLH LR | E139: 2 шт.
C140: 785103 | D140: Фотоэлементы XP20B D | E140: 1 шт.
B141: до 900 кг 12м/мин. | C141: 741_kit_RC_1 | D141: 741 KIT + Пульты RC | E141: 1 шт. | F141: по запросу | H141: =IF(G141<>"",F141*G141*(1-F$2),"") -> 
C142: 109781 | D142: Привод 741 Е, блок управления 740 D, 230В | E142: 1 шт. | H142: 741_kit_RC
C143: 787856 | D143: Радиоприемник 1-канальный встраиваемый в разъем RP 433 МГц | E143: 1 шт.
C144: 787456 | D144: Брелок-передатчик XT4 433 RC | E144: 2 шт.
C145: 785102 | D145: Фотоэлементы XP20 D | E145: 1 шт.
B147: до 900 кг 12м/мин. | C147: 741_kit_SLH_91 | D147: 741 KIT + Пульты SLH | E147: 1 шт. | F147: по запросу | H147: =IF(G147<>"",F147*G147*(1-F$2),"") -> 
C148: 109781 | D148: Привод 741 Е, блок управления 740 D, 230В | E148: 1 шт. | H148: 741_kit_SLH_91
C149: 787854 | D149: Радиоприемник 1-канальный встраиваемый в разъем RP 868 МГц | E149: 1 шт.
C150: 7870091 | D150: Брелок-передатчик XT2 868 SLH LR | E150: 2 шт.
C151: 785102 | D151: Фотоэлементы XP20 D | E151: 1 шт.
B152: до 900 кг 12м/мин. | C152: 741_kit_SLH2_92 | D152: 741 KIT + Пульты SLH, 2х канальный радиоприемник | E152: 1 шт. | F152: по запросу | H152: =IF(G152<>"",F152*G152*(1-F$2),"") -> 
C153: 109781 | D153: Привод 741 Е, блок управления 740 D, 230В | E153: 1 шт. | H153: 741_kit_SLH2_92
C154: 787855 | D154: Радиоприемник 2-канальный встраиваемый в разъем RP 868 МГц | E154: 1 шт.
C155: 7870091 | D155: Брелок-передатчик XT2 868 SLH LR | E155: 2 шт.
C156: 785102 | D156: Фотоэлементы XP20 D | E156: 1 шт.
D157: СПЕЦ. ПРЕДЛОЖЕНИЯ НА БРЕЛОКИ-ПЕРЕДАТЧИКИ
C158: 787456/50 | D158: Брелок-передатчик XT4 433 RC, темно-серого цвета | E158: 50 шт. | F158: 65285.58 | H158: =IF(G158<>"",F158*G158*(1-F$2),"") -> 
C159: 787456/100 | D159: Брелок-передатчик XT4 433 RC, темно-серого цвета | E159: 100 шт. | F159: 113724.13
C160: 787009/50 | D160: Брелок-передатчик XT2 868 SLH LR, белого цвета | E160: 50 шт. | F160: 123832.53
C161: 787009/100 | D161: Брелок-передатчик XT2 868 SLH LR, белого цвета | E161: 100 шт. | F161: 215654.5
C162: 7870091/50 | D162: Брелок-передатчик XT2 868 SLH LR, черного цвета | E162: 50 шт. | F162: 123832.53
C163: 7870091/100 | D163: Брелок-передатчик XT2 868 SLH LR, черного цвета | E163: 100 шт. | F163: 215654.5
C164: 787010/50 | D164: Брелок-передатчик XT4 868 SLH LR, белого цвета | E164: 50 шт. | F164: 143207.58
C165: 787010/100 | D165: Брелок-передатчик XT4 868 SLH LR, белого цвета | E165: 100 шт. | F165: 244296.2
C166: 7870101/50 | D166: Брелок-передатчик XT4 868 SLH LR, черного цвета | E166: 50 шт. | F166: 143207.58
C167: 7870101/100 | D167: Брелок-передатчик XT4 868 SLH LR, черного цвета | E167: 100 шт. | F167: 244296.2

Sheet Распашные
E2: ВАША СКИДКА: | F2: 0 | G2: ВАШ ЗАКАЗ:
B3: Технические характеристики | C3: Код артикула | D3: АВТОМАТИКА ДЛЯ РАСПАШНЫХ ВОРОТ И КАЛИТОК | E3: Компл. | F3: Розничная цена за 1 ед., руб. | G3: Кол-во, шт. | H3: Ваш заказ с учётом скидки, руб.
D4: КОМПЛЕКТ ЭЛЕКТРОМЕХАНИЧЕСКОГО ПРИВОДА 412 ДЛЯ 2-X СТВОРЧАТЫХ ВОРОТ С МЕХАНИЧЕСКИМИ УПОРАМИ
D5: Состав комплекта:
C6: 104470 | D6: Привод электромеханический линейный 412 DX, 230В правосторонний, 3500Н, ход выдвижного штока 300 мм, 16 мм/сек, с декоративным кожухом штока | E6: 1 шт. | F6: 15119.13 | H6: =IF(G6<>"",F6*G6*(1-F$2),"") -> 
C7: 104471 | D7: Привод электромеханический линейный 412 SX, 230В левосторонний, 3500Н, ход выдвижного штока 300 мм, 16 мм/сек, с декоративным кожухом штока | E7: 1 шт. | F7: 15119.13 | H7: =IF(G7<>"",F7*G7*(1-F$2),"") -> 
C8: 720119 | D8: Корпус "Е" для плат управления и принадлежностей, крышка на винтах, IP55, (ШxГxВ): 204x85x265мм | E8: 1 шт. | F8: 1605.8 | H8: =IF(G8<>"",F8*G8*(1-F$2),"") -> 
C9: 790005 | D9: Плата управления E045 для 2х моторов 230В, входы фотоэлементов BUS 2EASY, радиоразъем XF | E9: 1 шт. | F9: 13122.98 | H9: =IF(G9<>"",F9*G9*(1-F$2),"") -> 
B10: до 1.8 м, усилие 3500 Н, 18 циклов в час | D10: Итого: | F10: =SUM(F6:F9) -> 44967.04 | H10: =SUM(H6:H9) -> 0
D11: КОМПЛЕКТ ЭЛЕКТРОМЕХАНИЧЕСКОГО ПРИВОДА 414 ДЛЯ 2-X СТВОРЧАТЫХ ВОРОТ С МЕХАНИЧЕСКИМИ УПОРАМИ
D12: Состав комплекта:
C13: 6171022 | D13: Привод электромеханический линейный 414 SX, 230В левосторонний, 3500Н, ход выдвижного штока 400 мм, 16 мм/сек | E13: 1 шт. | F13: 14161.75 | H13: =IF(G13<>"",F13*G13*(1-F$2),"") -> 
C14: 6171021 | D14: Привод электромеханический линейный 414 DX, 230В правосторонний, 3500Н, ход выдвижного штока 400 мм, 16 мм/сек | E14: 1 шт. | F14: 14161.75 | H14: =IF(G14<>"",F14*G14*(1-F$2),"") -> 
C15: 720119 | D15: Корпус "Е" для плат управления и принадлежностей, крышка на винтах, IP55, (ШxГxВ): 204x85x265мм | E15: 1 шт. | F15: 1605.8 | H15: =IF(G15<>"",F15*G15*(1-F$2),"") -> 
C16: 790005 | D16: Плата управления E045 для 2х моторов 230В, входы фотоэлементов BUS 2EASY, радиоразъем XF | E16: 1 шт. | F16: 13122.98 | H16: =IF(G16<>"",F16*G16*(1-F$2),"") -> 
B17: до 3.0 м, усилие 3500 Н, 18 циклов в час | D17: Итого: | F17: =F13+F14+F15+F16 -> 43052.28 | H17: =SUM(H13:H16) -> 0
D18: КОМПЛЕКТ ЭЛЕКТРОМЕХАНИЧЕСКОГО ПРИВОДА 414 LONG ДЛЯ 2-X СТВОРЧАТЫХ ВОРОТ С МЕХАНИЧЕСКИМИ УПОРАМИ
D19: Состав комплекта:
C20: 6171023 | D20: Привод электромеханический линейный 414 LONG DX, 230В правосторонний, 3500Н, ход выдвижного штока 500 мм, 16 мм/сек | E20: 1 шт. | F20: 19441.65 | H20: =IF(G20<>"",F20*G20*(1-F$2),"") -> 
C21: 6171024 | D21: Привод электромеханический линейный 414 LONG SX, 230В левосторонний, 3500Н, ход выдвижного штока 500 мм, 16 мм/сек | E21: 1 шт. | F21: 19441.65 | H21: =IF(G21<>"",F21*G21*(1-F$2),"") -> 
C22: 720119 | D22: Корпус "Е" для плат управления и принадлежностей, крышка на винтах, IP55, (ШxГxВ): 204x85x265мм | E22: 1 шт. | F22: 1605.8 | H22: =IF(G22<>"",F22*G22*(1-F$2),"") -> 
C23: 790005 | D23: Плата управления E045 для 2х моторов 230В, входы фотоэлементов BUS 2EASY, радиоразъем XF | E23: 1 шт. | F23: 13122.98 | H23: =IF(G23<>"",F23*G23*(1-F$2),"") -> 
B24: до 5.0 м, усилие 3500 Н, 18 циклов в час | D24: Итого: | F24: =F20+F21+F22+F23 -> 53612.08 | H24: =SUM(H20:H23) -> 0
D25: КОМПЛЕКТ ЭНКОДЕРОВ ДЛЯ 2-X СТВОРЧАТЫХ ВОРОТ
D26: Состав комплекта (комплект энкодеров используется для усиления безопасности и эксплуатации без механических упоров):
C27: 404041 | D27: Энкодер SAFECODER для 412/414 серий, 2-проводное подключение шлейфом к шине BUS 2EASY, обнаружение конечных положений, препятствий, функция замедления | E27: 2 шт. | F27: 5124.5 | H27: =IF(G27<>"",F27*G27*(1-F$2),"") -> 
B28: Энкодеры для 412, 414, 414 LONG | D28: Итого: | F28: =F27*2 -> 10249 | H28: =SUM(H27) -> 0
D29: КОМПЛЕКТ ЭЛЕКТРОМЕХАНИЧЕСКОГО ПРИВОДА 413 LS ДЛЯ 2-X СТВОРЧАТЫХ ВОРОТ
D30: Состав комплекта:
C31: 104414 | D31: Привод электромеханический линейный 413 LS, 230В, 2000Н, ход выдвижного штока 300 мм, 16 мм/сек, с концевыми выключателями открытого и закрытого положений | E31: 2 шт. | F31: 23602.3 | H31: =IF(G31<>"",F31*G31*(1-F$2),"") -> 
C32: 720119 | D32: Корпус "Е" для плат управления и принадлежностей, крышка на винтах, IP55, (ШxГxВ): 204x85x265мм | E32: 1 шт. | F32: 1605.8 | H32: =IF(G32<>"",F32*G32*(1-F$2),"") -> 
C33: 790917 | D33: Плата управления 455 D для 2х моторов 230В, входы концевиков и релейных фотоэлементов, радиоразъем RP | E33: 1 шт. | F33: 14572.45 | H33: =IF(G33<>"",F33*G33*(1-F$2),"") -> 
B34: до 1.8 м (2.5 м с замком), усилие 2000 Н, инт. 30% | D34: Итого: | F34: =F31*2+F32+F33 -> 63382.85 | H34: =SUM(H31:H33) -> 0
D35: КОМПЛЕКТ ЭЛЕКТРОМЕХАНИЧЕСКОГО ПРИВОДА 415 LLS ДЛЯ 2-X СТВОРЧАТЫХ ВОРОТ
D36: Состав комплекта:
C37: 104418 | D37: Привод электромеханический линейный 415 L LS, 230В, 3000Н, ход выдвижного штока 400 мм, 16 мм/сек, с концевыми выключателями открытого и закрытого положений | E37: 2 шт. | F37: 25728.88 | H37: =IF(G37<>"",F37*G37*(1-F$2),"") -> 
C38: 720119 | D38: Корпус "Е" для плат управления и принадлежностей, крышка на винтах, IP55, (ШxГxВ): 204x85x265мм | E38: 1 шт. | F38: 1605.8 | H38: =IF(G38<>"",F38*G38*(1-F$2),"") -> 
C39: 790917 | D39: Плата управления 455 D для 2х моторов 230В, входы концевиков и релейных фотоэлементов, радиоразъем RP | E39: 1 шт. | F39: 14572.45 | H39: =IF(G39<>"",F39*G39*(1-F$2),"") -> 
B40: до 2.5 м (4.0 м с замком), усилие 3000 Н, инт. 30% | D40: Итого: | F40: =F37*2+F38+F39 -> 67636.01 | H40: =SUM(H37:H39) -> 0
D41: КОМПЛЕКТ ЭЛЕКТРОМЕХАНИЧЕСКОГО ПРИВОДА 390 ДЛЯ 2-X СТВОРЧАТЫХ ВОРОТ
D42: Состав комплекта
C43: 104570 | D43: Привод электромеханический рычажный 390, 230В, 250H*м, 8 град/c, без рычагов, самоблокирующийся редуктор, без концевиков | E43: 2 шт. | F43: 22235.15 | H43: =IF(G43<>"",F43*G43*(1-F$2),"") -> 
C44: 738705 | D44: Рычаги из алюминиевого сплава окрашенные шарнирные, пара: прямое ведущее (390мм) и изогнутое ведомое (480мм) плечи, для 1 привода 390 серии | E44: 2 шт. | F44: 9649.6 | H44: =IF(G44<>"",F44*G44*(1-F$2),"") -> 
C45: 720119 | D45: Корпус "Е" для плат управления и принадлежностей, крышка на винтах, IP55, (ШxГxВ): 204x85x265мм | E45: 1 шт. | F45: 1605.8 | H45: =IF(G45<>"",F45*G45*(1-F$2),"") -> 
C46: 390682 | D46: Микровыключатель с принадлежностями для обозначения одного конечного положения привода 390 | E46: 4 шт. | F46: 897.25 | H46: =IF(G46<>"",F46*G46*(1-F$2),"") -> 
C47: 790917 | D47: Плата управления 455 D для 2х моторов 230В, входы концевиков и релейных фотоэлементов, радиоразъем RP | E47: 1 шт. | F47: 14572.45 | H47: =IF(G47<>"",F47*G47*(1-F$2),"") -> 
B48: до 1.8 м (3.0 м с замком), 250 Н*m, инт. 30% | D48: Итого: | F48: =F43*2+F44*2+F45+F46*4+F47 -> 83536.75 | H48: =SUM(H43:H47) -> 0
D49: КОМПЛЕКТ ЭЛЕКТРОМЕХАНИЧЕСКОГО ПРИВОДА 391 ДЛЯ 2-X СТВОРЧАТЫХ ВОРОТ (ОПЦИЯ ПОДКЛЮЧЕНИЯ АККУМУЛЯТОРА)
D50: Состав комплекта
C51: 104576 | D51: Привод электромеханический рычажный 391 Е, 24В, 250H*м, 13 град/c, с платой управления Е024 S, с рычажной парой, самоблокирующийся, встроенные упоры открытого и закрытого положений | E51: 1 шт. | F51: 38469.83 | H51: =IF(G51<>"",F51*G51*(1-F$2),"") -> 
C52: 104577 | D52: Привод электромеханический рычажный 391, 24В, 250H*м, 13 град/c, без платы управления, с рычажной парой, самоблокирующийся редуктор, встроенные упоры открытого и закрытого положений | E52: 1 шт. | F52: 25966.6 | H52: =IF(G52<>"",F52*G52*(1-F$2),"") -> 
B53: до 2,5 м, 250 Н*m, интенсивность 80% | D53: Итого: | F53: =F51+F52 -> 64436.43 | H53: =SUM(H51:H52) -> 0
D54: КОМПЛЕКТ ЭЛЕКТРОМЕХАНИЧЕСКОГО ПРИВОДА S418 ДЛЯ 2-X СТВОРЧАТЫХ ВОРОТ (ОПЦИЯ ПОДКЛЮЧЕНИЯ АККУМУЛЯТОРА)
D55: Состав комплекта
C56: 104301 | D56: Привод электромеханический линейный S418, 24В, 1800Н, ход выдвижного штока 350 мм, 37 мм/сек (с E124), с механическими упорами открытого и закрытого положений | E56: 2 шт. | F56: 27060.88 | H56: =IF(G56<>"",F56*G56*(1-F$2),"") -> 
C57: 790284 | D57: Блок управления Е124 в корпусе с трансформатором, для 2х моторов 24В, входы GATECODER, релейных фотоэлементов и BUS 2EASY, радиоразъемы XF и RP, USB В, таймер | E57: 1 шт. | F57: 22822.53 | H57: =IF(G57<>"",F57*G57*(1-F$2),"") -> 
B58: до 2.3 м (2.7 м с замком), усилие 1800 Н, инт. 100% | D58: Итого: | F58: =F56*2+F57 -> 76944.29 | H58: =SUM(H56:H57) -> 0
D59: КОМПЛЕКТ ГИДРАВЛИЧЕСКОГО ПРИВОДА 560 CBAC ДЛЯ СКЛАДЫВАЮЩИХСЯ ВОРОТ
D60: Состав комплекта
C61: 104561 | D61: Привод гидравлический рычажный 560 CBAC, 230В, с гидрозамками открытого и закрытого положений, 320 Нм, 12,4°сек, для складывающихся ворот, без рычагов | E61: 2 шт. | F61: 119574.75 | H61: =IF(G61<>"",F61*G61*(1-F$2),"") -> 
C62: 738703 | D62: Рычаг телескопический для складывающихся ворот, для 1 привода 560 серии | E62: 2 шт. | F62: 5629.55 | H62: =IF(G62<>"",F62*G62*(1-F$2),"") -> 
C63: 720119 | D63: Корпус "Е" для плат управления и принадлежностей, крышка на винтах, IP55, (ШxГxВ): 204x85x265мм | E63: 1 шт. | F63: 1605.8 | H63: =IF(G63<>"",F63*G63*(1-F$2),"") -> 
C64: 790005 | D64: Плата управления E045 для 2х моторов 230В, входы фотоэлементов BUS 2EASY, радиоразъем XF | E64: 1 шт. | F64: 13122.98 | H64: =IF(G64<>"",F64*G64*(1-F$2),"") -> 
B65: до 2 м, 320 Н*m, 50 циклов в час | D65: Итого: | F65: =F61*2+F62*2+F63+F64 -> 265137.38 | H65: =SUM(H61:H64) -> 0
D66: КОМПЛЕКТ ЭЛЕКТРОМЕХАНИЧЕСКОГО ПРИВОДА 390 ДЛЯ СКЛАДЫВАЮЩИХСЯ ВОРОТ
D67: Состав комплекта:
C68: 104570 | D68: Привод электромеханический рычажный 390, 230В, 250H*м, 8 град/c, без рычагов, самоблокирующийся редуктор, без концевиков | E68: 2 шт. | F68: 22235.15 | H68: =IF(G68<>"",F68*G68*(1-F$2),"") -> 
C69: 738706 | D69: Рычаг телескопический для дверей, калиток и складывающихся ворот, для 1 привода 390 серии | E69: 2 шт. | F69: 6216 | H69: =IF(G69<>"",F69*G69*(1-F$2),"") -> 
C70: 720119 | D70: Корпус "Е" для плат управления и принадлежностей, крышка на винтах, IP55, (ШxГxВ): 204x85x265мм | E70: 1 шт. | F70: 1605.8 | H70: =IF(G70<>"",F70*G70*(1-F$2),"") -> 
C71: 390682 | D71: Микровыключатель с принадлежностями для обозначения одного конечного положения привода 390 | E71: 4 шт. | F71: 897.25 | H71: =IF(G71<>"",F71*G71*(1-F$2),"") -> 
C72: 790917 | D72: Плата управления 455 D для 2х моторов 230В, входы концевиков и релейных фотоэлементов, радиоразъем RP | E72: 1 шт. | F72: 14572.45 | H72: =IF(G72<>"",F72*G72*(1-F$2),"") -> 
B73: до 2,5 м, 250 Н*m, интенсивность 80% | D73: Итого: | F73: =F68*2+F69*2+F70+F71*4+F72 -> 76669.55 | H73: =SUM(H68:H72) -> 0
D74: КОМПЛЕКТ ГИДРАВЛИЧЕСКОГО ПРИВОДА 402 CBC ДЛЯ 2-X СТВОРЧАТЫХ ВОРОТ
D75: Состав комплекта
C76: 104468177 | D76: Привод гидравлический линейный 402 CBC, 230В, зимний, усилие 5000Н, с гидрозамком только закрытого положения, ход и скорость поршня 240мм и 13 мм/сек, без конденсатора, темп. -40..+55 град. | E76: 2 шт. | F76: 35677.25 | H76: =IF(G76<>"",F76*G76*(1-F$2),"") -> 
C77: 7601351 | D77: Конденсатор пусковой 8 мкФ, 400 В с проводами | E77: 2 шт. | F77: 503.2 | H77: =IF(G77<>"",F77*G77*(1-F$2),"") -> 
C78: 720119 | D78: Корпус "Е" для плат управления и принадлежностей, крышка на винтах, IP55, (ШxГxВ): 204x85x265мм | E78: 1 шт. | F78: 1605.8 | H78: =IF(G78<>"",F78*G78*(1-F$2),"") -> 
C79: 790005 | D79: Плата управления E045 для 2х моторов 230В, входы фотоэлементов BUS 2EASY, радиоразъем XF | E79: 1 шт. | F79: 13122.98 | H79: =IF(G79<>"",F79*G79*(1-F$2),"") -> 
B80: до 1.8 м, усилие 5000 H, инт. 55 циклов в час | D80: Итого: | F80: =F76*2+F77*2+F78+F79 -> 87089.68 | H80: =SUM(H76:H79) -> 0
D81: КОМПЛЕКТ ГИДРАВЛИЧЕСКОГО ПРИВОДА 422 CBAC ДЛЯ 2-X СТВОРЧАТЫХ ВОРОТ
D82: Состав комплекта
C83: 10420077 | D83: Привод гидравлический линейный 422 CBAC, 230В, зимний, усилие 5000H, с гидрозамками открытого и закрытого положений, ход и скорость поршня 240мм и 13 мм/сек, темп. -40..+55 град. | E83: 2 шт. | F83: 51041.5 | H83: =IF(G83<>"",F83*G83*(1-F$2),"") -> 
C84: 720119 | D84: Корпус "Е" для плат управления и принадлежностей, крышка на винтах, IP55, (ШxГxВ): 204x85x265мм | E84: 1 шт. | F84: 1605.8 | H84: =IF(G84<>"",F84*G84*(1-F$2),"") -> 
C85: 790005 | D85: Плата управления E045 для 2х моторов 230В, входы фотоэлементов BUS 2EASY, радиоразъем XF | E85: 1 шт. | F85: 13122.98 | H85: =IF(G85<>"",F85*G85*(1-F$2),"") -> 
B86: до 1.8 м, усилие 5000 H, инт. 55 циклов в час | D86: Итого: | F86: =F83*2+F84+F85 -> 116811.78 | H86: =SUM(H83:H85) -> 0
D87: КОМПЛЕКТ ГИДРАВЛИЧЕСКОГО ПРИВОДА 400 CBAC ДЛЯ 2-X СТВОРЧАТЫХ ВОРОТ
D88: Состав комплекта
C89: 10420177 | D89: Привод гидравлический линейный 400 CBAC, 230В, зимний, усилие 6200H, с гидрозамками открытого и закрытого положений, ход и скорость поршня 260мм и 10 мм/сек, темп. -40..+55 град. | E89: 2 шт. | F89: 58233.38 | H89: =IF(G89<>"",F89*G89*(1-F$2),"") -> 
C90: 490042 | D90: Упоры механические открытого и закрытого положений, встраиваемые, комплект, для 1 привода 400 серии | E90: 2 шт. | F90: 7905.05 | H90: =IF(G90<>"",F90*G90*(1-F$2),"") -> 
C91: 720119 | D91: Корпус "Е" для плат управления и принадлежностей, крышка на винтах, IP55, (ШxГxВ): 204x85x265мм | E91: 1 шт. | F91: 1605.8 | H91: =IF(G91<>"",F91*G91*(1-F$2),"") -> 
C92: 790005 | D92: Плата управления E045 для 2х моторов 230В, входы фотоэлементов BUS 2EASY, радиоразъем XF | E92: 1 шт. | F92: 13122.98 | H92: =IF(G92<>"",F92*G92*(1-F$2),"") -> 
B93: до 2.2 м, усилие 6200 H, инт. 70 циклов в час | D93: Итого: | F93: =F89*2+F90*2+F91+F92 -> 147005.64 | H93: =SUM(H89:H92) -> 0
D94: КОМПЛЕКТ ГИДРАВЛИЧЕСКОГО ПРИВОДА 400 CBAC LONG ДЛЯ 2-X СТВОРЧАТЫХ ВОРОТ
D95: Состав комплекта
C96: 10420277 | D96: Привод гидравлический линейный 400 CBAC LONG, 230В, зимний, усилие 4650H, с гидрозамками открытого и закрытого положений, ход и скорость поршня 380мм и 15 мм/сек,темп. -40..+55 град. | E96: 2 шт. | F96: 60819.68 | H96: =IF(G96<>"",F96*G96*(1-F$2),"") -> 
C97: 490043 | D97: Упоры механические открытого и закрытого положений, встраиваемые, комплект, для 1 привода 400 серии удлиненной версии | E97: 2 шт. | F97: 8929.03 | H97: =IF(G97<>"",F97*G97*(1-F$2),"") -> 
C98: 720119 | D98: Корпус "Е" для плат управления и принадлежностей, крышка на винтах, IP55, (ШxГxВ): 204x85x265мм | E98: 1 шт. | F98: 1605.8 | H98: =IF(G98<>"",F98*G98*(1-F$2),"") -> 
C99: 790005 | D99: Плата управления E045 для 2х моторов 230В, входы фотоэлементов BUS 2EASY, радиоразъем XF | E99: 1 шт. | F99: 13122.98 | H99: =IF(G99<>"",F99*G99*(1-F$2),"") -> 
B100: до 2.2 м, усилие 4650H, инт. 50 циклов в час | D100: Итого: | F100: =F96*2+F97*2+F98+F99 -> 154226.2 | H100: =SUM(H96:H99) -> 0
D101: КОМПЛЕКТ ГИДРАВЛИЧЕСКОГО ПРИВОДА 400 SB ДЛЯ 2-X СТВОРЧАТЫХ ВОРОТ
D102: Состав комплекта
C103: 10420677 | D103: Привод гидравлический линейный 400 SB, 230В, зимний, усилие6200Н, без гидрозамков открытого и закрытого положений, ход и скорость поршня 270мм и 10 мм/сек, , темп. -40..+55 град. | E103: 2 шт. | F103: 55133.7 | H103: =IF(G103<>"",F103*G103*(1-F$2),"") -> 
C104: 490043 | D104: Упоры механические открытого и закрытого положений, встраиваемые, комплект, для 1 привода 400 серии удлиненной версии | E104: 2 шт. | F104: 8929.03 | H104: =IF(G104<>"",F104*G104*(1-F$2),"") -> 
C105: 720119 | D105: Корпус "Е" для плат управления и принадлежностей, крышка на винтах, IP55, (ШxГxВ): 204x85x265мм | E105: 1 шт. | F105: 1605.8 | H105: =IF(G105<>"",F105*G105*(1-F$2),"") -> 
C106: 790005 | D106: Плата управления E045 для 2х моторов 230В, входы фотоэлементов BUS 2EASY, радиоразъем XF | E106: 1 шт. | F106: 13122.98 | H106: =IF(G106<>"",F106*G106*(1-F$2),"") -> 
B107: до 4.0 м с э.замком, 6200 H, инт. 60 циклов в час | D107: Итого: | F107: =F103*2+F104*2+F105+F106 -> 142854.24 | H107: =SUM(H103:H106) -> 0
D108: КОМПЛЕКТ ГИДРАВЛИЧЕСКОГО ПРИВОДА 400 SBS L ДЛЯ 2-X СТВОРЧАТЫХ ВОРОТ
D109: Состав комплекта
C110: 104220 | D110: Привод гидравлический линейный 400 SBS L, 230В, не зимний, усилие 7750Н, без гидрозамков открытого и закрытого положений, ход и скорость поршня 270мм и 7.5 мм/сек, , темп. -20..+55 град. (поставляется под заказ) | E110: 2 шт. | F110: 86160.05 | H110: =IF(G110<>"",F110*G110*(1-F$2),"") -> 
C111: 7140251/1 | D111: Масло гидравлическое FAAC HP2 OIL зимнее до -40°С 1 л | E111: 5 шт. | F111: 2 930,40
C112: 490043 | D112: Упоры механические открытого и закрытого положений, встраиваемые, комплект, для 1 привода 400 серии удлиненной версии | E112: 2 шт. | F112: 8929.03 | H112: =IF(G112<>"",F112*G112*(1-F$2),"") -> 
C113: 720119 | D113: Корпус "Е" для плат управления и принадлежностей, крышка на винтах, IP55, (ШxГxВ): 204x85x265мм | E113: 1 шт. | F113: 1605.8 | H113: =IF(G113<>"",F113*G113*(1-F$2),"") -> 
C114: 790005 | D114: Плата управления E045 для 2х моторов 230В, входы фотоэлементов BUS 2EASY, радиоразъем XF | E114: 1 шт. | F114: 13122.98 | H114: =IF(G114<>"",F114*G114*(1-F$2),"") -> 
D115: Услуга перезаправки с летнего масла на зимнее 2-х приводов (партнерская скидка не предоставляется) | E115: 1 усл. | F115: 6800 | H115: =IF(G115<>"",F115*G115*(1-F$2),"") -> 
B116: до 7.0 м с э.замком, 7750 H, инт. 40 циклов в час | D116: Итого: | F116: =F110*2+F112*2+F113+F114+F111*5+F115 ->  | H116: =SUM(H110:H115) -> 0
D117: КОМПЛЕКТ ЭНКОДЕРОВ ДЛЯ ГИДРАВЛИЧЕСКИХ ПРИВОДОВ 220В
D118: Состав комплекта (комплект энкодеров используется для усиления безопасности и/или эксплуатации без механических упоров) для приводов 400, 402, 422:
C119: 404040 | D119: Энкодер SAFEСODER, 2-проводное подключение шлейфом к шине BUS 2EASY, обнаружение конечных положений, препятствий, функция замедления | E119: 2 шт. | F119: 5435.3 | H119: =IF(G119<>"",F119*G119*(1-F$2),"") -> 
B120: Энкодеры для 400, 402, 422 | D120: Итого: | F120: =F119*2 -> 10870.6 | H120: =SUM(H119) -> 0
D121: КОМПЛЕКТ ГИДРАВЛИЧЕСКОГО ПРИВОДА S450H CBAC
D122: Состав комплекта:
C123: 1041001577 | D123: Привод гибридный линейный S450 H CBAC, 24В, зимний, усилие 5000Н, с гидрозамками и встроенными упорами открытого и закрытого положений, ход и скорость поршня 311мм и 25 мм/сек, темп. -40..+55 град. | E123: 2 шт. | F123: 59398.88 | H123: =IF(G123<>"",F123*G123*(1-F$2),"") -> 
C124: 790284 | D124: Блок управления Е124 в корпусе с трансформатором, для 2х моторов 24В, входы GATECODER, релейных фотоэлементов и BUS 2EASY, радиоразъемы XF и RP, USB В, таймер | E124: 1 шт. | F124: 22822.53 | H124: =IF(G124<>"",F124*G124*(1-F$2),"") -> 
B125: до 2 м, усилие 5000 H, 100% интенсивность | D125: Итого: | F125: =F123*2+F124 -> 141620.29 | H125: =SUM(H123:H124) -> 0
D126: КОМПЛЕКТ ЭЛЕКТРОМЕХАНИЧЕСКОГО ПРИВОДА 412 ДЛЯ КАЛИТКИ (ОТКРЫТИЕ ВПРАВО)
D127: Состав комплекта:
C128: 104470 | D128: Привод электромеханический линейный 412 DX, 230В правосторонний, 3500Н, ход выдвижного штока 300 мм, 16 мм/сек, с декоративным кожухом штока | E128: 1 шт. | F128: 15119.13 | H128: =IF(G128<>"",F128*G128*(1-F$2),"") -> 
C129: 720119 | D129: Корпус "Е" для плат управления и принадлежностей, крышка на винтах, IP55, (ШxГxВ): 204x85x265мм | E129: 1 шт. | F129: 1605.8 | H129: =IF(G129<>"",F129*G129*(1-F$2),"") -> 
C130: 790005 | D130: Плата управления E045 для 2х моторов 230В, входы фотоэлементов BUS 2EASY, радиоразъем XF | E130: 1 шт. | F130: 13122.98 | H130: =IF(G130<>"",F130*G130*(1-F$2),"") -> 
B131: до 1.8 м, усилие 3500 Н, 18 циклов в час | D131: Итого: | F131: =SUM(F128:F130) -> 29847.91 | H131: =SUM(H128:H130) -> 0
D132: КОМПЛЕКТ ЭЛЕКТРОМЕХАНИЧЕСКОГО ПРИВОДА 422 CBC PED ДЛЯ КАЛИТКИ
D133: Состав комплекта:
C134: 10421377 | D134: Привод гидравлический линейный 422 CBC PED, 230В, зимний, усилие 3800H, с гидрозамками закрытого положений, ход и скорость поршня 160мм и 20 мм/сек, темп. -40..+55 град. | E134: 1 шт. | F134: 30434.35 | H134: =IF(G134<>"",F134*G134*(1-F$2),"") -> 
C135: 720119 | D135: Корпус "Е" для плат управления и принадлежностей, крышка на винтах, IP55, (ШxГxВ): 204x85x265мм | E135: 1 шт. | F135: 1605.8 | H135: =IF(G135<>"",F135*G135*(1-F$2),"") -> 
C136: 790005 | D136: Плата управления E045 для 2х моторов 230В, входы фотоэлементов BUS 2EASY, радиоразъем XF | E136: 1 шт. | F136: 13122.98 | H136: =IF(G136<>"",F136*G136*(1-F$2),"") -> 
B137: 0.8- 1.2 м, усилие 3800 Н, 70 циклов в час | D137: Итого: | F137: =SUM(F134:F136) -> 45163.13 | H137: =SUM(H134:H136) -> 0
D138: КОМПЛЕКТ ЭЛЕКТРОМЕХАНИЧЕСКОГО ПРИВОДА 412 ДЛЯ КАЛИТКИ
D139: Состав комплекта:
C140: 104471 | D140: Привод электромеханический линейный 412 SX, 230В левосторонний, 3500Н, ход выдвижного штока 300 мм, 16 мм/сек, с декоративным кожухом штока | E140: 1 шт. | F140: 15119.13 | H140: =IF(G140<>"",F140*G140*(1-F$2),"") -> 
C141: 720119 | D141: Корпус "Е" для плат управления и принадлежностей, крышка на винтах, IP55, (ШxГxВ): 204x85x265мм | E141: 1 шт. | F141: 1605.8 | H141: =IF(G141<>"",F141*G141*(1-F$2),"") -> 
C142: 790005 | D142: Плата управления E045 для 2х моторов 230В, входы фотоэлементов BUS 2EASY, радиоразъем XF | E142: 1 шт. | F142: 13122.98 | H142: =IF(G142<>"",F142*G142*(1-F$2),"") -> 
B143: до 1.8 м, усилие 3500 Н, 18 циклов в час | D143: Итого: | F143: =SUM(F140:F142) -> 29847.91 | H143: =SUM(H140:H142) -> 0
D144: КОМПЛЕКТ ЭЛЕКТРОМЕХАНИЧЕСКОГО ПРИВОДА S418 ДЛЯ КАЛИТКИ
D145: Состав комплекта
C146: 104301 | D146: Привод электромеханический линейный S418, 24В, 1800Н, ход выдвижного штока 350 мм, 37 мм/сек (с E124), с механическими упорами открытого и закрытого положений | E146: 1 шт. | F146: 27060.88 | H146: =IF(G146<>"",F146*G146*(1-F$2),"") -> 
C147: 790284 | D147: Блок управления Е124 в корпусе с трансформатором, для 2х моторов 24В, входы GATECODER, релейных фотоэлементов и BUS 2EASY, радиоразъемы XF и RP, USB В, таймер | E147: 1 шт. | F147: 22822.53 | H147: =IF(G147<>"",F147*G147*(1-F$2),"") -> 
B148: до 2.3 м, усилие 1800 Н, инт. 100% | D148: Итого: | F148: =F146+F147 -> 49883.41 | H148: =SUM(H146:H147) -> 0
D149: КОМПЛЕКТ ПОДЗЕМНОГО ЭЛЕКТРОМЕХАНИЧЕСКОГО ПРИВОДА 770N 230V ДЛЯ 2-Х СТВОРЧАТЫХ ВОРОТ
D150: Состав комплекта:
C151: 10675201 | D151: Привод электромеханический подземный 770N 230V, без энкодеров и подземного бокса | E151: 2 шт. | F151: 40261.55 | H151: =IF(G151<>"",F151*G151*(1-F$2),"") -> 
C152: 404035 | D152: Эндекодер для 770N для чувствительности к препятствиям и отключения в конечных положениях | E152: 2 шт. | F152: 6071.7 | H152: =IF(G152<>"",F152*G152*(1-F$2),"") -> 
C153: 490065 | D153: Подземный бокс из окрашенной стали с системой аварийной разблокировки для привода 770N | E153: 2 шт. | F153: 15468.78 | H153: =IF(G153<>"",F153*G153*(1-F$2),"") -> 
C154: 720119 | D154: Корпус "Е" для плат управления и принадлежностей, крышка на винтах, IP55, (ШxГxВ): 204x85x265мм | E154: 1 шт. | F154: 1605.8 | H154: =IF(G154<>"",F154*G154*(1-F$2),"") -> 
C155: 790005 | D155: Плата управления E045 для 2х моторов 230В, входы фотоэлементов BUS 2EASY, радиоразъем XF | E155: 1 шт. | F155: 13122.98 | H155: =IF(G155<>"",F155*G155*(1-F$2),"") -> 
B156: до 2.0 м (3.0 м с замком), 500 кг, инт. 30% | D156: Итого: | F156: =F151*2+F152*2+F153*2+F154+F155 -> 138332.84 | H156: =SUM(H151:H155) -> 0
D157: КОМПЛЕКТ ПОДЗЕМНОГО ЭЛЕКТРОМЕХАНИЧЕСКОГО ПРИВОДА 770N 24V ДЛЯ 2-Х СТВОРЧАТЫХ ВОРОТ (С ВОЗМОЖНОСТЬЮ ПОДКЛЮЧЕНИЯ АККУМУЛЯТОРА)
D158: Состав комплекта:
C159: 10675301 | D159: Привод электромеханический подземный 770N 24V, без энкодеров и подземного бокса | E159: 2 шт. | F159: 41227.25 | H159: =IF(G159<>"",F159*G159*(1-F$2),"") -> 
C160: 404035 | D160: Эндекодер для 770N для чувствительности к препятствиям и отключения в конечных положениях | E160: 2 шт. | F160: 6071.7 | H160: =IF(G160<>"",F160*G160*(1-F$2),"") -> 
C161: 490065 | D161: Подземный бокс из окрашенной стали с системой аварийной разблокировки для привода 770N | E161: 2 шт. | F161: 15468.78 | H161: =IF(G161<>"",F161*G161*(1-F$2),"") -> 
C162: 790286 | D162: Блок управления Е024 S в корпусе с трансформатором, для 2х моторов 24В, входы фотоэлементов BUS 2EASY, радиоразъем XF | E162: 1 шт. | F162: 14916.55 | H162: =IF(G162<>"",F162*G162*(1-F$2),"") -> 
B163: до 2.0 м (3.0 м с замком), 500 кг, инт. 100% | D163: Итого: | F163: =F159*2+F160*2+F161*2+F162 -> 140452.01 | H163: =SUM(H159:H162) -> 0
D164: КОМПЛЕКТ ПОДЗЕМНОГО ГИДРАВЛИЧЕСКОГО ПРИВОДА S800 ENC 230V ДЛЯ 2-Х СТВОРЧАТЫХ ВОРОТ
D165: Состав комплекта без аварийной разблокировки (заказывается опционально):
C166: 108800 | D166: Привод гидравлический подземный S800 ENC CBAC 100° 230V, с энкодером, с блокировкой открытого и закрытого состояний, створка до 2м, без подземного бокса | E166: 2 шт. | F166: 66351.18 | H166: =IF(G166<>"",F166*G166*(1-F$2),"") -> 
C167: 490112 | D167: Подземный бокс из окрашенной стали для приводов серии S800 | E167: 2 шт. | F167: 15529.83 | H167: =IF(G167<>"",F167*G167*(1-F$2),"") -> 
C168: 720119 | D168: Корпус "Е" для плат управления и принадлежностей, крышка на винтах, IP55, (ШxГxВ): 204x85x265мм | E168: 1 шт. | F168: 1605.8 | H168: =IF(G168<>"",F168*G168*(1-F$2),"") -> 
C169: 790005 | D169: Плата управления E045 для 2х моторов 230В, входы фотоэлементов BUS 2EASY, радиоразъем XF | E169: 1 шт. | F169: 13122.98 | H169: =IF(G169<>"",F169*G169*(1-F$2),"") -> 
B170: до 2.0 м, 800 кг, 45 циклов в час | D170: Итого: | F170: =F166*2+F167*2+F168+F169 -> 178490.8 | H170: =SUM(H166:H169) -> 0
D171: КОМПЛЕКТ ПОДЗЕМНОГО ГИДРАВЛИЧЕСКОГО ПРИВОДА S800 24V ДЛЯ 2-Х СТВОРЧАТЫХ ВОРОТ (С ВОЗМОЖНОСТЬЮ ПОДКЛЮЧЕНИЯ АККУМУЛЯТОРА)
D172: Состав комплекта:
C173: 108720 | D173: Привод гидравлический подземный S800 ENC CBAC 100° 24V, с энкодером, с блокировкой открытого и закрытого состояний, створка до 2м, без подземного бокса | E173: 2 шт. | F173: 96435.88 | H173: =IF(G173<>"",F173*G173*(1-F$2),"") -> 
C174: 490112 | D174: Подземный бокс из окрашенной стали для приводов серии S800 | E174: 2 шт. | F174: 15529.83 | H174: =IF(G174<>"",F174*G174*(1-F$2),"") -> 
C175: 790284 | D175: Блок управления Е124 в корпусе с трансформатором, для 2х моторов 24В, входы релейных фотоэлементов и BUS 2EASY, радиоразъемы XF и RP, USB В, таймер | E175: 1 шт. | F175: 22822.53 | H175: =IF(G175<>"",F175*G175*(1-F$2),"") -> 
B176: до 2.0 м, 800 кг, 100% интенсивность | D176: Итого: | F176: =F173*2+F174*2+F175 -> 246753.95 | H176: =SUM(H173:H175) -> 0
D177: ПОДЗЕМНЫЕ ПРИВОДЫ РАСПАШНЫХ ВОРОТ
C178: 108800 | D178: Привод гидравлический подземный S800 ENC CBAC 100° 230V, с энкодером, с блокировкой открытого и закрытого состояний, створка до 2м, без подземного бокса | E178: 1 шт. | F178: 66351.18 | H178: =IF(G178<>"",F178*G178*(1-F$2),"") -> 
C179: 108801 | D179: Привод гидравлический подземный S800 ENC CBAC 180° 230V, с энкодером, с блокировкой открытого и закрытого состояний, створка до 2м, без подземного бокса | E179: 1 шт. | F179: 73851.08
C180: 108802 | D180: Привод гидравлический подземный S800 ENC SBW 100° 230V, с энкодером, без блокировки открытого и закрытого состояний, створка до 4м, без подземного бокса | E180: 1 шт. | F180: 89688
C181: 108803 | D181: Привод гидравлический подземный S800 ENC SBW 180° 230V, с энкодером, без блокировки открытого и закрытого состояний, створка до 4м, без подземного бокса | E181: 1 шт. | F181: 95670.9
C182: 1088002 | D182: Привод гидравлический подземный S800 CBAC 100° 230V, без энкодера, с блокировкой открытого и закрытого состояний, створка до 2м, без подземного бокса | E182: 1 шт. | F182: 87540.15
C183: 1088012 | D183: Привод гидравлический подземный S800 CBAC 180° 230V, без энкодера, с блокировкой открытого и закрытого состояний, створка до 2м, без подземного бокса | E183: 1 шт. | F183: 93472.18
C184: 1088022 | D184: Привод гидравлический подземный S800 SBW 100° 230V, без энкодера, без блокировки открытого и закрытого состояний, створка до 4м, без подземного бокса | E184: 1 шт. | F184: 87540.15
C185: 1088032 | D185: Привод гидравлический подземный S800 SBW 180° 230V, без энкодера, без блокировки открытого и закрытого состояний, створка до 4м, без подземного бокса | E185: 1 шт. | F185: 93472.18
C186: 108720 | D186: Привод гидравлический подземный S800 ENC CBAC 100° 24V, с энкодером, с блокировкой открытого и закрытого состояний, створка до 2м, без подземного бокса | E186: 1 шт. | F186: 96435.88
C187: 108722 | D187: Привод гидравлический подземный S800 ENC CBAC 180° 24V, с энкодером, с блокировкой открытого и закрытого состояний, створка до 2м, без подземного бокса | E187: 1 шт. | F187: 94410.13
C188: 108724 | D188: Привод гидравлический подземный S800 ENC SBW 100° 24V, с энкодером, без блокировки открытого и закрытого состояний, створка до 4м, без подземного бокса | E188: 1 шт. | F188: 89688
C189: 108725 | D189: Привод гидравлический подземный S800 ENC SBW 180° 24V, с энкодером, без блокировки открытого и закрытого состояний, створка до 4м, без подземного бокса | E189: 1 шт. | F189: 94264.9
D190: АКСЕССУАРЫ
C191: 390923 | D191: Батарея резервного питания XBAT24 (не совместима с блоком управления Е124) | E191: 1 шт. | F191: 9177.85 | H191: =IF(G191<>"",F191*G191*(1-F$2),"") -> 
C192: 390926 | D192: Принадлежности для подключения сторонней батари резервного питания к плате Е124 | E192: 1 шт. | F192: 1759.35
C193: 720118 | D193: Корпус "L" для плат управления и принадлежностей, с замком под 3-гранный ключ, IP55, (ШxГxВ): 213x118x270мм | E193: 1 шт. | F193: 2343.95
C194: 720119 | D194: Корпус "Е" для плат управления и принадлежностей, крышка на винтах, IP55, (ШxГxВ): 204x85x265мм | E194: 1 шт. | F194: 1605.8
C195: 790917 | D195: Плата управления 455 D для 2х моторов 230В, входы концевиков и релейных фотоэлементов, радиоразъем RP | E195: 1 шт. | F195: 14572.45
C196: 790005 | D196: Плата управления E045 для 2х моторов 230В, входы фотоэлементов BUS 2EASY, радиоразъем XF | E196: 1 шт. | F196: 13122.98
C197: 790076 | D197: Плата управления Е145S для 2 моторов 230В, входы релейных фотоэлементов и BUS 2EASY, радиоразъемы XF и RP, USB В, таймер, питание от сети ~90-260 В | E197: 1 шт. | F197: 18343.68
C198: 790062 | D198: Плата BUS XIB для сопряжения релейных фотоэлементов с блоками управления с шиной BUS 2EASU | E198: 1 шт. | F198: 970.33
C199: 790284 | D199: Блок управления Е124 в корпусе с трансформатором, для 2х моторов 24В, входы GATECODER, релейных фотоэлементов и BUS 2EASY, радиоразъемы XF и RP, USB В, таймер | E199: 1 шт. | F199: 22822.53
C200: 790286 | D200: Блок управления Е024 S в корпусе с трансформатором, для 2х моторов 24В, входы фотоэлементов BUS 2EASY, радиоразъем XF | E200: 1 шт. | F200: 14916.55
C201: 390682 | D201: Микровыключатель с принадлежностями для обозначения одного конечного положения привода 390 | E201: 1 шт. | F201: 897.25
... 25 more rows

Sheet Шлагбаумы
B3: Технические характеристики | C3: Код артикула | D3: АВТОМАТИЧЕСКИЕ ШЛАГБАУМЫ | E3: Компл. | F3: Цена, руб.
D4: КОМПЛЕКТ ЭЛЕКТРОМЕХАНИЧЕСКОГО ШЛАГБАУМА B614/2.5
D5: Состав комплекта:
C6: 104614 | D6: Шлагбаум электромеханический В614, встроенный энкодер чувствительности к препятствиям, усиленное сопротивление взлому (ручному подъему стрелы), режимы энергосбережения, технология 24 В, левый/правый вариант расположения стрелы | E6: 1 шт. | F6: 77182.93
C7: 428088 | D7: Стрела прямоугольная с демпфером и светоотражающими наклейками, 25х90х2315мм | E7: 1 шт. | F7: 6987.45
C8: 428342 | D8: Крепление для прямоугольных стрел 25х90мм | E8: 1 шт. | F8: 3953.45
C9: 721209 | D9: Пружина балансировочная 6мм | E9: 1 шт. | F9: 2220.93
C10: 490183 | D10: Пластина монтажная | E10: 1 шт. | F10: 2814.78
B11: до 2.3 м, инт. 100%, 2 с | D11: Итого: | F11: =SUM(F6:F10) -> 93159.54
D12: КОМПЛЕКТ ЭЛЕКТРОМЕХАНИЧЕСКОГО ШЛАГБАУМА B614/3
D13: Состав комплекта:
C14: 104614 | D14: Шлагбаум электромеханический В614, встроенный энкодер чувствительности к препятствиям, усиленное сопротивление взлому (ручному подъему стрелы), режимы энергосбережения, технология 24 В, левый/правый вариант расположения стрелы | E14: 1 шт. | F14: 77182.93
C15: 428089 | D15: Стрела прямоугольная с демпфером и светоотражающими наклейками, 25х90х2815мм | E15: 1 шт. | F15: 7609.98
C16: 428342 | D16: Крепление для прямоугольных стрел 25х90мм | E16: 1 шт. | F16: 3953.45
C17: 721209 | D17: Пружина балансировочная 6мм | E17: 1 шт. | F17: 2220.93
C18: 490183 | D18: Пластина монтажная | E18: 1 шт. | F18: 2814.78
B19: до 2.8 м, инт. 100%, 2 с | D19: Итого: | F19: =SUM(F14:F18) -> 93782.07
D20: КОМПЛЕКТ ЭЛЕКТРОМЕХАНИЧЕСКОГО ШЛАГБАУМА B614/4
D21: Состав комплекта:
C22: 104614 | D22: Шлагбаум электромеханический В614, встроенный энкодер чувствительности к препятствиям, усиленное сопротивление взлому (ручному подъему стрелы), режимы энергосбережения, технология 24 В, левый/правый вариант расположения стрелы | E22: 1 шт. | F22: 77182.93
C23: 428090 | D23: Стрела прямоугольная с демпфером и светоотражающими наклейками, 25х90х3815мм | E23: 1 шт. | F23: 9097.38
C24: 428342 | D24: Крепление для прямоугольных стрел 25х90мм | E24: 1 шт. | F24: 3953.45
C25: 721209 | D25: Пружина балансировочная 6мм | E25: 1 шт. | F25: 2220.93
C26: 490183 | D26: Пластина монтажная | E26: 1 шт. | F26: 2814.78
B27: до 3.8 м, инт. 100%, 3 с | D27: Итого: | F27: =SUM(F22:F26) -> 95269.47
D28: КОМПЛЕКТ ЭЛЕКТРОМЕХАНИЧЕСКОГО ШЛАГБАУМА B614/5
D29: Состав комплекта:
C30: 104614 | D30: Шлагбаум электромеханический В614, встроенный энкодер чувствительности к препятствиям, усиленное сопротивление взлому (ручному подъему стрелы), режимы энергосбережения, технология 24 В, левый/правый вариант расположения стрелы | E30: 1 шт. | F30: 77182.93
C31: 428091 | D31: Стрела прямоугольная с демпфером и светоотражающими наклейками, 25х90х4815мм | E31: 1 шт. | F31: 9815.18
C32: 428342 | D32: Крепление для прямоугольных стрел 25х90мм | E32: 1 шт. | F32: 3953.45
C33: 721209 | D33: Пружина балансировочная 6мм | E33: 2 шт. | F33: 2220.93
C34: 490183 | D34: Пластина монтажная | E34: 1 шт. | F34: 2814.78
C35: 490186 | D35: Кронштейн для крепления двух пружин | E35: 1 шт. | F35: 1355.13
B36: до 4.8 м, инт.100%, 4 с | D36: Итого: | F36: =F30+F31+F32+2*F33+F34+F35 -> 99563.33
D37: КОМПЛЕКТ ЭЛЕКТРОМЕХАНИЧЕСКОГО ШЛАГБАУМА B614/5 ДЮРАЛАЙТ
D38: Состав комплекта:
C39: 104614 | D39: Шлагбаум электромеханический В614, встроенный энкодер чувствительности к препятствиям, усиленное сопротивление взлому (ручному подъему стрелы), режимы энергосбережения, технология 24 В, левый/правый вариант расположения стрелы | E39: 1 шт. | F39: 77182.93
C40: 428445 | D40: Крепление для круглых Ø75типа S стрел к 614, 615, 617/4, 620 | E40: 1 шт. | F40: 9815.18
C41: 428002 | D41: Стрела круглая с демпфером Ø75мм тип S 5000мм | E41: 1 шт. | F41: 16642.6
C42: 390993 | D42: Шнур светодиодный дюралайт, 12 метров | E42: 1 шт. | F42: 8356.45
C43: 390081 | D43: Кабель подключения с платой дюралайт для шлагбаумов B614, 615, 617/4 серий | E43: 1 шт. | F43: 8034.55
C44: 490117 | D44: Наклейки светоотражающие на стрелу, комплект 6 шт | E44: 1 шт. | F44: 972.18
C45: 410032 | D45: Встраиваемая в крышку шлагбаума сигнальная светофорная лампа В614 | E45: 1 шт. | F45: 6372.33
C46: 721209 | D46: Пружина балансировочная 6мм | E46: 2 шт. | F46: 2220.93
C47: 490183 | D47: Пластина монтажная | E47: 1 шт. | F47: 2814.78
C48: 490186 | D48: Кронштейн для крепления двух пружин | E48: 1 шт. | F48: 1355.13
C49: 728487 | D49: Опора для стрел вилочная стационарная телескопическая, оранжевого цвета, высота регулировки 633 – 1163 мм, не требует установки демпфера 728488 | E49: 1 шт. | F49: 7227.03
C50: 737621 | D50: Монтажная пластина для крепления опоры для стрел | E50: 1 шт. | F50: 1124.8
B51: до 4,9 м, инт.100%, 4 с | D51: Итого: | F51: =F39+F40+F41+F42+F43+F44+F45+F46*2+F47+F48+F49+F50 -> 144339.82
D52: КОМПЛЕКТ ГИДРАВЛИЧЕСКОГО ШЛАГБАУМА 615/2.5 BPR
D53: Состав комплекта:
C54: 10490677 | D54: Шлагбаум гидравлический 615 STD, зимний, RAL2004, для стрел 25х90мм длиной до 4815мм, Ø75мм длиной до 5000мм, левый/правый вариант расположения стрелы | E54: 1 шт. | F54: 70145.53
C55: 428088 | D55: Стрела прямоугольная с демпфером и светоотражающими наклейками, 25х90х2315мм | E55: 1 шт. | F55: 6987.45
C56: 428342 | D56: Крепление для прямоугольных стрел 25х90мм к 615, 617/4, 620 | E56: 1 шт. | F56: 3953.45
C57: 721008 | D57: Пружина балансировочная 5,5 мм для 615 со стрелами 25х90х2316÷2315 мм, D75х2310÷3300 мм | E57: 1 шт. | F57: 2241.28
C58: 490073 | D58: Пластина монтажная с анкерами для шлагбаумов 615 серии | E58: 1 шт. | F58: 3309.65
B59: до 2.3 м, инт. 50%, 6 с | D59: Итого: | F59: =SUM(F54:F58) -> 86637.36
D60: КОМПЛЕКТ ГИДРАВЛИЧЕСКОГО ШЛАГБАУМА 615/3 BPR
D61: Состав комплекта:
C62: 10490677 | D62: Шлагбаум гидравлический 615 STD, зимний, RAL2004, для стрел 25х90мм длиной до 4815мм, Ø75мм длиной до 5000мм, левый/правый вариант расположения стрелы | E62: 1 шт. | F62: 70145.53
C63: 428089 | D63: Стрела прямоугольная с демпфером и светоотражающими наклейками, 25х90х2815мм | E63: 1 шт. | F63: 7609.98
C64: 428342 | D64: Крепление для прямоугольных стрел 25х90мм к 615, 617/4, 620 | E64: 1 шт. | F64: 3953.45
C65: 721005 | D65: Пружина балансировочная 6 мм для 615 со стрелами 25х90х2316÷2815 мм, Ø75х2310÷3300мм | E65: 1 шт. | F65: 2241.28
C66: 490073 | D66: Пластина монтажная с анкерами для шлагбаумов 615 серии | E66: 1 шт. | F66: 3309.65
B67: до 2.8 м, инт. 50%, 6 с | D67: Итого: | F67: =SUM(F62:F66) -> 87259.89
D68: КОМПЛЕКТ ГИДРАВЛИЧЕСКОГО ШЛАГБАУМА 615/4 BPR
D69: Состав комплекта:
C70: 10490677 | D70: Шлагбаум гидравлический 615 STD, зимний, RAL2004, для стрел 25х90мм длиной до 4815мм, Ø75мм длиной до 5000мм, левый/правый вариант расположения стрелы | E70: 1 шт. | F70: 70145.53
C71: 428090 | D71: Стрела прямоугольная с демпфером и светоотражающими наклейками, 25х90х3815мм | E71: 1 шт. | F71: 9097.38
C72: 428342 | D72: Крепление для прямоугольных стрел 25х90мм к 615, 617/4, 620 | E72: 1 шт. | F72: 3953.45
C73: 721006 | D73: Пружина балансировочная 7мм для 615 со стрелами 25х90х2816÷3815мм, Ø75х3310÷4300мм | E73: 1 шт. | F73: 3159.8
C74: 490073 | D74: Пластина монтажная с анкерами для шлагбаумов 615 серии | E74: 1 шт. | F74: 3309.65
B75: до 3.8 м, инт. 50%, 6 с | D75: Итого: | F75: =SUM(F70:F74) -> 89665.81
D76: КОМПЛЕКТ ГИДРАВЛИЧЕСКОГО ШЛАГБАУМА 615/5 BPR
D77: Состав комплекта:
C78: 10490677 | D78: Шлагбаум гидравлический 615 STD, зимний, RAL2004, для стрел 25х90мм длиной до 4815мм, Ø75мм длиной до 5000мм, левый/правый вариант расположения стрелы | E78: 1 шт. | F78: 70145.53
C79: 428091 | D79: Стрела прямоугольная с демпфером и светоотражающими наклейками, 25х90х4815мм | E79: 1 шт. | F79: 9815.18
C80: 428342 | D80: Крепление для прямоугольных стрел 25х90мм к 615, 617/4, 620 | E80: 1 шт. | F80: 3953.45
C81: 721018 | D81: Пружина балансировочная 8мм для 615 со стрелами 25х90х3816÷4815мм, Ø75х4310÷5000мм | E81: 1 шт. | F81: 3942.35
C82: 490073 | D82: Пластина монтажная с анкерами для шлагбаумов 615 серии | E82: 1 шт. | F82: 3309.65
B83: до 4.8 м, инт. 50%, 6 с | D83: Итого: | F83: =SUM(F78:F82) -> 91166.16
D84: КОМПЛЕКТ ГИДРАВЛИЧЕСКОГО ШЛАГБАУМА 615/5 BPR ДЮРАЛАЙТ
D85: Состав комплекта:
C86: 10490677 | D86: Шлагбаум гидравлический 615 STD, зимний, RAL2004, для стрел 25х90мм длиной до 4815мм, Ø75мм длиной до 5000мм, левый/правый вариант расположения стрелы | E86: 1 шт. | F86: 70145.53
C87: 428445 | D87: Крепление для круглых Ø75типа S стрел к 614, 615, 617/4, 620 | E87: 1 шт. | F87: 9815.18
C88: 428002 | D88: Стрела круглая с демпфером Ø75мм тип S 5000мм | E88: 1 шт. | F88: 16642.6
C89: 390993 | D89: Шнур светодиодный дюралайт, 12 метров | E89: 1 шт. | F89: 8356.45
C90: 390081 | D90: Кабель подключения с платой дюралайт для шлагбаумов B614, 615, 617/4 серий | E90: 1 шт. | F90: 8034.55
C91: 490117 | D91: Наклейки светоотражающие на стрелу, комплект 6 шт | E91: 1 шт. | F91: 972.18
C92: 721018 | D92: Пружина балансировочная 8мм для 615 со стрелами 25х90х3816÷4815мм, Ø75х4310÷5000мм | E92: 1 шт. | F92: 3942.35
C93: 490073 | D93: Пластина монтажная с анкерами для шлагбаумов 615 серии | E93: 1 шт. | F93: 3309.65
C94: 728487 | D94: Опора для стрел вилочная стационарная телескопическая, оранжевого цвета, высота регулировки 633 – 1163 мм, не требует установки демпфера 728488 | E94: 1 шт. | F94: 7227.03
C95: 737621 | D95: Монтажная пластина для крепления опоры для стрел | E95: 1 шт. | F95: 1124.8
B96: до 5 м, инт.50%, 6 с | D96: Итого: | F96: =SUM(F86:F95) -> 129570.32
D97: КОМПЛЕКТ ГИДРАВЛИЧЕСКОГО ШЛАГБАУМА 615/5 BPR ДЮРАЛАЙТ
D98: Состав комплекта:
C99: 10490677 | D99: Шлагбаум гидравлический 615 STD, зимний, RAL2004, для стрел 25х90мм длиной до 4815мм, Ø75мм длиной до 5000мм, левый/правый вариант расположения стрелы | E99: 1 шт. | F99: 70145.53
C100: 428445 | D100: Крепление для круглых Ø75типа S стрел к 614, 615, 617/4, 620 | E100: 1 шт. | F100: 9815.18
C101: 428002 | D101: Стрела круглая с демпфером Ø75мм тип S 5000мм | E101: 1 шт. | F101: 16642.6
C102: 390993 | D102: Шнур светодиодный дюралайт, 12 метров | E102: 1 шт. | F102: 8356.45
C103: 390081 | D103: Кабель подключения с платой дюралайт для шлагбаумов B614, 615, 617/4 серий | E103: 1 шт. | F103: 8034.55
C104: 490117 | D104: Наклейки светоотражающие на стрелу, комплект 6 шт | E104: 1 шт. | F104: 972.18
C105: 721018 | D105: Пружина балансировочная 8мм для 615 со стрелами 25х90х3816÷4815мм, Ø75х4310÷5000мм | E105: 1 шт. | F105: 3942.35
C106: 490073 | D106: Пластина монтажная с анкерами для шлагбаумов 615 серии | E106: 1 шт. | F106: 3309.65
C107: 728487 | D107: Опора для стрел вилочная стационарная телескопическая, оранжевого цвета, высота регулировки 633 – 1163 мм, не требует установки демпфера 728488 | E107: 1 шт. | F107: 7227.03
C108: 737621 | D108: Монтажная пластина для крепления опоры для стрел | E108: 1 шт. | F108: 1124.8
B109: до 5 м, инт.50%, 6 с | D109: Итого: | F109: 119972.58
D110: КОМПЛЕКТ ЭЛЕКТРОМЕХАНИЧЕСКОГО ШЛАГБАУМА 617/6 BPR
D111: Состав комплекта:
C112: 1046176 | D112: Шлагбаум электромеханический 617/6, RAL9006, для стрел 50х100мм длиной до 7000мм (снимается с производства в 2021 году, уточняйте доступность) | E112: 1 шт. | F112: 87351.45
C113: 428063 | D113: Стрела прямоугольная со светоотражающими наклейками, 50х100х6000мм | E113: 1 шт. | F113: 17721.15
C114: 428154 | D114: Крепление для прямоугольных стрел 50х100мм к 617/6, 640 | E114: 1 шт. | F114: 8795.83
C115: 00058F1818 | D115: Пружина балансировочная 7мм для 617/6 со стрелами 50х100х5510÷6300мм | E115: 1 шт. | F115: 3814.7
C116: 490095 | D116: =VLOOKUP(C116,$C$291:$D$364,2,0) -> Пластина монтажная с анкерами для шлагбаумов 617 серии | E116: 1 шт. | F116: 4941.35
C117: 728487 | D117: Опора для стрел вилочная стационарная телескопическая, оранжевого цвета, высота регулировки 633 – 1163 мм, не требует установки демпфера 728488 | E117: 1 шт. | F117: 7227.03
C118: 737621 | D118: Монтажная пластина для крепления опоры для стрел | E118: 1 шт. | F118: 1124.8
B119: до 6 м, инт.60%, 7 с | D119: Итого: | F119: =SUM(F112:F118) -> 130976.31
D120: КОМПЛЕКТ ЭЛЕКТРОМЕХАНИЧЕСКОГО ШЛАГБАУМА 617/7 BPR
D121: Состав комплекта:
C122: 1046176 | D122: Шлагбаум электромеханический 617/6, RAL9006, для стрел 50х100мм длиной до 7000мм (снимается с производства в 2021 году, уточняйте доступность) | E122: 1 шт. | F122: 87351.45
C123: 428064 | D123: Стрела прямоугольная со светоотражающими наклейками, 50х100х7000мм | E123: 1 шт. | F123: 22764.25
C124: 428154 | D124: Крепление для прямоугольных стрел 50х100мм к 617/6, 640 | E124: 1 шт. | F124: 8795.83
C125: 6100024 | D125: Пружина балансировочная 8,5мм для 617/6 со стрелами 50х100х6310÷7000мм | E125: 1 шт. | F125: 5724.83
C126: 490095 | D126: =VLOOKUP(C126,$C$291:$D$364,2,0) -> Пластина монтажная с анкерами для шлагбаумов 617 серии | E126: 1 шт. | F126: 4941.35
C127: 728487 | D127: Опора для стрел вилочная стационарная телескопическая, оранжевого цвета, высота регулировки 633 – 1163 мм, не требует установки демпфера 728488 | E127: 1 шт. | F127: 7227.03
C128: 737621 | D128: Монтажная пластина для крепления опоры для стрел | E128: 1 шт. | F128: 1124.8
B129: до 7 м, инт.60%, 8 с | D129: Итого: | F129: =SUM(F122:F128) -> 137929.54
D130: КОМПЛЕКТ ГИДРАВЛИЧЕСКОГО ШЛАГБАУМА 640/6 STD
D131: Состав комплекта:
C132: 104684877 | D132: Шлагбаум гидравлический 640 LH, левое расположение стрелы, встроенный 2-х канальных детектор индукционных петель, зимний, RAL2004, для стрел 50х100х5250÷6740мм | E132: 1 шт. | F132: 158397
C133: 428063 | D133: Стрела прямоугольная со светоотражающими наклейками, 50х100х6000мм | E133: 1 шт. | F133: 17721.15
C134: 428154 | D134: Крепление для прямоугольных стрел 50х100мм к 617/6, 640 | E134: 1 шт. | F134: 8795.83
C135: 490059 | D135: Пластина монтажная для шлагбаумов 640 SR, 640 серий | E135: 1 шт. | F135: 8443.4
C136: 728487 | D136: Опора для стрел вилочная стационарная телескопическая, оранжевого цвета, высота регулировки 633 – 1163 мм, не требует установки демпфера 728488 | E136: 1 шт. | F136: 7227.03
C137: 737621 | D137: Монтажная пластина для крепления опоры для стрел | E137: 1 шт. | F137: 1124.8
B138: до 6 м, инт.100%, 6 с | D138: Итого: | F138: =SUM(F132:F137) -> 201709.21
D139: КОМПЛЕКТ ГИДРАВЛИЧЕСКОГО ШЛАГБАУМА 640/7 STD
D140: Состав комплекта:
C141: 104685877 | D141: Шлагбаум гидравлический 640 LH, левое расположение стрелы, встроенный 2-х канальных детектор индукционных петель, зимний, RAL2004, для стрел 50х100х6750÷7000мм | E141: 1 шт. | F141: 156702.4
C142: 428064 | D142: Стрела прямоугольная со светоотражающими наклейками, 50х100х7000мм | E142: 1 шт. | F142: 22764.25
C143: 428154 | D143: Крепление для прямоугольных стрел 50х100мм к 617/6, 640 | E143: 1 шт. | F143: 8795.83
C144: 490059 | D144: Пластина монтажная для шлагбаумов 620 SR, 640 серий | E144: 1 шт. | F144: 8443.4
C145: 728487 | D145: Опора для стрел вилочная стационарная телескопическая, оранжевого цвета, высота регулировки 633 – 1163 мм, не требует установки демпфера 728488 | E145: 1 шт. | F145: 7227.03
C146: 737621 | D146: Монтажная пластина для крепления опоры для стрел | E146: 1 шт. | F146: 1124.8
B147: до 7 м, инт.100%, 7 с | D147: Итого: | F147: =SUM(F141:F146) -> 205057.71
D148: КОМПЛЕКТ ГИДРАВЛИЧЕСКОГО ШЛАГБАУМА 620/5 STD
D149: Состав комплекта:
C150: 104622877 | D150: Шлагбаум гидравлический 620 LH, левое расположение стрелы, встроенный 2-х канальных детектор индукционных петель, зимний, RAL2004, для стрел 25х90х3825÷4815мм и Ø75мм длиной до 5000мм, | E150: 1 шт. | F150: 162343.05
C151: 428091 | D151: Стрела прямоугольная с демпфером и светоотражающими наклейками, 25х90х4815мм | E151: 1 шт. | F151: 9815.18
C152: 490058 | D152: Пластина монтажная с анкерами для шлагбаумов 620 серии | E152: 1 шт. | F152: 7832.9
C153: 428342 | D153: Крепление для прямоугольных стрел 25х90мм к 615, 617/4, 620 | E153: 1 шт. | F153: 3953.45
B154: до 4.8 м, инт.70%, 4,5 с | D154: Итого: | F154: =SUM(F150:F153) -> 183944.58
D155: КОМПЛЕКТ ГИДРАВЛИЧЕСКОГО ШЛАГБАУМА 620/5 STD ДЮРАЛАЙТ
D156: Состав комплекта:
C157: 104622877 | D157: Шлагбаум гидравлический 620 LH, левое расположение стрелы, встроенный 2-х канальных детектор индукционных петель, зимний, RAL2004, для стрел 25х90х3825÷4815мм и Ø75мм длиной до 5000мм, | E157: 1 шт. | F157: 162343.05
C158: 428445 | D158: Крепление для круглых Ø75типа S стрел к 614, 615, 617/4, 620 | E158: 1 шт. | F158: 9815.18
C159: 428002 | D159: Стрела круглая с демпфером Ø75мм тип S 5000мм | E159: 1 шт. | F159: 16642.6
C160: 390993 | D160: Шнур светодиодный дюралайт, 12 метров | E160: 1 шт. | F160: 8356.45
C161: 390992 | D161: Принадлежности для подключения светодиодного шнура дюралайт к шлагбаумам 620, 642, В680 Н серий | E161: 1 шт. | F161: 1884.23
C162: 390992 | D162: Принадлежности для подключения светодиодного шнура дюралайт к шлагбаумам B614, 620, В680 Н серий | E162: 1 шт. | F162: 1884.23
C163: 490117 | D163: Наклейки светоотражающие на стрелу, комплект 6 шт | E163: 1 шт. | F163: 972.18
C164: 490058 | D164: Пластина монтажная с анкерами для шлагбаумов 620 серии | E164: 1 шт. | F164: 7832.9
C165: 728487 | D165: Опора для стрел вилочная стационарная телескопическая, оранжевого цвета, высота регулировки 633 – 1163 мм, не требует установки демпфера 728488 | E165: 1 шт. | F165: 7227.03
C166: 737621 | D166: Монтажная пластина для крепления опоры для стрел | E166: 1 шт. | F166: 1124.8
B167: до 5 м, 70%, 4,5 с | D167: Итого: | F167: =SUM(F157:F166) -> 218082.65
D168: КОМПЛЕКТ ГИДРАВЛИЧЕСКОГО ШЛАГБАУМА 620/4 RPD
D169: Состав комплекта:
C170: 104635877 | D170: Шлагбаум гидравлический 620 RPD LH, левое расположение стрелы, встроенный 2-х канальных детектор индукционных петель, зимний, RAL2004, для стрел 25х90х3065÷3815мм | E170: 1 шт. | F170: 164996.88
C171: 428090 | D171: Стрела прямоугольная с демпфером и светоотражающими наклейками, 25х90х3815мм | E171: 1 шт. | F171: 9097.38
C172: 428342 | D172: Крепление для прямоугольных стрел 25х90мм к 615, 617/4, 620 | E172: 1 шт. | F172: 3953.45
C173: 490058 | D173: Пластина монтажная с анкерами для шлагбаумов 620 серии | E173: 1 шт. | F173: 7832.9
B174: до 3.8 м, инт. 100%, 3 с | D174: Итого: | F174: =SUM(F170:F173) -> 185880.61
D175: КОМПЛЕКТ ГИДРАВЛИЧЕСКОГО ШЛАГБАУМА 620/2.5 SR С ПРЯМОУГОЛЬНОЙ СТРЕЛОЙ
D176: Состав комплекта:
C177: 10476177 | D177: Шлагбаум гидравлический 620 SR RH, правое расположение стрелы, встроенный 2-х канальных детектор индукционных петельзимний, RAL2004, для стрел 25х90х2065÷2305мм, поворотных Ø85мм 2250÷3000мм | E177: 1 шт. | F177: 213526.08
C178: 428088 | D178: Стрела прямоугольная с демпфером и светоотражающими наклейками, 25х90х2315мм | E178: 1 шт. | F178: 6987.45
C179: 428344 | D179: Крепление для прямоугольных стрел 25х90мм к 620 SR (может является заменой 428342) | E179: 1 шт. | F179: 3300.955
C180: 490059 | D180: Пластина монтажная для шлагбаумов 620 SR, 640 серий | E180: 1 шт. | F180: 8443.4
B181: до 2.3 м, инт. 100%, 0,8 с | D181: Итого: | F181: =SUM(F177:F180) -> 232257.885
D182: КОМПЛЕКТ ГИДРАВЛИЧЕСКОГО ШЛАГБАУМА 620/3 SR С ОТКИДНОЙ СТРЕЛОЙ
D183: Состав комплекта:
C184: 10476177 | D184: Шлагбаум гидравлический 620 SR RH, правое расположение стрелы, встроенный 2-х канальных детектор индукционных петельзимний, RAL2004, для стрел 25х90х2065÷2305мм, поворотных Ø85мм 2250÷3000мм | E184: 1 шт. | F184: 213526.08
C185: 428175 | D185: Стрела круглая поворотная Ø85мм со светоотражающими наклейками 2500мм | E185: 1 шт. | F185: 14809.25
C186: 428163 | D186: Крепление для круглых Ø85мм поворотных стрел к 620, 642, В680 Н, нержавеющая сталь | E186: 1 шт. | F186: 35871.5
C187: 490059 | D187: Пластина монтажная для шлагбаумов 620 SR, 640 серий | E187: 1 шт. | F187: 8443.4
B188: до 3 м, инт. 100%, 0,8 с | D188: Итого: | F188: =SUM(F184:F187) -> 272650.23
D189: КОМПЛЕКТ ГИДРАВЛИЧЕСКОГО ШЛАГБАУМА B680H/3 C ОТКИДНОЙ СТРЕЛОЙ
D190: Состав комплекта:
C191: 10468077 | D191: Шлагбаум гидравлический гибридный В680 Н, встроенный энкодер чувствительности к препятствиям,2-х канальный детектор индукционный петель, зимний, левый/правый вариант расположения стрелы, без кожуха | E191: 1 шт. | F191: 140732.28
C192: 416016 | D192: Кожух шлагбаума B680H, красный RAL 3020 | E192: 1 шт. | F192: 40644.5
C193: 428175 | D193: Стрела круглая поворотная Ø85мм со светоотражающими наклейками 2500мм | E193: 1 шт. | F193: 14809.25
C194: 428163 | D194: Крепление для круглых Ø85мм поворотных стрел к 620, 642, В680 Н, нержавеющая сталь | E194: 1 шт. | F194: 35871.5
C195: 63000169 | D195: Пружина балансировочная для B680 H с круглой поворотной стрелой Ø85мм | E195: 1 шт. | F195: 15032.18
C196: 490139 | D196: Пластина монтажная с анкерами для шлагбаума B680 H | E196: 1 шт. | F196: 7861.58
B197: до 3 м, инт. 100%, 2.5 с | D197: Итого: | F197: =SUM(F191:F196) -> 254951.29
D198: КОМПЛЕКТ ГИДРАВЛИЧЕСКОГО ШЛАГБАУМА B680H/3
D199: Состав комплекта:
C200: 10468077 | D200: Шлагбаум гидравлический гибридный В680 Н, встроенный энкодер чувствительности к препятствиям,2-х канальный детектор индукционный петель, зимний, левый/правый вариант расположения стрелы, без кожуха | E200: 1 шт. | F200: 140732.28
C201: 416016 | D201: Кожух шлагбаума B680H, красный RAL 3020 | E201: 1 шт. | F201: 40644.5
C202: 428042 | D202: Стрела круглая с демпфером Ø75мм тип S 3300мм | E202: 1 шт. | F202: 11535.68
... 162 more rows

Sheet Болларды
E2: ВАША СКИДКА: | F2: 0 | G2: ВАШ ЗАКАЗ:
B3: Технические характеристики | C3: Код артикула | D3: ДОРОЖНЫЕ БЛОКИРАТОРЫ | E3: Компл. | F3: Розничная цена, руб. | G3: Кол-во, шт. | H3: Ваш заказ с учётом скидки, руб.
D4: ДОРОЖНЫЕ БЛОКИРАТОРЫ ИЗ ОКРАШЕННОЙ СТАЛИ
D5: КОМПЛЕКТ ДОРОЖНОГО БЛОКИРАТОРА J200 ВЫСОТОЙ 600 ММ, ОКРАШЕННАЯ СТАЛЬ, СРЕДНЕИНТЕНСИВНОГО ИСПОЛЬЗОВАНИЯ
D6: Состав комплекта:
C7: 116500 | D7: Блокиратор дорожный автоматический J200 HA высотой 600 мм, окрашенная сталь, диаметр столба 200мм, чувствительность к препятствиям (опция), экстренное опускание при отсутствии электропитания (опция), подъем/опуск - 5/7 сек, 230 Ватт, -40…+55 град. | E7: 1 шт. | F7: 261524.33 | H7: =IF(G7<>"",F7*G7*(1-F$2),"") -> 
C8: 116300 | D8: Блок управления JE275 в уличном корпусе, контролирует синхронно до 3 дорожных блокираторов J200 HA, J275 HA, J275 HA 2K20 или 1 боллард серии JS | E8: 1 шт. | F8: 28410.45 | H8: =IF(G8<>"",F8*G8*(1-F$2),"") -> 
C9: 116504 | D9: Лампы светодиоднные, комплект для J200 HA, J200 F | E9: 1 шт. | F9: 5205.9 | H9: =IF(G9<>"",F9*G9*(1-F$2),"") -> 
C10: 116503 | D10: Оповещатель звуковой для J200 HA | E10: 1 шт. | F10: 2722.28 | H10: =IF(G10<>"",F10*G10*(1-F$2),"") -> 
C11: 116501 | D11: Нагреватель для J200 HA | E11: 1 шт. | F11: 38286.68 | H11: =IF(G11<>"",F11*G11*(1-F$2),"") -> 
B12: J200 HA 600 | D12: Итого: | F12: =SUM(F7:F11) -> 336149.64 | H12: =SUM(H7:H11) -> 0
D13: КОМПЛЕКТ ДОРОЖНОГО БЛОКИРАТОРА J275 HA V2 ВЫСОТОЙ 600 ММ, ОКРАШЕННАЯ СТАЛЬ, ИНТЕНСИВНОГО ИСПОЛЬЗОВАНИЯ
D14: Состав комплекта:
C15: 116006 | D15: Блокиратор дорожный автоматический J275 HA V2 высотой 600 мм, окрашенная сталь, диаметр столба 275мм, чувствительность к препятствиям, экстренное опускание при отсутствии электропитания, подъем/опуск - 5/3.5 сек, 575 Ватт, -40…+55 град. | E15: 1 шт. | F15: 406791.88 | H15: =IF(G15<>"",F15*G15*(1-F$2),"") -> 
C16: 1161001 | D16: Короб фундаментный дорожного блокиратора J275 НА, J275 SА высотой 600 мм | E16: 1 шт. | F16: 69792.18 | H16: =IF(G16<>"",F16*G16*(1-F$2),"") -> 
C17: 116300 | D17: Блок управления JE275 в уличном корпусе, контролирует синхронно до 3 дорожных блокираторов J200 HA, J275 HA, J275 HA 2K20 или 1 боллард серии JS | E17: 1 шт. | F17: 28410.45 | H17: =IF(G17<>"",F17*G17*(1-F$2),"") -> 
C18: 116200 | D18: Нагреватель для J275 НА | E18: 1 шт. | F18: 38101.68 | H18: =IF(G18<>"",F18*G18*(1-F$2),"") -> 
B19: J275 V2 HA 600 | F19: =SUM(F15:F18) -> 543096.19 | H19: =SUM(H15:H18) -> 0
D20: КОМПЛЕКТ ДОРОЖНОГО БЛОКИРАТОРА J275 V2 ВЫСОТОЙ 800 ММ, ОКРАШЕННАЯ СТАЛЬ, ИНТЕНСИВНОГО ИСПОЛЬЗОВАНИЯ
D21: Состав комплекта:
C22: 116007 | D22: Блокиратор дорожный автоматический J275 HA V2 высотой 800 мм, окрашенная сталь, диаметр столба 275мм, чувствительность к препятствиям, экстренное опускание при отсутствии электропитания, подъем/опуск - 7/4.5 сек, 575 Ватт, -40…+55 град. | E22: 1 шт. | F22: 426168.78 | H22: =IF(G22<>"",F22*G22*(1-F$2),"") -> 
C23: 1161001 | D23: Короб фундаментный дорожного блокиратора J275 НА, J275 SА высотой 600 мм | E23: 1 шт. | F23: 69792.18 | H23: =IF(G23<>"",F23*G23*(1-F$2),"") -> 
C24: 1161011 | D24: Удлинитель фундаментного короба для дорожного блокиратора JP275 высотой 800 мм | E24: 1 шт. | F24: 10668.03 | H24: =IF(G24<>"",F24*G24*(1-F$2),"") -> 
C25: 116300 | D25: Блок управления JE275 в уличном корпусе, контролирует синхронно до 3 дорожных блокираторов J200 HA, J275 HA, J275 HA 2K20 или 1 боллард серии JS | E25: 1 шт. | F25: 28410.45 | H25: =IF(G25<>"",F25*G25*(1-F$2),"") -> 
C26: 116200 | D26: Нагреватель для J275 НА | E26: 1 шт. | F26: 38101.68 | H26: =IF(G26<>"",F26*G26*(1-F$2),"") -> 
B27: J275 V2 HA 800 | D27: Итого: | F27: =SUM(F22:F26) -> 573141.12 | H27: =SUM(H22:H26) -> 0
D28: КОМПЛЕКТ ДОРОЖНОГО БЛОКИРАТОРА J275 SA ВЫСОТОЙ 600 ММ, ОКРАШЕННАЯ СТАЛЬ, С РУЧНЫМ УПРАВЛЕНИЕМ
D29: Состав комплекта:
C30: 116050 | D30: Блокиратор дорожный полуавтоматический J275 SA высотой 600 мм из окрашенной стали, ручное управление, опускается вручную, поднимается с помощью пневнопоршня. Не требует подведения электропитания, если не используются светодиодные огни. | E30: 1 шт. | F30: 338165.2 | H30: =IF(G30<>"",F30*G30*(1-F$2),"") -> 
C31: 1161001 | D31: Короб фундаментный дорожного блокиратора J275 НА, J275 SА высотой 600 мм | E31: 1 шт. | F31: 69792.18 | H31: =IF(G31<>"",F31*G31*(1-F$2),"") -> 
B32: J275 SA 600 | D32: Итого: | F32: =SUM(F30:F31) -> 407957.38 | H32: =SUM(H30:H31) -> 0
D33: ДОРОЖНЫЕ БЛОКИРАТОРЫ ИЗ НЕРЖАВЕЮЩЕЙ СТАЛИ AISI 316
D34: КОМПЛЕКТ ДОРОЖНОГО БЛОКИРАТОРА J200 ВЫСОТОЙ 600 ММ, ШЛИФОВАННАЯ НЕРЖАВЕЮЩАЯ СТАЛЬ AISI 316, СРЕДНЕИНТЕНСИВНОГО ИСПОЛЬЗОВАНИЯ
D35: Состав комплекта:
C36: 116505 | D36: Блокиратор дорожный автоматический J200 HA высотой 600 мм, нержавеющая сталь, диаметр столба 200мм, чувствительность к препятствиям (опция), экстренное опускание при отсутствии электропитания (опция), подъем/опуск - 5/7 сек, 230 Ватт, -40…+55 град. | E36: 1 шт. | F36: 331581.98 | H36: =IF(G36<>"",F36*G36*(1-F$2),"") -> 
C37: 116300 | D37: Блок управления JE275 в уличном корпусе, контролирует синхронно до 3 дорожных блокираторов J200 HA, J275 HA, J275 HA 2K20 или 1 боллард серии JS | E37: 1 шт. | F37: 28410.45 | H37: =IF(G37<>"",F37*G37*(1-F$2),"") -> 
C38: 116504 | D38: Лампы светодиоднные, комплект для J200 HA, J200 F | E38: 1 шт. | F38: 5205.9 | H38: =IF(G38<>"",F38*G38*(1-F$2),"") -> 
C39: 116503 | D39: Оповещатель звуковой для J200 HA | E39: 1 шт. | F39: 2722.28 | H39: =IF(G39<>"",F39*G39*(1-F$2),"") -> 
C40: 116501 | D40: Нагреватель для J200 HA | E40: 1 шт. | F40: 38286.68 | H40: =IF(G40<>"",F40*G40*(1-F$2),"") -> 
B41: J200 | D41: Итого: | F41: =SUM(F36:F40) -> 406207.29 | H41: =SUM(H36:H40) -> 0
D42: КОМПЛЕКТ ДОРОЖНОГО БЛОКИРАТОРА J275 V2 ВЫСОТОЙ 600 ММ, ШЛИФОВАННАЯ НЕРЖАВЕЮЩАЯ СТАЛЬ AISI 316, ИНТЕНСИВНОГО ИСПОЛЬЗОВАНИЯ
D43: Состав комплекта:
C44: 116036 | D44: Блокиратор дорожный автоматический J275 HA V2 высотой 600 мм, нержавеющая сталь, диаметр столба 275мм, чувствительность к препятствиям, экстренное опускание при отсутствии электропитания, подъем/опуск - 5/3.5 сек, 575 Ватт, -40…+55 град. | E44: 1 шт. | F44: 498520.43 | H44: =IF(G44<>"",F44*G44*(1-F$2),"") -> 
C45: 1161001 | D45: Короб фундаментный дорожного блокиратора J275 НА, J275 SА высотой 600 мм | E45: 1 шт. | F45: 69792.18 | H45: =IF(G45<>"",F45*G45*(1-F$2),"") -> 
C46: 116300 | D46: Блок управления JE275 в уличном корпусе, контролирует синхронно до 3 дорожных блокираторов J200 HA, J275 HA, J275 HA 2K20 или 1 боллард серии JS | E46: 1 шт. | F46: 28410.45 | H46: =IF(G46<>"",F46*G46*(1-F$2),"") -> 
C47: 116200 | D47: Нагреватель для J275 НА | E47: 1 шт. | F47: 38101.68 | H47: =IF(G47<>"",F47*G47*(1-F$2),"") -> 
D48: Итого: | F48: =SUM(F44:F47) -> 634824.74 | H48: =SUM(H44:H47) -> 0
D49: КОМПЛЕКТ ДОРОЖНОГО БЛОКИРАТОРА J275 ВЫСОТОЙ 800 ММ, ШЛИФОВАННАЯ НЕРЖАВЕЮЩАЯ СТАЛЬ AISI 316, ИНТЕНСИВНОГО ИСПОЛЬЗОВАНИЯ
D50: Состав комплекта:
C51: 116037 | D51: Блокиратор дорожный автоматический J275 HA V2 высотой 800 мм, нержавеющая сталь, диаметр столба 275мм, чувствительность к препятствиям, экстренное опускание при отсутствии электропитания, подъем/опуск - 7/4.5 сек, 575 Ватт, -40…+55 град. | E51: 1 шт. | F51: 548372.38 | H51: =IF(G51<>"",F51*G51*(1-F$2),"") -> 
C52: 1161001 | D52: Короб фундаментный дорожного блокиратора J275 НА, J275 SА высотой 600 мм | E52: 1 шт. | F52: 69792.18 | H52: =IF(G52<>"",F52*G52*(1-F$2),"") -> 
C53: 1161011 | D53: Удлинитель фундаментного короба для дорожного блокиратора JP275 высотой 800 мм | E53: 1 шт. | F53: 10668.03 | H53: =IF(G53<>"",F53*G53*(1-F$2),"") -> 
C54: 116300 | D54: Блок управления JE275 в уличном корпусе, контролирует синхронно до 3 дорожных блокираторов J200 HA, J275 HA, J275 HA 2K20 или 1 боллард серии JS | E54: 1 шт. | F54: 28410.45 | H54: =IF(G54<>"",F54*G54*(1-F$2),"") -> 
C55: 116200 | D55: Нагреватель для J275 НА | E55: 1 шт. | F55: 38101.68 | H55: =IF(G55<>"",F55*G55*(1-F$2),"") -> 
D56: Итого: | F56: =SUM(F51:F55) -> 695344.72 | H56: =SUM(H51:H55) -> 0
D57: КОМПЛЕКТ ДОРОЖНОГО БЛОКИРАТОРА J275 SA ВЫСОТОЙ 600 ММ, ШЛИФОВАННАЯ НЕРЖАВЕЮЩАЯ СТАЛЬ AISI 316
D58: Состав комплекта:
C59: 116060 | D59: Блокиратор дорожный полуавтоматический J275 SA высотой 600 мм из нержавеющей стали, ручное управление, опускается вручную, поднимается с помощью пневнопоршня. Не требует подведения электропитания, если не используются светодиодные огни. | E59: 1 шт. | F59: 422532.6 | H59: =IF(G59<>"",F59*G59*(1-F$2),"") -> 
C60: 1161001 | D60: Короб фундаментный дорожного блокиратора J275 НА, J275 SА высотой 600 мм | E60: 1 шт. | F60: 69792.18 | H60: =IF(G60<>"",F60*G60*(1-F$2),"") -> 
D61: Итого: | F61: =SUM(F59:F60) -> 492324.78 | H61: =SUM(H59:H60) -> 0
D62: СТАЦИОНАРНЫЕ И ПОЛУАВТОМАТИЧЕСКИЕ ДОРОЖНЫЕ БЛОКИРАТОРЫ
C63: 116506 | D63: Блокиратор дорожный стационарный J200 F высотой 600 мм | E63: 1 шт. | F63: 119645.05 | H63: =IF(G63<>"",F63*G63*(1-F$2),"") -> 
C64: 116020 | D64: Блокиратор дорожный стационарный J275 F высотой 600 мм | E64: 1 шт. | F64: 124233.05 | H64: =IF(G64<>"",F64*G64*(1-F$2),"") -> 
C65: 116021 | D65: Блокиратор дорожный стационарный J275 F высотой 800 мм | E65: 1 шт. | F65: 114703.7
C66: 116040 | D66: Блокиратор дорожный стационарный J275 F высотой 600 мм, нержавеющая сталь | E66: 1 шт. | F66: 158113.95
C67: 116041 | D67: Блокиратор дорожный стационарный J275 F высотой 800 мм, нержавеющая сталь | E67: 1 шт. | F67: 282347
C68: 116508 | D68: Блокиратор дорожный полуавтоматический J200 SA высотой 600 мм | E68: 1 шт. | F68: 215788.63
C69: 116509 | D69: Блокиратор дорожный полуавтоматический J200 SA высотой 600 мм, нерж. сталь | E69: 1 шт. | F69: 278920.8
D70: ДОПОЛНИТЕЛЬНОЕ ОБОРУДОВАНИЕ И ОПЦИИ ДЛЯ БОЛЛАРДОВ
C71: 116120 | D71: Пластина монтажная JPF275 для стационарных дорожных блокираторов J275 F | E71: 1 шт. | F71: 15055.3 | H71: =IF(G71<>"",F71*G71*(1-F$2),"") -> 
C72: 1161011 | D72: Удлинитель фундаментного короба для дорожного блокиратора JP275 HA/SA 800 мм | E72: 1 шт. | F72: 10668.03
C73: 116502 | D73: Гидравлический клапан аварийного опускания болларда и добавление функции чувствительности к препятствиям для болларда J200 | E73: 1 шт. | F73: 27992.35
C74: 390084 | D74: Дополнительный ключ разблокировки боллардов серии J200 SA и J275 SA (компл. 5 шт.) | E74: 1 шт. | F74: 6487.95
C75: 116201 | D75: Крышка болларда JC275 для J275 всех серий. Используется как заглушка на дорожном покрытии при демонтаже болларда, например во время технического обслуживания. | E75: 1 шт. | F75: 13532.75 | H75: =IF(G75<>"",F75*G75*(1-F$2),"") -> 
C76: 116104 | D76: Крышка столба болларда J275 всех серий HA с функцией "антиболгарка" | E76: 1 шт. | F76: по запросу
D77: ПРОТИВОТАРАННЫЙ ВЫДВИЖНОЙ БЛОКИРАТОР J275 2K20 800 мм ОКРАШЕННАЯ СТАЛЬ
D78: Состав комплекта:
C79: 116401 | D79: Блокиратор дорожный автоматический противотаранный J275 HA 2K20 высотой 800 мм, окрашенная сталь, энергия удара 673 000 Дж, сертификат краштеста TC 6.8 тонн при 48 км/ч для спаренной установки, чувствительность к препятствиям (опция), экстренное опускание при отсутствии электропитания (опция), подъем/опуск - 8/4.5 сек, 575 Ватт, -40…+55 град. | E79: 1 шт. | F79: по запросу | H79: =IF(G79<>"",F79*G79*(1-F$2),"") -> 
C80: 116140 | D80: Короб фундаментный дорожного блокиратора J275 2K20 НА, высотой 800 мм | E80: 1 шт. | F80: по запросу | H80: =IF(G80<>"",F80*G80*(1-F$2),"") -> 
C81: 116300 | D81: Блок управления JE275 в уличном корпусе, контролирует синхронно до 3 дорожных блокираторов J200 HA, J275 HA, J275 HA 2K20 или 1 боллард серии JS | E81: 1 шт. | F81: по запросу | H81: =IF(G81<>"",F81*G81*(1-F$2),"") -> 
C82: 116200 | D82: Нагреватель для J275 НА | E82: 1 шт. | F82: по запросу | H82: =IF(G82<>"",F82*G82*(1-F$2),"") -> 
B83: J275 HA 2K20 H800 | D83: Итого: | F83: =SUM(F79:F82) -> 0 | H83: =SUM(H79:H82) -> 0
D84: ПРОТИВОТАРАННЫЙ ВЫДВИЖНОЙ БЛОКИРАТОР J275 2K20 800 мм ШЛИФОВАННАЯ НЕРЖАВЕЮЩАЯ СТАЛЬ
D85: Состав комплекта:
C86: 116431 | D86: Блокиратор дорожный автоматический противотаранный J275 HA 2K20 высотой 800 мм, нержавеющая сталь, энергия удара 673 000 Дж, сертификат краштеста TC 6.8 тонн при 48 км/ч для спаренной установки, чувствительность к препятствиям (опция), экстренное опускание при отсутствии электропитания (опция), подъем/опуск - 8/4.5 сек, 575 Ватт, -40…+55 град. | E86: 1 шт. | F86: по запросу | H86: =IF(G86<>"",F86*G86*(1-F$2),"") -> 
C87: 116140 | D87: Короб фундаментный дорожного блокиратора J275 2K20 НА, высотой 800 мм | E87: 1 шт. | F87: по запросу | H87: =IF(G87<>"",F87*G87*(1-F$2),"") -> 
C88: 116300 | D88: Блок управления JE275 в уличном корпусе, контролирует синхронно до 3 дорожных блокираторов J200 HA, J275 HA, J275 HA 2K20 или 1 боллард серии JS | E88: 1 шт. | F88: по запросу | H88: =IF(G88<>"",F88*G88*(1-F$2),"") -> 
C89: 116200 | D89: Нагреватель для J275 НА | E89: 1 шт. | F89: по запросу | H89: =IF(G89<>"",F89*G89*(1-F$2),"") -> 
D90: Итого: | F90: =SUM(F86:F89) -> 0 | H90: =SUM(H86:H89) -> 0
D91: ПРОТИВОТАРАННЫЙ ВЫДВИЖНОЙ БЛОКИРАТОР JS 48 HA 1000 ММ СО СМЕННЫМ КОЖУХОМ ИЗ ПОЛИМЕРА mDURE
D92: Состав комплекта:
C93: 117001 | D93: Блокиратор дорожный автоматический противотаранный JS 48 HA диаметром 275 мм и высотой 1000 мм, cо сменным износостойким кожухом из полимера mDure, энергия удара 673 000 Дж, сертификат краштеста TC 7.5 тонн при 48 км/ч при одиночной установке, ручная помпа (опция) для управления без электропитания, скорость подъема/опуска 6/2 сек, 3500Ватт, -40...+55 град. | E93: 1 шт. | F93: по запросу | H93: =IF(G93<>"",F93*G93*(1-F$2),"") -> 
C94: 117901 | D94: Короб фундаментный дорожного блокиратора JS, высотой 1000 мм | E94: 1 шт. | F94: по запросу | H94: =IF(G94<>"",F94*G94*(1-F$2),"") -> 
C95: 116300 | D95: Блок управления JE275 в уличном корпусе, контролирует синхронно до 3 дорожных блокираторов J200 HA, J275 HA, J275 HA 2K20 или 1 боллард серии JS | E95: 1 шт. | F95: по запросу | H95: =IF(G95<>"",F95*G95*(1-F$2),"") -> 
C96: 117906 | D96: Нагреватель для болларда JS | E96: 1 шт. | F96: по запросу | H96: =IF(G96<>"",F96*G96*(1-F$2),"") -> 
B97: JS 48 HA | D97: Итого: | F97: =SUM(F93:F96) -> 0 | H97: =SUM(H93:H96) -> 0
D98: ПРОТИВОТАРАННЫЙ ВЫДВИЖНОЙ БЛОКИРАТОР JS 48 INOX HA 1000 ММ НЕРЖАВЕЮЩАЯ СТАЛЬ
D99: Состав комплекта:
C100: 117201 | D100: Блокиратор дорожный автоматический противотаранный JS 48 HA INOX диаметром 275 мм и высотой 1000 мм, нержавеющая сталь, энергия удара 673 000 Дж, сертификат краштеста TC 7.5 тонн при 48 км/ч при одиночной установке, ручная помпа (опция) для управления без электропитания, скорость подъема/опуска 6/2 сек, 3500Ватт, -40...+55 град. | E100: 1 шт. | F100: по запросу | H100: =IF(G100<>"",F100*G100*(1-F$2),"") -> 
C101: 117901 | D101: Короб фундаментный дорожного блокиратора JS, высотой 1000 мм | E101: 1 шт. | F101: по запросу | H101: =IF(G101<>"",F101*G101*(1-F$2),"") -> 
C102: 116300 | D102: Блок управления JE275 в уличном корпусе, контролирует синхронно до 3 дорожных блокираторов J200 HA, J275 HA, J275 HA 2K20 или 1 боллард серии JS | E102: 1 шт. | F102: по запросу | H102: =IF(G102<>"",F102*G102*(1-F$2),"") -> 
C103: 117906 | D103: Нагреватель для болларда JS | E103: 1 шт. | F103: по запросу | H103: =IF(G103<>"",F103*G103*(1-F$2),"") -> 
D104: Итого: | F104: =SUM(F100:F103) -> 0 | H104: =SUM(H100:H103) -> 0
D105: ПРОТИВОТАРАННЫЙ ВЫДВИЖНОЙ БЛОКИРАТОР JS 48 HA EFO 1000 ММ СО СМЕННЫМ КОЖУХОМ ИЗ ПОЛИМЕРА mDURE
D106: Состав комплекта:
C107: 117051 | D107: Блокиратор дорожный автоматический противотаранный JS 48 HA EFO диаметром 275 мм и высотой 1000 мм, cо сменным износостойким кожухом из полимера mDure, энергия удара 673 000 Дж, сертификат краштеста TC 7.5 тонн при 48 км/ч при одиночной установке, EFO (Emergency Fast Operation) - функция экстренного подъема за 1.5 сек без электропитания, ручная помпа (опция) для управления без электропитания, скорость подъема/опуска 6/2 сек, 3500Ватт, -40...+55 град. | E107: 1 шт. | F107: по запросу | H107: =IF(G107<>"",F107*G107*(1-F$2),"") -> 
C108: 117901 | D108: Короб фундаментный дорожного блокиратора JS, высотой 1000 мм | E108: 1 шт. | F108: по запросу | H108: =IF(G108<>"",F108*G108*(1-F$2),"") -> 
C109: 116300 | D109: Блок управления JE275 в уличном корпусе, контролирует синхронно до 3 дорожных блокираторов J200 HA, J275 HA, J275 HA 2K20 или 1 боллард серии JS | E109: 1 шт. | F109: по запросу | H109: =IF(G109<>"",F109*G109*(1-F$2),"") -> 
C110: 117906 | D110: Нагреватель для болларда JS | E110: 1 шт. | F110: по запросу | H110: =IF(G110<>"",F110*G110*(1-F$2),"") -> 
B111: JS 48 HA EFO | D111: Итого: | F111: =SUM(F107:F110) -> 0 | H111: =SUM(H107:H110) -> 0
D112: ПРОТИВОТАРАННЫЙ ВЫДВИЖНОЙ БЛОКИРАТОР JS 48 HA EFO INOX 1000 ММ НЕРЖАВЕЮЩАЯ СТАЛЬ
D113: Состав комплекта:
C114: 117251 | D114: Блокиратор дорожный автоматический противотаранный JS 48 HA EFO INOX диаметром 275 мм и высотой 1000 мм, cо сменным износостойким кожухом из полимера mDure, энергия удара 673 000 Дж, сертификат краштеста TC 7.5 тонн при 48 км/ч при одиночной установке, EFO (Emergency Fast Operation) - функция экстренного подъема за 1.5 сек без электропитания, ручная помпа (опция) для управления без электропитания, скорость подъема/опуска 6/2 сек, 3500Ватт, -40...+55 град. | E114: 1 шт. | F114: по запросу | H114: =IF(G114<>"",F114*G114*(1-F$2),"") -> 
C115: 117901 | D115: Короб фундаментный дорожного блокиратора JS, высотой 1000 мм | E115: 1 шт. | F115: по запросу | H115: =IF(G115<>"",F115*G115*(1-F$2),"") -> 
C116: 116300 | D116: Блок управления JE275 в уличном корпусе, контролирует синхронно до 3 дорожных блокираторов J200 HA, J275 HA, J275 HA 2K20 или 1 боллард серии JS | E116: 1 шт. | F116: по запросу | H116: =IF(G116<>"",F116*G116*(1-F$2),"") -> 
C117: 117906 | D117: Нагреватель для болларда JS | E117: 1 шт. | F117: по запросу | H117: =IF(G117<>"",F117*G117*(1-F$2),"") -> 
D118: Итого: | F118: =SUM(F114:F117) -> 0 | H118: =SUM(H114:H117) -> 0
D119: ПРОТИВОТАРАННЫЙ ВЫДВИЖНОЙ БЛОКИРАТОР JS 80 HA 1000 ММ СО СМЕННЫМ КОЖУХОМ ИЗ ПОЛИМЕРА mDURE
D120: Состав комплекта:
C121: 117501 | D121: Блокиратор дорожный автоматический противотаранный JS 80 HA диаметром 275 мм и высотой 1000 мм, cо сменным износостойким кожухом из полимера mDure, энергия удара 1 852 000 Дж, сертификат краштеста TC 7.5 тонн при 80 км/ч при одиночной установке, ручная помпа (опция) для управления без электропитания, скорость подъема/опуска 6/2 сек, 3500Ватт, -40...+55 град. | E121: 1 шт. | F121: по запросу | H121: =IF(G121<>"",F121*G121*(1-F$2),"") -> 
C122: 117901 | D122: Короб фундаментный дорожного блокиратора JS, высотой 1000 мм | E122: 1 шт. | F122: по запросу | H122: =IF(G122<>"",F122*G122*(1-F$2),"") -> 
C123: 116300 | D123: Блок управления JE275 в уличном корпусе, контролирует синхронно до 3 дорожных блокираторов J200 HA, J275 HA, J275 HA 2K20 или 1 боллард серии JS | E123: 1 шт. | F123: по запросу | H123: =IF(G123<>"",F123*G123*(1-F$2),"") -> 
C124: 117906 | D124: Нагреватель для болларда JS | E124: 1 шт. | F124: по запросу | H124: =IF(G124<>"",F124*G124*(1-F$2),"") -> 
B125: JS 80 HA | D125: Итого: | F125: =SUM(F121:F124) -> 0 | H125: =SUM(H121:H124) -> 0
D126: ПРОТИВОТАРАННЫЙ ВЫДВИЖНОЙ БЛОКИРАТОР JS 80 HA INOX HA 1000 ММ НЕРЖАВЕЮЩАЯ СТАЛЬ
D127: Состав комплекта:
C128: 117701 | D128: Блокиратор дорожный автоматический противотаранный JS 80 HA INOX диаметром 275 мм и высотой 1000 мм, нержавеющая сталь, энергия удара 1 852 000 Дж, сертификат краштеста TC 7.5 тонн при 80 км/ч при одиночной установке, ручная помпа (опция) для управления без электропитания, скорость подъема/опуска 6/2 сек, 3500Ватт, -40...+55 град. | E128: 1 шт. | F128: по запросу | H128: =IF(G128<>"",F128*G128*(1-F$2),"") -> 
C129: 117901 | D129: Короб фундаментный дорожного блокиратора JS, высотой 1000 мм | E129: 1 шт. | F129: по запросу | H129: =IF(G129<>"",F129*G129*(1-F$2),"") -> 
C130: 116300 | D130: Блок управления JE275 в уличном корпусе, контролирует синхронно до 3 дорожных блокираторов J200 HA, J275 HA, J275 HA 2K20 или 1 боллард серии JS | E130: 1 шт. | F130: по запросу | H130: =IF(G130<>"",F130*G130*(1-F$2),"") -> 
C131: 117906 | D131: Нагреватель для болларда JS | E131: 1 шт. | F131: по запросу | H131: =IF(G131<>"",F131*G131*(1-F$2),"") -> 
D132: Итого: | F132: =SUM(F128:F131) -> 0 | H132: =SUM(H128:H131) -> 0
D133: ПРОТИВОТАРАННЫЙ ВЫДВИЖНОЙ БЛОКИРАТОР JS 80 HA 1000 ММ СО СМЕННЫМ КОЖУХОМ ИЗ ПОЛИМЕРА mDURE
D134: Состав комплекта:
C135: 117551 | D135: Блокиратор дорожный автоматический противотаранный JS 80 HA EFO диаметром 275 мм и высотой 1000 мм, cо сменным износостойким кожухом из полимера mDure, энергия удара 1 852 000 Дж, сертификат краштеста TC 7.5 тонн при 80 км/ч при одиночной установке, EFO (Emergency Fast Operation) - функция экстренного подъема за 1.5 сек без электропитания, ручная помпа (опция) для управления без электропитания, скорость подъема/опуска 6/2 сек, 3500Ватт, -40...+55 град. | E135: 1 шт. | F135: по запросу | H135: =IF(G135<>"",F135*G135*(1-F$2),"") -> 
C136: 117901 | D136: Короб фундаментный дорожного блокиратора JS, высотой 1000 мм | E136: 1 шт. | F136: по запросу | H136: =IF(G136<>"",F136*G136*(1-F$2),"") -> 
C137: 116300 | D137: Блок управления JE275 в уличном корпусе, контролирует синхронно до 3 дорожных блокираторов J200 HA, J275 HA, J275 HA 2K20 или 1 боллард серии JS | E137: 1 шт. | F137: по запросу | H137: =IF(G137<>"",F137*G137*(1-F$2),"") -> 
C138: 117906 | D138: Нагреватель для болларда JS | E138: 1 шт. | F138: по запросу | H138: =IF(G138<>"",F138*G138*(1-F$2),"") -> 
B139: JS 80 HA EFO | D139: Итого: | F139: =SUM(F135:F138) -> 0 | H139: =SUM(H135:H138) -> 0
D140: ПРОТИВОТАРАННЫЙ ВЫДВИЖНОЙ БЛОКИРАТОР JS 80 HA INOX HA 1000 ММ НЕРЖАВЕЮЩАЯ СТАЛЬ
D141: Состав комплекта:
C142: 117751 | D142: Блокиратор дорожный автоматический противотаранный JS 80 HA INOX EFO диаметром 275 мм и высотой 1000 мм, нержавеющая сталь, энергия удара 1 852 000 Дж, сертификат краштеста TC 7.5 тонн при 80 км/ч при одиночной установке, EFO (Emergency Fast Operation) - функция экстренного подъема за 1.5 сек без электропитания, ручная помпа (опция) для управления без электропитания, скорость подъема/опуска 6/2 сек, 3500Ватт, -40...+55 град. | E142: 1 шт. | F142: по запросу | H142: =IF(G142<>"",F142*G142*(1-F$2),"") -> 
C143: 117901 | D143: Короб фундаментный дорожного блокиратора JS, высотой 1000 мм | E143: 1 шт. | F143: по запросу | H143: =IF(G143<>"",F143*G143*(1-F$2),"") -> 
C144: 116300 | D144: Блок управления JE275 в уличном корпусе, контролирует синхронно до 3 дорожных блокираторов J200 HA, J275 HA, J275 HA 2K20 или 1 боллард серии JS | E144: 1 шт. | F144: по запросу | H144: =IF(G144<>"",F144*G144*(1-F$2),"") -> 
C145: 117906 | D145: Нагреватель для болларда JS | E145: 1 шт. | F145: по запросу | H145: =IF(G145<>"",F145*G145*(1-F$2),"") -> 
D146: Итого: | F146: =SUM(F142:F145) -> 0 | H146: =SUM(H142:H145) -> 0
D147: СТАЦИОНАРНЫЕ И СЪЕМНЫЕ ПРОТИВОТАРАННЫЕ ДОРОЖНЫЕ БЛОКИРАТОРЫ
C148: 116420 | D148: Блокиратор дорожный стационарный J275 2K20 F диаметром 275 мм и высотой 800 мм, окрашенная сталь, энергия удара 673 000 Дж (при монтаже требует монтажного основания JS R_F UNDERGROUND BASE 117902) | E148: 1 шт. | F148: по запросу | H148: =IF(G148<>"",F148*G148*(1-F$2),"") -> 
C149: 116440 | D149: Блокиратор дорожный стационарный J275 2K20 F диаметром 275 мм и высотой 800 мм, нержавеющая сталь, энергия удара 673 000 Дж (при монтаже требует монтажного основания JS R_F UNDERGROUND BASE 117902) | E149: 1 шт. | F149: по запросу
C150: 117651 | D150: Блокиратор дорожный стационарный JS 80 F диаметром 275 мм и высотой 1000 мм, cо сменным износостойким кожухом из полимера mDure, энергия удара 1 852 000 Дж (при монтаже требует монтажного основания JS R_F UNDERGROUND BASE 117902) | E150: 1 шт. | F150: по запросу
C151: 117851 | D151: Блокиратор дорожный стационарный JS 80 F диаметром 275 мм и высотой 1000 мм, нержавеющая сталь, энергия удара 1 852 000 Дж (при монтаже требует монтажного основания JS R_F UNDERGROUND BASE 117902) | E151: 1 шт. | F151: по запросу
C152: 117111 | D152: Блокиратор дорожный съемный JS 48 R диаметром 275 мм и высотой 1000 мм, cо сменным износостойким кожухом из полимера mDure, энергия удара 673 000 Дж (при монтаже требует монтажного основания JS R_F UNDERGROUND BASE 117902) | E152: 1 шт. | F152: по запросу
C153: 117301 | D153: Блокиратор дорожный съемный JS 48 R диаметром 275 мм и высотой 1000 мм, нержавеющая сталь, энергия удара 673 000 Дж (при монтаже требует монтажного основания JS R_F UNDERGROUND BASE 117902) | E153: 1 шт. | F153: по запросу
C154: 117601 | D154: Блокиратор дорожный съемный JS 80 R диаметром 275 мм и высотой 1000 мм, cо сменным износостойким кожухом из полимера mDure, энергия удара 1 852 000 Дж(при монтаже требует монтажного основания JS R_F UNDERGROUND BASE 117902) | E154: 1 шт. | F154: по запросу
C155: 117801 | D155: Блокиратор дорожный съемный JS 80 R диаметром 275 мм и высотой 1000 мм, нержавеющая сталь, энергия удара 1 852 000 Дж (при монтаже требует монтажного основания JS R_F UNDERGROUND BASE 117902) | E155: 1 шт. | F155: по запросу
D156: АКСЕССУАРЫ К ПРОТИВОТАРАННЫМ ДОРОЖНЫМ БЛОКИРАТОРАМ
C157: 117903 | D157: Крышка болларда JS PIT COVER для серии JS. Используется как заглушка на дорожном покрытии при демонтаже болларда, например во время технического обслуживания. | E157: 1 шт. | F157: по запросу | H157: =IF(G157<>"",F157*G157*(1-F$2),"") -> 
C158: 117902 | D158: Монтажное основание JS R_F UNDERGROUND BASE для монтажа стационарных и съемных блокираторов JS 48 R, JS 80 F, JS 80 R (обязательный аксессуар) | E158: 1 шт. | F158: по запросу | H158: =IF(G158<>"",F158*G158*(1-F$2),"") -> 
C159: 117905 | D159: Ручная помпа JS HA EMERGENCY HAND PUMP для управления боллардом JS 48, JS80 HA всех серий при отсутствии электропитания | E159: 1 шт. | F159: по запросу
D160: ПРОТИВОТАРАННЫЕ БЛОКИРАТОРЫ, СНЯТЫЕ С ПРОИЗВОДСТВА
C161: 116400 | D161: Блокиратор дорожный автоматический противотаранный J275_2K HA высотой 800 мм, окрашенная сталь. Заменено на J275 2K20 c артикулом 116401. | E161: 1 шт. | H161: =IF(G161<>"",F161*G161*(1-F$2),"") -> 
C162: 116430 | D162: Блокиратор дорожный автоматический противотаранный J275_2K HA высотой 800 мм, нержавеющая сталь. Заменено на J275 2K20 INOX c артикулом 116431. | E162: 2 шт.
C163: 116301 | D163: Блокиратор дорожный автоматический J355 HA M30-P1 высотой 1м. Заменено на JS48 HA INOX c артикулом 117001. | E163: 3 шт.
C164: 116335 | D164: Блокиратор дорожный автоматический J355 HA M30-P1 EFO высотой 1м, нержавеющая сталь. Заменено на JS48 HA INOX c артикулом 117051. | E164: 4 шт.
C165: 116351 | D165: Блокиратор дорожный автоматический J355 HA M50 высотой 1,2м Заменено на JS80 HA c артикулом 117501. | E165: 5 шт.
C166: 116352 | D166: Блокиратор дорожный автоматический J355 HA M50 EFO высотой 1,2м Заменено на JS80 HA c артикулом 117551. | E166: 6 шт.
C167: 116384 | D167: Блокиратор дорожный автоматический J355 HA M50 высотой 1,2м, нержавеющая сталь. Заменено на JS80 HA INOX c артикулом 117701. | E167: 7 шт.
C168: 116385 | D168: Блокиратор дорожный автоматический J355 HA M50 EFO высотой 1,2м, нержавеющая сталь. Заменено на JS80 HA INOX c артикулом 117751. | E168: 8 шт.
C169: 116321 | D169: Блокиратор дорожный стационарный J355 F M30-P1 высотой 1м Заменено на JS 48 R c артикулом 117111. | E169: 9 шт.
C170: 116042 | D170: Блокиратор дорожный стационарный J355 F M30-P1 высотой 1м, нержавеющая сталь Заменено на JS 48 R INOX c артикулом 117301. | E170: 10 шт.
C171: 116371 | D171: Блокиратор дорожный стационарный J355 F M50 высотой 1,2 м Заменено на JS 80 F c артикулом 117651 или JS 80 R c артикулом 117601. | E171: 11 шт.
C172: 116391 | D172: Блокиратор дорожный стационарный J355 F M50 высотой 1,2 м, нержавеющая сталь Заменено на JS 80 F INOX c артикулом 117851 или JS 80 R INOX c артикулом 117801. | E172: 12 шт.
C173: 116130 | D173: Короб фундаментный дорожного блокиратора M50 J355 НА Снимается с поставок. Уточняйте доступность. | E173: 13 шт.
C174: 116202 | D174: Нагреватель для J355 НА Снимается с поставок. Уточняйте доступность. | E174: 14 шт.

Sheet Автоматические двери
E2: ВАША СКИДКА: | F2: 0 | G2: ВАШ ЗАКАЗ:
B3: Элементы системы | C3: Код артикула | D3: АВТОМАТИЧЕСКИЕ ДВЕРИ | E3: Компл. | F3: Розничная цена, руб. | G3: Кол-во, шт. | H3: Ваш заказ с учётом скидки, руб.
D4: КОМПЛЕКТЫ ДЛЯ АВТОМАТИЗАЦИИ РАЗДВИЖНЫХ ДВЕРЕЙ
C5: A1000_1_SHORT | D5: Комплект привода А1000 для раздвижных дверей с одной створкой шириной до 2,1 м, весом до 110 кг
B6: Привод | C6: 10505701 | D6: Базовый комплект привода A1000 с блоком питания и управления, роликовыми опорами, комплектом крепежа и принадлежностями для автоматизации одностворчатых раздвижных дверей | E6: 1шт. | F6: 83836.45 | H6: =IF(G6<>"",F6*G6*(1-F$2),"") -> 
C7: 105163/5 | D7: Ремень зубчатый привода A1000 (внимание цена указана за 5п/м) | E7: 5п/м. | F7: 5526.9
B8: Короб Н 100 мм | C8: 105426/1 | D8: Профиль несущий системы А1000 длиной 4,3 м | E8: 1шт. | F8: 24285.88
C9: 105429 | D9: Профиль лицевой крышки высотой 100 мм системы А1000 из необработанного алюминия (под окраску) длиной 4,3 м | E9: 1шт. | F9: 12525.43
C10: 105123 | D10: Комплект аксессуаров для крепления профиля лицевой крышки привода A1000 высотой 100 мм | E10: 1шт. | F10: 4761.9
C11: 105434 | D11: Пара боковых крышек системы А1000 с крепежом | E11: 1шт. | F11: 891.7
B12: Управление проводное | C12: 790024 | D12: Панель кнопочная LK EVO для управления режимами работы дверей А1000/A1400 | E12: 1шт. | F12: 11709.58
D13: Итого: | F13: =SUM(F6:F12) -> 143537.84 | H13: =SUM(H6:H12) -> 0
C14: A1000_1_LONG | D14: Комплект привода А1000 для раздвижных дверей с одной створкой шириной до 3 м, весом до 110кг
B15: Привод | C15: 10505701 | D15: Базовый комплект привода A1000 с блоком питания и управления, роликовыми опорами, комплектом крепежа и принадлежностями для автоматизации одностворчатых раздвижных дверей | E15: 1шт, | F15: 83836.45 | H15: =IF(G15<>"",F15*G15*(1-F$2),"") -> 
C16: 105163/7 | D16: Ремень зубчатый привода A1000 (внимание цена указана за 7 п/м) | E16: 7п/м. | F16: 7737.66
B17: Короб Н 100 мм | C17: 105427/1 | D17: Профиль несущий системы А1000 длиной 6,1 м | E17: 1шт. | F17: 29406
C18: 105431 | D18: Профиль лицевой крышки высотой 100 мм системы А1000 из необработанного алюминия (под окраску) длиной 6,1 м | E18: 1шт. | F18: 19145.65
C19: 105123 | D19: Комплект аксессуаров для крепления профиля лицевой крышки привода A1000 высотой 100 мм | E19: 1шт. | F19: 4761.9
C20: 105434 | D20: Пара боковых крышек системы А1000 с крепежом | E20: 1шт. | F20: 891.7
B21: Управление проводное | C21: 790024 | D21: Панель кнопочная LK EVO для управления режимами работы дверей А1000/A1400 | E21: 1шт. | F21: 11709.58
D22: Итого: | F22: =SUM(F15:F21) -> 157488.94 | H22: =SUM(H15:H21) -> 0
C23: A1000_2_SHORT | D23: Комплект привода А1000 для раздвижных дверей с двумя створками шириной до 1,05 м, весом до 70 кг каждая
B24: Привод | C24: 10505701 | D24: Базовый комплект привода A1000 с блоком питания и управления, роликовыми опорами, комплектом крепежа и принадлежностями для автоматизации одностворчатых раздвижных дверей | E24: 1шт. | F24: 83836.45 | H24: =IF(G24<>"",F24*G24*(1-F$2),"") -> 
C25: 105122 | D25: Пара роликовых опор А1000 в сборе для подвеса дополнительной створки | E25: 1шт. | F25: 17050.53
C26: 105163/6 | D26: Ремень зубчатый привода A1000 (внимание цена указана за 6 п/м) | E26: 6п/м. | F26: 6632.28
B27: Короб Н 100 мм | C27: 105426/1 | D27: Профиль несущий системы А1000 длиной 4,3 м | E27: 1шт. | F27: 24285.88
C28: 105429 | D28: Профиль лицевой крышки высотой 100 мм системы А1000 из необработанного алюминия (под окраску) длиной 4,3 м | E28: 1шт. | F28: 12525.43
C29: 105123 | D29: Комплект аксессуаров для крепления профиля лицевой крышки привода A1000 высотой 100 мм | E29: 1шт. | F29: 4761.9
C30: 105434 | D30: Пара боковых крышек системы А1000 с крепежом | E30: 1шт. | F30: 891.7
B31: Управление проводное | C31: 790024 | D31: Панель кнопочная LK EVO для управления режимами работы дверей А1000/A1400 | E31: 1шт. | F31: 11709.58
D32: Итого: | F32: =SUM(F24:F31) -> 161693.75 | H32: =SUM(H24:H31) -> 0
C33: A1000_2_LONG | D33: Комплект привода А1000 для раздвижных дверей с двумя створками шириной до 1,5 м, весом до 70 кг каждая
B34: Привод | C34: 10505701 | D34: Базовый комплект привода A1000 с блоком питания и управления, роликовыми опорами, комплектом крепежа и принадлежностями для автоматизации одностворчатых раздвижных дверей | E34: 1шт. | F34: 83836.45 | H34: =IF(G34<>"",F34*G34*(1-F$2),"") -> 
C35: 105122 | D35: Пара роликовых опор А1000 в сборе для подвеса дополнительной створки | E35: 1шт. | F35: 17050.53
C36: 105163/8 | D36: Ремень зубчатый привода A1000 (внимание цена указана за 8 п/м) | E36: 8п/м. | F36: 8843.04
B37: Короб Н 100 мм | C37: 105427/1 | D37: Профиль несущий системы А1000 длиной 6,1 м | E37: 1шт. | F37: 34872.5
C38: 105431 | D38: Профиль лицевой крышки высотой 100 мм системы А1000 из необработанного алюминия (под окраску) длиной 6,1 м | E38: 1шт. | F38: 19145.65
C39: 105123 | D39: Комплект аксессуаров для крепления профиля лицевой крышки привода A1000 высотой 100 мм | E39: 1шт. | F39: 4761.9
C40: 105434 | D40: Пара боковых крышек системы А1000 с крепежом | E40: 1шт. | F40: 891.7
B41: Управление проводное | C41: 790024 | D41: Панель кнопочная LK EVO для управления режимами работы дверей А1000/A1400 | E41: 1шт. | F41: 11709.58
D42: Итого: | F42: =SUM(F34:F41) -> 181111.35 | H42: =SUM(H34:H41) -> 0
B43: Новинка! | C43: A1400_1_SHORT | D43: Комплект привода А1400 для раздвижных дверей с одной створкой шириной до 2,1 м, весом до 200 кг
B44: Привод | C44: 10503701 | D44: Базовый комплект привода A1400 с блоком питания и управления, усиленными роликовыми опорами, комплектом крепежа и принадлежностями для автоматизации одностворчатых раздвижных дверей | E44: 1шт. | F44: 99885.2 | H44: =IF(G44<>"",F44*G44*(1-F$2),"") -> 
C45: 105298/6 | D45: Ремень зубчатый привода A1400 (внимание цена указана за 6п/м) | E45: 6п/м. | F45: 7120.68
B46: Короб Н 100 мм | C46: 105512/1 | D46: Профиль несущий системы A1400 длиной 4,3 м | E46: 1шт. | F46: 30962.53
C47: 105429 | D47: Профиль лицевой крышки высотой 100 мм системы А1000/A1400 из необработанного алюминия (под окраску) длиной 4,3 м | E47: 1шт. | F47: 12525.43
C48: 105123 | D48: Комплект аксессуаров для крепления профиля лицевой крышки привода A1000/A1400 высотой 100 мм | E48: 1шт. | F48: 4761.9
C49: 105505 | D49: Пара боковых крышек высотой 100 мм системы A1400 с крепежом | E49: 1шт. | F49: 1027.68
B50: Управление проводное | C50: 790024 | D50: Панель кнопочная LK EVO для управления режимами работы приводов A1400/А1000/А951 | E50: 1шт. | F50: 11709.58
D51: Итого: | F51: =SUM(F44:F50) -> 167993 | H51: =SUM(H44:H50) -> 0
B52: Новинка! | C52: A1400_1_LONG | D52: Комплект привода А1400 для раздвижных дверей с одной створкой шириной до 3 м, весом до 200 кг
B53: Привод | C53: 10503701 | D53: Базовый комплект привода A1400 с блоком питания и управления, усиленными роликовыми опорами, комплектом крепежа и принадлежностями для автоматизации одностворчатых раздвижных дверей | E53: 1шт. | F53: 99885.2 | H53: =IF(G53<>"",F53*G53*(1-F$2),"") -> 
C54: 105298/7 | D54: Ремень зубчатый привода A1400 (внимание цена указана за 7п/м) | E54: 7п/м. | F54: 8307.46
B55: Короб Н 100 мм | C55: 105510/1 | D55: Профиль несущий системы A1400 длиной 6,1 м | E55: 1шт. | F55: 43563.8
C56: 105431 | D56: Профиль лицевой крышки высотой 100 мм системы А1000/A1400 из необработанного алюминия (под окраску) длиной 6,1 м | E56: 1шт. | F56: 19145.65
C57: 105123 | D57: Комплект аксессуаров для крепления профиля лицевой крышки привода A1000/A1400 высотой 100 мм | E57: 1шт. | F57: 4761.9
C58: 105505 | D58: Пара боковых крышек высотой 100 мм системы A1400 с крепежом | E58: 1шт. | F58: 1027.68
B59: Управление проводное | C59: 790024 | D59: Панель кнопочная LK EVO для управления режимами работы приводов A1400/А1000/А951 | E59: 1шт. | F59: 11709.58
D60: Итого: | F60: =SUM(F53:F59) -> 188401.27 | H60: =SUM(H53:H59) -> 0
B61: Новинка! | C61: A1400_2_SHORT | D61: Комплект привода А1400 для раздвижных дверей с двумя створками шириной до 1,05 м, весом до 120 кг каждая
B62: Привод | C62: 10503701 | D62: Базовый комплект привода A1400 с блоком питания и управления, усиленными роликовыми опорами, комплектом крепежа и принадлежностями для автоматизации одностворчатых раздвижных дверей | E62: 1шт. | F62: 99885.2 | H62: =IF(G62<>"",F62*G62*(1-F$2),"") -> 
C63: 105499 | D63: Пара роликовых опор A1400 в сборе для подвеса дополнительной створки | E63: 1шт. | F63: 16156.98
C64: 105298/6 | D64: Ремень зубчатый привода A1400 (внимание цена указана за 6п/м) | E64: 6п/м. | F64: 7120.68
B65: Короб Н 100 мм | C65: 105512/1 | D65: Профиль несущий системы A1400 длиной 4,3 м | E65: 1шт. | F65: 30962.53
C66: 105429 | D66: Профиль лицевой крышки высотой 100 мм системы А1000/A1400 из необработанного алюминия (под окраску) длиной 4,3 м | E66: 1шт. | F66: 12525.43
C67: 105123 | D67: Комплект аксессуаров для крепления профиля лицевой крышки привода A1000/A1400 высотой 100 мм | E67: 1шт. | F67: 4761.9
C68: 105505 | D68: Пара боковых крышек высотой 100 мм системы A1400 с крепежом | E68: 1шт. | F68: 1027.68
B69: Управление проводное | C69: 790024 | D69: Панель кнопочная LK EVO для управления режимами работы приводов A1400/А1000/А951 | E69: 1шт. | F69: 11709.58
D70: Итого: | F70: =SUM(F62:F69) -> 184149.98 | H70: =SUM(H62:H69) -> 0
B71: Новинка! | C71: A1400_2_LONG | D71: Комплект привода А1400 для раздвижных дверей с двумя створками шириной до 1,5 м, весом до 120 кг каждая
B72: Привод | C72: 10503701 | D72: Базовый комплект привода A1400 с блоком питания и управления, усиленными роликовыми опорами, комплектом крепежа и принадлежностями для автоматизации одностворчатых раздвижных дверей | E72: 1шт. | F72: 99885.2 | H72: =IF(G72<>"",F72*G72*(1-F$2),"") -> 
C73: 105499 | D73: Пара роликовых опор A1400 в сборе для подвеса дополнительной створки | E73: 1шт. | F73: 16156.98
C74: 105298/8 | D74: Ремень зубчатый привода A1400 (внимание цена указана за 8п/м) | E74: 8п/м. | F74: 9494.24
B75: Короб Н 100 мм | C75: 105510/1 | D75: Профиль несущий системы A1400 длиной 6,1 м | E75: 1шт. | F75: 43563.8
C76: 105431 | D76: Профиль лицевой крышки высотой 100 мм системы А1000/A1400 из необработанного алюминия (под окраску) длиной 6,1 м | E76: 1шт. | F76: 19145.65
C77: 105123 | D77: Комплект аксессуаров для крепления профиля лицевой крышки привода A100/A140/A1400 высотой 100 мм | E77: 1шт. | F77: 4761.9
C78: 105505 | D78: Пара боковых крышек высотой 100 мм системы A1400 с крепежом | E78: 1шт. | F78: 1027.68
B79: Управление проводное | C79: 790024 | D79: Панель кнопочная LK EVO для управления режимами работы приводов A1400/А1000/А951 | E79: 1шт. | F79: 11709.58
D80: Итого: | F80: =SUM(F72:F79) -> 205745.03 | H80: =SUM(H72:H79) -> 0
D81: КОМПЛЕКТЫ ДЛЯ АВТОМАТИЗАЦИИ ТЕЛЕСКОПИЧЕСКИХ РАЗДВИЖНЫХ ДВЕРЕЙ
C82: A1400Т_2 | D82: Комплект привода А1400Т для телескопических раздвижных дверей с двумя телескопическими створками, левостороннее открытие, ширина проёма от 1,1 до 3 м, весом до 110 кг каждая
B83: Привод | C83: 10503901 | D83: Базовый комплект привода A1400Т с блоком питания и управления, комплектом подвешивания 2-й створки и роликом натяжения | E83: 1шт. | F83: 122355.3 | H83: =IF(G83<>"",F83*G83*(1-F$2),"") -> 
C84: 105025 | D84: Комплект роликовой опоры А1400 T с принадлежностями для подвеса телескопической створки (левосторонний) | E84: 1шт. | F84: 9754.59
C85: 105298/7 | D85: Ремень зубчатый привода A1400Т (внимание цена указана за 7 п/м) | E85: 7п/м. | F85: 8307.46
C86: 105027 | D86: Трос стальной диаметром 3 мм, бухта 30 м | E86: 1шт. | F86: 9983.53
B87: Короб Н 100 мм | C87: 105020 | D87: Профиль несущий системы А1400Т длиной 6,1 м | E87: 1шт. | F87: 27542.34
C88: 105021 | D88: Профиль телескопический системы А1400Т длиной 6,1 м | E88: 1шт. | F88: 22607.93
C89: 105507 | D89: Профиль С-образный, 3м для фиксации роликовых опор A1400Т | E89: 1шт. | F89: 4458.5
C90: 105431 | D90: Профиль лицевой крышки высотой 100 мм системы А1000/А1400 из необработанного алюминия (под окраску) длиной 6,1 м | E90: 1шт. | F90: 19145.65
C91: 105028 | D91: Комплект аксессуаров для крепления профиля лицевой крышки привода A1400 высотой 100 мм | E91: 1шт. | F91: 4933.95
C92: 105030 | D92: Пара боковых крышек системы А1400Т с крепежом | E92: 1шт. | F92: 3037.7
B93: Управление проводное | C93: 790024 | D93: Панель кнопочная LK EVO для управления режимами работы дверей А1000/A1400 | E93: 1шт. | F93: 11709.58
D94: Итого: | F94: =SUM(F83:F93) -> 243836.53 | H94: =SUM(H83:H93) -> 0
C95: A1400Т_2 | D95: Комплект привода А1400Т для телескопических раздвижных дверей с двумя телескопическими створками, правостороннее открытие, ширина проёма от 1,1 до 3 м, весом до 110 кг каждая
B96: Привод | C96: 10503901 | D96: Базовый комплект привода A1400Т с блоком питания и управления, комплектом подвешивания 2-й створки и роликом натяжения | E96: 1шт. | F96: 122355.3 | H96: =IF(G96<>"",F96*G96*(1-F$2),"") -> 
C97: 105024 | D97: Комплект роликовой опоры А1400 T с принадлежностями для подвеса телескопической створки (правосторонний) | E97: 1шт. | F97: 18232.68
C98: 105298/7 | D98: Ремень зубчатый привода A1400Т (внимание цена указана за 7 п/м) | E98: 7п/м. | F98: 8307.46
C99: 105027 | D99: Трос стальной диаметром 3 мм, бухта 30 м | E99: 1шт. | F99: 9983.53
B100: Короб Н 100 мм | C100: 105020 | D100: Профиль несущий системы А1400Т длиной 6,1 м | E100: 1шт. | F100: 27542.34
C101: 105021 | D101: Профиль телескопический системы А1400Т длиной 6,1 м | E101: 1шт. | F101: 22607.93
C102: 105507 | D102: Профиль С-образный, 3м для фиксации роликовых опор A1400Т | E102: 1шт. | F102: 4458.5
C103: 105431 | D103: Профиль лицевой крышки высотой 100 мм системы А1000/А1400 из необработанного алюминия (под окраску) длиной 6,1 м | E103: 1шт. | F103: 19145.65
C104: 105028 | D104: Комплект аксессуаров для крепления профиля лицевой крышки привода A1400 высотой 100 мм | E104: 1шт. | F104: 4933.95
C105: 105030 | D105: Пара боковых крышек системы А1400Т с крепежом | E105: 1шт. | F105: 3037.7
B106: Управление проводное | C106: 790024 | D106: Панель кнопочная LK EVO для управления режимами работы дверей А1000/A1400 | E106: 1шт. | F106: 11709.58
D107: Итого: | F107: =SUM(F96:F106) -> 252314.62 | H107: =SUM(H96:H106) -> 0
C108: A1400Т_4 | D108: Комплект привода А1400Т для телескопических раздвижных дверей с четырьмя телескопическими створками, ширина проёма от 1,4 до 4 м, весом до 60 кг каждая
B109: Привод | C109: 10503901 | D109: Базовый комплект привода A1400Т с блоком питания и управления, комплектом подвешивания 2-й створки и роликом натяжения | E109: 1шт. | F109: 122355.3 | H109: =IF(G109<>"",F109*G109*(1-F$2),"") -> 
C110: 105024 | D110: Комплект роликовой опоры А1400 T с принадлежностями для подвеса телескопической створки (правосторонний) | E110: 1шт. | F110: 18232.68
C111: 105025 | D111: Комплект роликовой опоры А1400 T с принадлежностями для подвеса телескопической створки (левосторонний) | E111: 1шт. | F111: 9754.59
C112: 105023 | D112: Базовый комплект для сборки дополнительной 2-й створки | E112: 1шт | F112: 7125.275
C113: 105298/11 | D113: Ремень зубчатый привода A1400Т (внимание цена указана за 11 п/м) | E113: 11п/м. | F113: 13054.58
C114: 105027 | D114: Трос стальной диаметром 3 мм, бухта 30 м | E114: 1шт. | F114: 9983.53
B115: Короб Н 100 мм | C115: 105020 | D115: Профиль несущий системы А1400Т длиной 6,1 м | E115: 1шт. | F115: 27542.34
C116: 105021 | D116: Профиль телескопический системы А1400Т длиной 6,1 м | E116: 1шт. | F116: 22607.93
C117: 105507 | D117: Профиль С-образный, 3м для фиксации роликовых опор A1400Т (внимание, при ширине проёма более 3-х метров, необходимо заказывать 2 шт, цена указана за 1 шт) | E117: 1шт. | F117: 4458.5
C118: 105431 | D118: Профиль лицевой крышки высотой 100 мм системы А1000/А1400 из необработанного алюминия (под окраску) длиной 6,1 м | E118: 1шт. | F118: 19145.65
C119: 105028 | D119: Комплект аксессуаров для крепления профиля лицевой крышки привода A1400 высотой 100 мм | E119: 1шт. | F119: 4933.95
C120: 105030 | D120: Пара боковых крышек системы А1400Т с крепежом | E120: 1шт. | F120: 3037.7
B121: Управление проводное | C121: 790024 | D121: Панель кнопочная LK EVO для управления режимами работы дверей А1000/A1400 | E121: 1шт. | F121: 11709.58
D122: Итого: | F122: =SUM(F109:F121) -> 273941.605 | H122: =SUM(H109:H121) -> 0
D123: КОМПЛЕКТЫ ДЛЯ АВТОМАТИЗАЦИИ РАСПАШНЫХ ДВЕРЕЙ
B124: Привод с шарнирным рычагом монтируется изнутри помещения на перемычку дверного проема для открывания двери наружу (глубина проема от 0 до 250 мм). Привод с шарнирным рычагом может устанавливаться изнутри помещения на полотно двери для открывания створки внутрь здания. | C124: 950 N2_1_ART | D124: Комплект привода 950 N2 с шарнирным рычагом для раcпашных дверей с одной створкой шириной от 0,7 до 1,4м весом от 367 до 92кг, соответственно
C125: 1054152 | D125: Привод 950 N2 со встроенным блоком управления и базовым переключателем режимов работы, с кожухом из алюминия | E125: 1шт. | F125: 66201.33 | H125: =IF(G125<>"",F125*G125*(1-F$2),"") -> 
C126: 390039 | D126: Рычаг шарнирный для привода дверей 950N2, в комплекте с адаптером вал-рычаг высотой 20 мм | E126: 1шт. | F126: 11435.78 | H126: =IF(G126<>"",F126*G126*(1-F$2),"") -> 
D127: Итого: | F127: =SUM(F125:F126) -> 77637.11 | H127: =SUM(H125:H126) -> 0
C128: 950 N2_2_ART | D128: Комплект приводов 950 N2 с шарнирным рычагом для раcпашных дверей с двумя створками шириной от 0,7 до 1,4м весом от 367 до 92кг каждая, соответственно
C129: 1054152 | D129: Привод 950 N2 со встроенным блоком управления и базовым переключателем режимов работы, с кожухом из алюминия (внимание в комплекте - 2 шт., цена указана за 1 шт.) | E129: 2шт. | F129: 66201.33 | H129: =IF(G129<>"",F129*G129*(1-F$2),"") -> 
C130: 390039 | D130: Рычаг шарнирный для привода дверей 950N2, в комплекте с адаптером вал-рычаг высотой 20 мм (внимание в комплекте - 2 шт., цена указана за 1 шт.) | E130: 2шт. | F130: 11435.78 | H130: =IF(G130<>"",F130*G130*(1-F$2),"") -> 
D131: Итого: | F131: =(F129+F129)+(F130+F130) -> 155274.22 | H131: =SUM(H129:H130) -> 0
B132: Привод со скользящим рычагом монтируется изнутри помещения на перемычку дверного проема для открывания створки внутрь здания. (заглубление двери внутрь проема от 0 до 160 мм) | C132: 950 N2_1_SL330 | D132: Комплект привода 950 N2 с коротким скользящим рычагом для раcпашных дверей с одной створкой шириной от 0,7 до 0,8м весом от 286 до 219кг, соответственно
C133: 1054152 | D133: Привод 950 N2 со встроенным блоком управления и базовым переключателем режимов работы, с кожухом из алюминия | E133: 1шт. | F133: 66201.33 | H133: =IF(G133<>"",F133*G133*(1-F$2),"") -> 
C134: 390041 | D134: Рычаг скользящий 330 мм для привода дверей 950N2, в комплекте с адаптером вал-рычаг высотой 20 мм | E134: 1шт. | F134: 10482.1 | H134: =IF(G134<>"",F134*G134*(1-F$2),"") -> 
D135: Итого: | F135: =SUM(F133:F134) -> 76683.43 | H135: =SUM(H133:H134) -> 0
C136: 950 N2_2_SL330 | D136: Комплект приводов 950 N2 с короткими скользящими рычагами для раcпашных дверей с двумя створками шириной от 0,7 до 0,8м весом от 286 до 219кг каждая, соответственно
C137: 1054152 | D137: Привод 950 N2 со встроенным блоком управления и базовым переключателем режимов работы, с кожухом из алюминия (внимание в комплекте - 2 шт., цена указана за 1 шт.) | E137: 2шт. | F137: 66201.33 | H137: =IF(G137<>"",F137*G137*(1-F$2),"") -> 
C138: 390041 | D138: Рычаг скользящий 330 мм для привода дверей 950N2, в комплекте с адаптером вал-рычаг высотой 20 мм (внимание в комплекте - 2 шт., цена указана за 1 шт.) | E138: 2шт. | F138: 10482.1 | H138: =IF(G138<>"",F138*G138*(1-F$2),"") -> 
D139: Итого: | F139: =SUM(F137:F138)*2 -> 153366.86 | H139: =SUM(H137:H138) -> 0
C140: 950 N2_1_SL430 | D140: Комплект привода 950 N2 со стандартным скользящим рычагом для раcпашных дверей с одной створкой шириной от 0,85 до 1,4м весом от 194 до 71кг, соответственно
C141: 1054152 | D141: Привод 950 N2 со встроенным блоком управления и базовым переключателем режимов работы, с кожухом из алюминия | E141: 1шт. | F141: 66201.33 | H141: =IF(G141<>"",F141*G141*(1-F$2),"") -> 
C142: 390040 | D142: Рычаг скользящий 430 мм для привода дверей 950N2, в комплекте с адаптером вал-рычаг высотой 20 мм | E142: 1шт. | F142: 10958.48 | H142: =IF(G142<>"",F142*G142*(1-F$2),"") -> 
D143: Итого: | F143: =SUM(F141:F142) -> 77159.81 | H143: =SUM(H141:H142) -> 0
C144: 950 N2_2_SL430 | D144: Комплект приводов 950 N2 со стандартным скользящими рычагами для раcпашных дверей с двумя створками шириной от 0,85 до 1,4м и весом от 194 до 71кг каждая, соответственно
C145: 1054152 | D145: Привод 950 N2 со встроенным блоком управления и базовым переключателем режимов работы, с кожухом из алюминия (внимание в комплекте - 2 шт., цена указана за 1 шт.) | E145: 2шт. | F145: 66201.33 | H145: =IF(G145<>"",F145*G145*(1-F$2),"") -> 
C146: 390040 | D146: Рычаг скользящий 430 мм для привода дверей 950N2, в комплекте с адаптером вал-рычаг высотой 20 мм (внимание в комплекте - 2 шт., цена указана за 1 шт.) | E146: 2шт. | F146: 10958.48 | H146: =IF(G146<>"",F146*G146*(1-F$2),"") -> 
D147: Итого: | F147: =F145+F145+F146+F146 -> 154319.62 | H147: =SUM(H145:H146) -> 0
B148: Привод с шарнирным и скользящим рычагом монтируется изнутри помещения на перемычку дверного проема для открывания двери наружу (шарнирный рычаг) или во внутрь (скользящий рычаг), глубина проема от 0 до 200 мм. | C148: А951_1_Art | D148: Комплект привода А951 с шарнирным рычагом для раcпашных дверей с одной створкой шириной от 0,7 до 1,1 м и весом до 100 кг
C149: 105951 | D149: Привод А951 со встроенным блоком управления и базовым переключателем режимов работы, с кожухом из алюминия | E149: 1шт. | F149: 53778.58 | H149: =IF(G149<>"",F149*G149*(1-F$2),"") -> 
C150: 390169 | D150: Рычаг шарнирный для привода дверей А951 | E150: 1шт. | F150: 11363.63 | H150: =IF(G150<>"",F150*G150*(1-F$2),"") -> 
D151: Итого: | F151: =SUM(F149:F150) -> 65142.21 | H151: =SUM(H149:H150) -> 0
C152: А951_2_Art | D152: Комплект привода А951 с шарнирным рычагом для раcпашных дверей с двумя створками шириной от 0,7 до 1,1 м и весом до 100 кг каждая
C153: 105951 | D153: Привод А951 со встроенным блоком управления и базовым переключателем режимов работы, с кожухом из алюминия (внимание в комплекте - 2 шт., цена указана за 1 шт.) | E153: 2шт. | F153: 53778.58 | H153: =IF(G153<>"",F153*G153*(1-F$2),"") -> 
C154: 390169 | D154: Рычаг шарнирный для привода дверей А951 (внимание в комплекте - 2 шт., цена указана за 1 шт.) | E154: 2шт. | F154: 11363.63 | H154: =IF(G154<>"",F154*G154*(1-F$2),"") -> 
C155: 390166 | D155: Плата расширения привода А951, необходима для синхронизации 2-х и более приводов, имеет возможность установки радиоприёмника XF (внимание в комплекте - 2 шт., цена указана за 1 шт.) | E155: 2шт. | F155: 3260.63 | H155: =IF(G155<>"",F155*G155*(1-F$2),"") -> 
D156: Итого: | F156: =SUM(F153:F155)*2 -> 136805.68 | H156: =SUM(H153:H155) -> 0
C157: А951_1_SL | D157: Комплект привода А951 со скользящим рычагом для раcпашных дверей с одной створкой шириной от 0,7 до 1,1 м и весом до 100 кг
C158: 105951 | D158: Привод А951 со встроенным блоком управления и базовым переключателем режимов работы, с кожухом из алюминия | E158: 1шт. | F158: 53778.58 | H158: =IF(G158<>"",F158*G158*(1-F$2),"") -> 
C159: 390167 | D159: Рычаг скользящий привода А951 | E159: 1шт. | F159: 11363.63 | H159: =IF(G159<>"",F159*G159*(1-F$2),"") -> 
D160: Итого: | F160: =SUM(F158:F159) -> 65142.21 | H160: =SUM(H158:H159) -> 0
C161: А951_2_SL | D161: Комплект привода А951 со скользящим рычагом для раcпашных дверей с двумя створками шириной от 0,7 до 1,1 м и весом до 100 кг каждая
C162: 105951 | D162: Привод А951 со встроенным блоком управления и базовым переключателем режимов работы, с кожухом из алюминия (внимание в комплекте - 2 шт., цена указана за 1 шт.) | E162: 2шт. | F162: 53778.58 | H162: =IF(G162<>"",F162*G162*(1-F$2),"") -> 
C163: 390167 | D163: Рычаг скользящий привода А951 (внимание в комплекте - 2 шт., цена указана за 1 шт.) | E163: 2шт. | F163: 11363.63 | H163: =IF(G163<>"",F163*G163*(1-F$2),"") -> 
C164: 390166 | D164: Плата расширения привода А951, необходима для синхронизации 2-х и более приводов, имеет возможность установки радиоприёмника XF (внимание в комплекте - 2 шт., цена указана за 1 шт.) | E164: 2шт. | F164: 3260.63 | H164: =IF(G164<>"",F164*G164*(1-F$2),"") -> 
D165: Итого: | F165: =SUM(F162:F164)*2 -> 136805.68 | H165: =SUM(H162:H164) -> 0
D166: ДОПОЛНИТЕЛЬНАЯ КОМПЛЕКТАЦИЯ АВТОМАТИКИ РАЗДВИЖНЫХ ДВЕРЕЙ
B167: А1000/А1400, короб Н 100 мм анодированный | C167: 105428 | D167: Профиль лицевой крышки высотой 100 мм системы А1000/A1400 из анодированного алюминия длиной 4,3м | E167: 1шт. | F167: 10129.49 | H167: =IF(G167<>"",F167*G167*(1-F$2),"") -> 
C168: 105430 | D168: Профиль лицевой крышки высотой 100 мм системы А1000/A1400 из анодированного алюминия длиной 6,1м | E168: 1шт. | F168: 21527.53
B169: А1400, короб Н 140 мм | C169: 105513 | D169: Профиль лицевой крышки высотой 140 мм системы A1400 из необработанного алюминия (под окраску) длиной 4,3 м, заказывается вместо 105429 и 105514 | E169: 1шт. | F169: 13805.63
C170: 105514 | D170: Профиль лицевой крышки высотой 140 мм системы A1400 из необработанного алюминия (под окраску) длиной 6,1 м, заказывается вместо 105431 и 105513 | E170: 1шт. | F170: 14720.916
C171: 105501 | D171: Комплект аксессуаров для крепления профиля лицевой крышки привода A1000/A1400 высотой 140 мм, заказывается вместо 105123 | E171: 1шт. | F171: 4761.9
C172: 105506 | D172: Пара боковых крышек высотой 140 мм системы А1400 с крепежом, заказывается вместо 105505 | E172: 1шт. | F172: 1130.35
B173: А1000/А1400 принадлежности для изготовления 2 цельностеклянных створок шириной 1500 мм каждая, толщина стекла 10 мм | C173: 105402 | D173: Комплект: 2 боковых и 1 зажимной профили длиной по 3 м для обжима 2 цельностеклянных полотен шириной по 1,5 м каждое | E173: 1шт. | F173: 8265.8
C174: 105403 | D174: Резиновый уплотнитель для защиты от сколов в месте обжима 2 цельностеклянных полотен шириной по 1,5 м каждое (внимание для комплекта требуется 6 п/м, цена указана за 1 п/м) | E174: 6 п/м | F174: 269.18
C175: 105404 | D175: Монтажная пластина для подвешивания цельностеклянных створок к роликовым опорам (внимание для комплекта требуется - 6 шт., цена указана за 1 шт.) | E175: 6 шт. | F175: 1361.6
C176: 105405 | D176: Пара торцевых заглушек для декорирования зажимных профилей на цельностеклянных полотнах | E176: 2 шт. | F176: 269.18
C177: 105406 | D177: Пара направляющих опор из пластика (монтаж на пол) для фиксации от поперечного перемещения и обеспечения продольного скольжения 2 цельностеклянных полотен | E177: 1шт. | F177: 415.33
B178: Принадлежности направляющие для обрамленных створок | C178: 105380 | D178: Профиль нижний направляющий для обрамленной створки, длина 3 м | E178: 1шт. | F178: 2646.43
C179: 105487 | D179: Блок направляющий напольный с кронштейном крепления к вертикальной поверхности, 2 штуки | E179: 1шт. | F179: 3132.98
C180: 105346 | D180: Уплотнитель щеточный H19 х L3000мм | E180: 1шт. | F180: 1436.53
C181: 105345 | D181: Уплотнитель щеточный H25 х L3000мм (РАСПРОДАЖА, цена действительна на сток, цена без акции 19 471,92 руб.) | E181: 1шт. | F181: 1582.68
B182: А1000 крепление обрамленных створок | C182: 105432 | D182: Профиль С-образный, длиной 3м для удобства крепления подвижных створок изготовленных из профилей сторонних производителей к роликовым опорам системы A1000 | E182: 1шт. | F182: 3888.7
B183: А1400 крепление обрамленных створок | C183: 105507 | D183: Профиль С-образный, длиной 3м для удобства крепления подвижных створок изготовленных из профилей сторонних производителей к роликовым опорам системы A1400 | E183: 1шт. | F183: 4458.5
B184: А1000/А1400 прокладка кабеля | C184: 105433 | D184: Уплотнитель резиновый для фиксации и защиты кабеля, проложенного внутри несущего профиля A1000/А1400 (внимание цена указана за 1п/м) | E184: 1п/м. | F184: 88.8
B185: А1000/А1400 антипаника | C185: 105523 | D185: APN 1 Anti-panic breakout system. Устройство "антипаника" для одной подвижной створки (левая или правая). Встраивается в профиль двери любого производителя (необходимое сечение 30х30мм). Для дверей A100, A140, A1000, A1400. | E185: 1шт. | F185: 27720.4 | H185: =IF(G185<>"",F185*G185*(1-F$2),"") -> 
C186: 105525 | D186: APN 1 + 1 Integral anti-panic breakout system. Устройство "антипаника" для одной подвижной створки (левая или правая) и стационарной створки. Встраивается в профиль двери любого производителя (необходимое сечение 30х30мм). Для дверей A100, A140, A1000, A1400. | E186: 1шт. | F186: 63603.93
C187: 105524 | D187: APN 2 Anti-panic breakout system. Устройство "антипаника" для двух подвижных створок. Встраивается в профиль двери любого производителя (необходимое сечение 30х30мм). Для дверей A100, A140, A1000, A1400. | E187: 1шт. | F187: 44745.95
C188: 390883 | D188: Профиль верхний 900 мм с профилем нижним направляющим 1500 мм, для системы антипаника | E188: 1шт. | F188: 3099.675
C189: 390882 | D189: Профиль верхний 1300 мм с профилем нижним направляющим 1500 мм, для системы антипаника | E189: 1шт. | F189: 3808.69
B190: Программирование А100/А140 | C190: 790830 | D190: Кнопочная панель управления режимами работы дверей с возможностью подключения дисплея - программатора 790829 | E190: 1шт. | F190: 8275.05
C191: 790829 | D191: Дисплей - программатор съемный. Подключается через 105342 или 790830 (для А100/А140) и 790840 (для 950N). Дублирует функции дисплея блока управления А100/А140. Обязателен для 950N при активации режима ВЕДУЩИЙ-ВЕДОМЫЙ | E191: 1шт. | F191: 7210.38
C192: 790849 | D192: Пульт SDK WIRELESS 433 МГц для управления режимами работы раздвижной двери А100 по радио | E192: 1шт. | F192: 7835.68
C193: 787751 | D193: Радиоприемник SDK WIRELESS 433 МГц встраиваемый для привода дверей А100 | E193: 1шт. | F193: 5911.68
B194: Програмирование А1000/А1400 | C194: 790024 | D194: Панель кнопочная LK EVO для управления режимами работы приводов A1400/А1000/А951 | E194: 1шт. | F194: 11709.58
C195: 790019 | D195: Панель кнопочная с дисплеем SDK EVO для программирования и управления режимами работы дверей A1000/А1400 | E195: 1шт. | F195: 15617.7
B196: А1000 электрозамок | C196: 105124 | D196: Электромеханический замок со встраиваемым в лицевой профиль крышки расцепителем привода A1000 | E196: 1шт. | F196: 9529.35
B197: A1400 электрозамок | C197: 105502 | D197: Замок электромеханический со встраиваемым в лицевой профиль крышки расцепителем привода A1400 | E197: 1шт. | F197: 14350.45
B198: A1000/1400 резервное питание | C198: 105504 | D198: Батарея резервного питания привода A100/A140/A1000/A1400 | E198: 1шт. | F198: 11234.13
B199: A1400 комплект для тяжелых дверей DM | C199: 105036 | D199: Комплект установки 2-го мотора на дверь A1400 AIR | E199: 1шт. | F199: 74654.9 | H199: =IF(G199<>"",F199*G199*(1-F$2),"") -> 
D200: ДОПОЛНИТЕЛЬНАЯ КОМПЛЕКТАЦИЯ АВТОМАТИКИ РАСПАШНЫХ ДВЕРЕЙ
B201: Программирование А950 | C201: 790840 | D201: Панель кнопочная управления режимами работы распашных дверей с возможностью подключения дисплея - программатора 790829 | E201: 1шт. | F201: 14184.88 | H201: =IF(G201<>"",F201*G201*(1-F$2),"") -> 
... 91 more rows

Sheet Foglio1 (hidden)
B2: FAAC RUSSIA PRICE LIST
B6: Code | C6: Description | D6: FAAC RUS Prices List
B7: 104201 | C7: SW GATE OPERATOR 400 CBAC 220V | D7: 546.3312435
B8: 104202 | C8: SW GATE OPERATOR 400 CBAC LN 220V | D8: 622.067607
B9: 104203 | C9: SW GATE OPERATOR 400 SBS 220V | D9: 520.1870835
B10: 104204 | C10: SW GATE OPERATOR 400 SB LN 220V | D10: 599.2731675
B11: 104205 | C11: SW GATE OPERATOR 400 CBC 220V | D11: 526.15122
B12: 104206 | C12: SW GATE OPERATOR 400 SB 220V | D12: 508.340511
B13: 104207 | C13: SW GATE OPERATOR 400 CBAC R 220V | D13: 591.675021
B14: 104215 | C14: SW GATE OPERATOR 400 CBA 220V | D14: 526.15122
B15: 104216 | C15: SW GATE OPERATOR 400 CBAC 220V | D15: 532.7689605
B16: 104464 | C16: SW GATE OPERATOR 400 CBAC R 220V | D16: 591.675021
B17: 104481 | C17: SW GATE OPERATOR 400 SBS 220V | D17: 520.1870835
B18: 1042011 | C18: SW GATE OPERATOR 400 CBAC 220V UL/CSA | D18: 546.3312435
B19: 1042014 | C19: SW GATE OPERATOR 400 CBAC 220V SAUDI | D19: 546.3312435
B20: 1042021 | C20: SW GATE OPER. 400 CBAC LN 220V UL/CSA WI | D20: 637.1821995
B21: 1042032 | C21: SW GATE OPERATOR 400 SBS 115V | D21: 520.1870835
B22: 1042062 | C22: SW GATE OPERATOR 400 SB 115V | D22: 516.837363
B23: 1042071 | C23: SW GATE OPERATOR 400 CBAC 220V UL/CSA | D23: 602.7045885
B24: 1044053 | C24: SW GATE OPER. 400 CBAC LN 220V | D24: 588.407001
B25: 1044056 | C25: SW GATE OPERATOR 400 CBAC LN 115V UL/CSA | D25: 637.1821995
B26: 1044621 | C26: SW.G.OPERATOR 400/88 CBAC L.1 UL/CSA | D26: 546.3312435
B27: 1044622 | C27: SW.G.OPERATOR 400 CBAC L.1 115V UL/CSA | D27: 546.3312435
B28: 10420112 | C28: SW GATE OPERATOR 400 CBAC L.1'05 115V UL | D28: 546.3312435
B29: 10420177 | C29: SWG OP 400 CBAC 220V WINTER | D29: 581.6258595
B30: 10420212 | C30: SW GATE OPER. 400CBAC L.1.5 LN 115V UL | D30: 637.1821995
B31: 10420277 | C31: SWG OP 400 CBAC LN 220V WINTER | D31: 676.7252415
B32: 10420677 | C32: SWG OP 400 SB 220V WINTER | D32: 541.184112
B33: 10420712 | C33: SW GATE OPER. 400 CBAC L.1.5 '05 115V UL | D33: 602.7045885
B34: 10420777 | C34: SWG OP 400 CBAC R 220V WINTER | D34: 628.767048
B35: 104201177 | C35: SWG OP 400 CBAC 220V UL/CSA WINTER | D35: 580.8088545
B36: 104202177 | C36: SWG OP 400 CBAC LN 220V UL/CSA WINTER | D36: 691.9215345
B37: 104207177 | C37: SWG OP 400 CBAC 220V UL/CSA WINTER | D37: 639.714915
B38: 1042011277 | C38: SWG OP 400 CBAC 115V UL/CSA WINTER | D38: 580.8088545
B39: 1042021277 | C39: SWG OP 400 CBAC LN 115V UL/CSA WINTER | D39: 691.022829
B40: 1042071277 | C40: SWG OP 400 CBAC 115V UL/CSA WINTER | D40: 640.53192
B41: 105681 | C41: GATE OPERATOR 400 CBAC 115V MERIK KIT
B42: 104468 | C42: SW GATE OPERATOR 402 CBC 220V | D42: 304.742865
B43: 104469 | C43: SW GATE OPERATOR 402 SB 220V | D43: 303.0271545
B44: 104474 | C44: SW GATE OPERATOR 402 SBS 220V | D44: 303.0271545
B45: 104490 | C45: SW GATE OPERATOR 402 CBC 220V | D45: 304.742865
B46: 1044681 | C46: SW GATE OPERATOR 402 CBC 220V UL/CSA | D46: 319.8574575
B47: 1044682 | C47: SW GATE OPERATOR 402 CBC 115V UL/CSA | D47: 319.8574575
B48: 10446877 | C48: SWG OP 402 CBC 220V WINTER | D48: 317.4064425
B49: 104468177 | C49: SWG OP 402 CBC 220V UL/CSA WINTER | D49: 332.521035
B50: 104468277 | C50: SWG OP 402 CBC 115V UL/CSA WINTER | D50: 333.33804
B51: 105636 | C51: GATE OPERATOR LEADERKIT 868 | D51: 944.3760795
B52: 10563344 | C52: GATE OPERATOR LEADERKIT 230V | D52: 937.6766385
B53: 10563348 | C53: GATE OP. FAAC KIT H2 | D53: 902.7088245
B54: 10563393 | C54: GATE OPERATOR LEADERKIT(STARTBOX) | D54: 622.884612
B55: 105631 | C55: GATE OPERATOR ECOKIT 868 | D55: 696.2656668
B56: 10563214 | C56: ECOKIT 412 FRANCE | D56: 753.371982
B57: 10563244 | C57: GATE OPERATOR ECOKIT 230V | D57: 861.3193512
B58: 10563248 | C58: GATE OP. FAAC KIT H1 | D58: 764.4645756
B59: 10563293 | C59: GATE OPERATOR ECOKIT (STARTBOX) | D59: 465.5808036
B60: 104470 | C60: SW GATE OPERATOR 412 RH R1 220V | D60: 224.3168928
B61: 104471 | C61: SW GATE OPERATOR 412 LH R1 220V | D61: 224.3168928
B62: 104475 | C62: SW GATE OPERATOR 412 RH 115V UL/CSA | D62: 242.393712
B63: 104476 | C63: SW GATE OPERATOR 412 LH 115V UL/CSA | D63: 242.393712
B64: 104487 | C64: SW GATE OPERATOR 412 LH 24Vdc | D64: 329.0802768
B65: 104488 | C65: SW GATE OPERATOR 412 RH 24Vdc | D65: 329.0802768
B66: 105682 | C66: GATE OPERATOR 422 CBAC 115V MERIK KIT | D66: 1277.480614
B67: 104200 | C67: SW GATE OPERATOR 422 CBAC 220V | D67: 473.6767283
B68: 104208 | C68: SW GATE OPERATOR 422 CBC 220V | D68: 454.6964898
B69: 104209 | C69: SW GATE OPERATOR 422 CBACS 220V | D69: 473.6767283
B70: 104210 | C70: SW GATE OPERATOR 422 SBS 220V | D70: 438.5725008
B71: 104211 | C71: SW GATE OPERATOR 422 CBC 220V | D71: 454.6964898
B72: 104212 | C72: SW GATE OPERATOR 422 SB 220V | D72: 438.5725008
B73: 104213 | C73: SW GATE OPERATOR 422 CBC PED. 220V | D73: 623.6758945
B74: 104214 | C74: SW GATE OPERATOR 422 SB PED. 220V | D74: 606.6305347
B75: 104217 | C75: SW GATE OPERATOR 422 CBAC 220V | D75: 473.6767283
B76: 104472 | C76: SW GATE OPERATOR 422 CBAC 220V | D76: 473.6767283
B77: 104473 | C77: SW GATE OPERATOR 422 CBC 220V | D77: 454.6964898
B78: 104491 | C78: SW GATE OPERATOR 422 CBAC 220V | D78: 448.06262
B79: 1042001 | C79: SW GATE OPERATOR 422 CBAC 220V UL/CSA | D79: 500.3043444
B80: 1042094 | C80: SW GATE OPERATOR 422 CBAC 220V SAUDI | D80: 473.6767283
B81: 1042095 | C81: SW GATE OPERATOR 422 CBAC 220V NABCO | D81: 473.6767283
B82: 1042102 | C82: SW GATE OPERATOR 422 SBS 115V | D82: 438.5725008
B83: 1044281 | C83: SW GATE OPERATOR 422 SB PED. 220V | D83: 606.6305347
B84: 1044371 | C84: SW GATE OPERATOR 422 CBAC 220V UL/CSA | D84: 500.3043444
B85: 1044372 | C85: SW GATE OPERATOR 422 CBAC 115V UL/CSA | D85: 500.3043444
B86: 10420012 | C86: SW GATE OPERATOR 422 CBAC 115V UL/CSA | D86: 500.3043444
B87: 10420077 | C87: SWG OP 422 CBAC 220V WINTER | D87: 491.735596
B88: 10420977 | C88: SWG OP 422 CBACS 220V WINTER | D88: 476.5329778
B89: 10421377 | C89: SW GATE OPERATOR 422 CBC PED.220V WINTER | D89: 656.8452433
B90: 10421812 | C90: SW GATE OPERATOR 422CBAC PED 115V UL/CSA | D90: 651.2248814
B91: 104200177 | C91: SWG OP 422 CBAC 220V UL/CSA WINTER | D91: 517.4418413
B92: 1042001277 | C92: SWG OP 422 CBAC 115V UL/CSA WINTER | D92: 517.4418413
B93: 1042181277 | C93: SWG OP 422 CBAC PED 115V UL/CSA WINTER | D93: 671.1264907
B94: 104570 | C94: SW GATE OPERATOR 390 220V | D94: 286.6183056
B95: 104573 | C95: SW GATE OPERATOR 390 24Vdc | D95: 321.6852144
B96: 10457021 | C96: SW GATE OPERATOR 390 115V UL/CSA | D96: 315.2443536
B97: 104576 | C97: SW GATE OPERATOR 391 E 24Vdc | D97: 363.06648
B98: 104577 | C98: SW GATE OPERATOR 391 24Vdc | D98: 242.07444
B99: 104578 | C99: 391 ELECTRO-MECH. AUTOM.W/O TRANSFORMER | D99: 307.224
B100: 104575 | C100: ELECTROMEC. AUTOMAT. ENERGYKIT 391 | D100: 813.60144
B101: 10457593 | C101: GATE OPERATOR ENERGYKIT (STARTBOX) | D101: 605.14092
B102: 107720 | C102: SW GATE OPERATOR 750 CBAC 220V | D102: 531.52011
B103: 107721 | C103: SW GATE OPERATOR 750 SB 220V | D103: 471.733416
B104: 107724 | C104: SW GATE OPERATOR 750 SBS 220V | D104: 517.803462
B105: 107725 | C105: SW GATE OPERATOR 750 CBAC 115V UL/CSA | D105: 565.364448
B106: 1077204 | C106: SW GATE OPERATOR 750 CBAC 220V SAUDI | D106: 531.52011
B107: 1077205 | C107: SW GATE OPERATOR 750 CBAC 220V NABCO | D107: 531.52011
B108: 1077251 | C108: SW GATE OPERATOR 750 CBAC 220V UL/CSA | D108: 565.364448
B109: 106762 | C109: SW GATE OPERATOR 760 SBS SR 220V | D109: 1055.287332
B110: 108710 | C110: SW GATE OPERATOR S800H CBAC 100° | D110: 1090.62261
B111: 108711 | C111: SW GATE OPERATOR S800H SB 100° | D111: 1090.62261
B112: 108712 | C112: SW GATE OPERATOR S800H CBAC 180° | D112: 1167.40602
B113: 108713 | C113: SW GATE OPERATOR S800H SB 180° | D113: 1167.40602
B114: 108714 | C114: SW GATE OPERATOR S800H SBW 100° | D114: 1090.62261
B115: 108715 | C115: SW GATE OPERATOR S800H SBW 180° | D115: 1167.40602
B116: 1067601 | C116: SW GATE OPERATOR 760 CBAC SR 220V UL W/L | D116: 1081.378782
B117: 1067602 | C117: SW GATE OPERATOR 760 CBAC SR 115V UL W/L | D117: 1006.235406
B118: 1067701 | C118: SW GATE OPERATOR 760 CBAC CR 220V UL W/L | D118: 1196.628444
B119: 1067702 | C119: SW GATE OPERATOR 760 CBAC CR 115V UL W/L | D119: 1196.628444
B120: 1067704 | C120: SW GATE OPERATOR 760 CBAC CR 220V SAUDI | D120: 1133.710776
B121: 1067706 | C121: SW GATE OPERATOR 760 CBAC CR 220V GILGEN | D121: 1168.89696
B122: 1067714 | C122: SW GATE OPERATOR 760 SB CR 220V SAUDI | D122: 1168.89696
B123: 1067724 | C123: SW GATE OPERATOR 760 SBS CR 220V SAUDI | D123: 1133.710776
B124: 106752 | C124: SW GATE OPERATOR 770 220V | D124: 444.995892
B125: 106753 | C125: SW GATE OPERATOR 770 24Vdc | D125: 444.995892
B126: 106754 | C126: 770 SLOW | D126: 444.995892
B127: 10675221 | C127: SW GATE OPERATOR 770 115V UL/CSA | D127: 490.0421592
B128: 10675299 | C128: DTU 250 | D128: 428.048874
B129: 10674644 | C129: POWER KIT 230V
B130: 10674744 | C130: GATE OPERATOR POWER KIT 24V
B131: 10674793 | C131: SW GATE OPERATOR POWER KIT START 24V
B132: 108757 | C132: SW GATE OPERATOR 750 100° 220V | D132: 612.925434
B133: 108758 | C133: SW GATE OPERATOR 750 180° 220V | D133: 683.59599
B134: 108759 | C134: SW GATE OPERATOR 750 100° 220V W/BOX | D134: 513.032454
B135: 108760 | C135: SW GATE OPERATOR 750 180° 220V W/BOX | D135: 588.324924
B136: 1087575 | C136: SW GATE OPERATOR 750 100° 220V NABCO | D136: 612.925434
B137: 424010 | C137: LEVER RELEASE FOR 110DEG OPENING | D137: 134.0653248
B138: 490065 | C138: FOUNDATION BOX FOR 770 | D138: 201.575088
B139: 490071 | C139: FOUNDATION BOX FOR 750 | D139: 158.636016
B140: 490110 | C140: INOX BOX FOR 770 W/RELEASE SYSTEM | D140: 341.723448
B141: 490112 | C141: S700H/S800H SUPPORTING FOUNDATION BOX | D141: 196.6848048
B142: 490113 | C142: STAINLESS BOX FOR S700H | D142: 366.2941392
B143: 49006599 | C143: WANNE F. DTU 250 | D143: 202.8871152
B144: 104561 | C144: FOLDING DOOR OPERATOR 560 CBAC 220V | D144: 1173.518874
B145: 104562 | C145: FOLDING DOOR OPERATOR 560 SB L.1 | D145: 1125.957888
B146: 104563 | C146: FOLDING DOOR OPERATOR 560 CBACR 220V | D146: 1311.729012
B147: 104540 | C147: DOMOSWING MASTER
B148: 104541 | C148: DOMOSWING SLAVE
B149: 104565 | C149: SW GATE OPERATOR DOMOSWING 12Vdc
B150: 104538 | C150: GATE OPERATOR DOMOSWING B7 KIT
B151: 104551 | C151: GATE OPERATOR DOMOSWING KIT 868
B152: 104567 | C152: GATE OPERATOR DOMO DS 180 KIT
B153: 10456593 | C153: GATE OPERATOR DSKIT180 (STARTBOX)
B154: 104100 | C154: S450H CBAC HYBRID SWING OP 24V HYDR. | D154: 612.532368
B155: 104101 | C155: S450H SB HYBRID SWING OP 24V HYDR. | D155: 586.472544
B156: 10568393 | C156: SWING GATE OP.HYBRID 450H KIT 24V START | D156: 1479.337776
B157: 104542 | C157: RIGHT DOMOLINK MASTER
B158: 104543 | C158: RIGHT DOMOLINK SLAVE
B159: 104544 | C159: LEFT DOMOLINK MASTER
B160: 104545 | C160: LEFT DOMOLINK SLAVE
B161: 104558 | C161: SW GATE OPERATOR DOMOLINK RH 12Vdc
B162: 104559 | C162: SW GATE OPERATOR DOMOLINK LH 12Vdc
B163: 104537 | C163: GATE OPERATOR DOMOLINK B7 KIT
B164: 104552 | C164: GATE OPERATOR DOMOLINK KIT
B165: 104553 | C165: GATE OPERATOR DOMOLINK KIT 868
B166: 104568 | C166: GATE OPERATOR DOMO DL 180 KIT
B167: 10456893 | C167: GATE OPERATOR DLKIT 180 (STARTBOX)
B168: 104300 | C168: 425 LS- 24V OPERATOR | D168: 341.476464
B169: 104415 | C169: SW GATE OPERATOR 415 220V | D169: 231.164976
B170: 104416 | C170: SW GATE OPERATOR 415 LS 220V | D170: 261.525936
B171: 104417 | C171: SW GATE OPERATOR 415 L 220V | D171: 251.995968
B172: 104418 | C172: SW GATE OPERATOR 415 L LS 220V | D172: 282.441264
B173: 104495 | C173: SW GATE OPERATOR 409 LS-40 220V | D173: 244.99608
B174: 1044132 | C174: SW GATE OPERATOR 413 115V UL/CSA | D174: 258.06816
B175: 1044151 | C175: SW GATE OPERATOR 415 24Vdc | D175: 266.839104
B176: 1044152 | C176: SW GATE OPERATOR 415 115V UL/CSA | D176: 265.911408
B177: 1044161 | C177: SW GATE OPERATOR 415 LS 24Vdc | D177: 297.200064
B178: 1044162 | C178: SW GATE OPERATOR 415 LS 115V UL/CSA | D178: 287.58576
B179: 1044171 | C179: SW GATE OPERATOR 415 L 24Vdc | D179: 287.58576
B180: 1044172 | C180: SW GATE OPERATOR 415 L 115V UL/CSA | D180: 278.899152
B181: 1044181 | C181: SW GATE OPERATOR 415 L LS 24Vdc | D181: 387.7525183
B182: 1044182 | C182: SW GATE OPERATOR 415 L LS 115V UL/CSA | D182: 308.501088
B183: 10441311 | C183: SW GATE OPERATOR 413 24Vdc UL/CSA | D183: 297.200064
B184: 10441411 | C184: SW GATE OPERATOR 413 LS 24Vdc UL/CSA | D184: 338.018688
B185: 10441511 | C185: SW GATE OPERATOR 415 24Vdc UL/CSA | D185: 282.441264
B186: 10441611 | C186: SW GATE OPERATOR 415 LS 24Vdc UL/CSA | D186: 323.259888
B187: 10441711 | C187: SW GATE OPERATOR 415 L 24Vdc UL/CSA | D187: 303.272256
B188: 10441811 | C188: SW GATE OPERATOR 415 L LS 24Vdc UL/CSA | D188: 343.24752
B189: 104413 | C189: SW GATE OPERATOR 413 220V | D189: 241.62264
B190: 104414 | C190: SW GATE OPERATOR 413 LS 220V | D190: 272.82696
B191: 1044131 | C191: SW GATE OPERATOR 413 24Vdc | D191: 282.441264
B192: 1044141 | C192: SW GATE OPERATOR 413 LS 24Vdc | D192: 312.802224
B193: 1044142 | C193: SW GATE OPERATOR 413 LS 115V UL/CSA | D193: 303.272256
B194: 1044924 | C194: SW GATE OPERATOR 411 B LS 220V | D194: 263.296992
B195: 10441413 | C195: SECURE SWING | D195: 277.212432
B196: 113007 | C196: STAR KIT 868 24V | D196: 996.1864704
B197: 10441993 | C197: GATE OPERATOR TRENDYKIT (STARTBOX) | D197: 624.7900032
B198: 10442043 | C198: TRENDY KIT 24V (START BOX) | D198: 884.756928
B199: 104301 | C199: S418 SWING OP 24V ELECTROMECH. | D199: 253.9998516
B200: 105998 | C200: HANDY KIT 24V | D200: 846.5292264
B201: 10599893 | C201: GATE OPERATOR HANDY KIT START 24V | D201: 704.7905304
B202: 109773 | C202: SL GATE OPERATOR 746 ER Z20 220V | D202: 550.1167
B203: 109774 | C203: SL GATE OPERATOR 746 ER CHAIN 220V | D203: 542.141175
B204: 109775 | C204: SL GATE OPERATOR 746 ER RF 220V | D204: 697.4693875
... 4539 more rows

Sheet Аксессуары
E2: ВАША СКИДКА: | F2: 0 | G2: ВАШ ЗАКАЗ:
C3: Код артикула | D3: УПРАВЛЕНИЕ И БЕЗОПАСНОСТЬ | E3: Компл. | F3: Розничная цена, руб. | G3: Кол-во, шт. | H3: Ваш заказ с учётом скидки, руб.
D5: ЛАЗЕРНЫЕ РАДАРЫ FAAC
D6: Лазерный сканер заменяет радары, фотоэлементы и индукционные петли (Даташит https://faac.ru/wp-content/uploads/2021/01/xguard-datasheet-2020.pdf):
C7: 785030 | D7: Сенсор лазерный XGUARD-5PD для автоматических дверей. Зона детектирования 5 х 5м. Фильтр вибрации, 2 независимых радара (кнопки) для открывания, 2 независимые зоны (зона безопасности и автоматического открывания), кабель 10м в комплекте, для настройки зон нужен пульт управления, IP65, -30…+60 град. | E7: 1 шт. | F7: 113821.25 | H7: =IF(G7<>"",F7*G7*(1-F$2),"") -> 
C8: 785027 | D8: Сенсор лазерный XGUARD-5 для промышленных ворот. Зона детектирования 5 х 5м. Фильтр вибрации, 2 независимых радара (кнопки) для открывания, 2 независимые зоны (зона безопасности и автоматического открывания), кабель 10м в комплекте, для настройки зон нужен пульт управления, IP65, -30…+60 град. | E8: 1 шт. | F8: 93968.9
C9: 105043 | D9: Горизонтальный лазерный сканер для шлагбаума. Зона детектирования 9.9 х 9.9м. Фильтр вибрации, 2 независимых радара (кнопки) для открывания, 2 независимые зоны (зона безопасности и автоматического открывания), кабель 10м в комплекте, для настройки зон нужен пульт управления, IP65, -30…+60 град. | E9: 1 шт. | F9: по запросу | H9: =IF(G9<>"",F9*G9*(1-F$2),"") -> 
C10: 785031 | D10: Пластина монтажная XGUARD-BA для крепления лазерных сенсоров | E10: 1 шт. | F10: 5514.85
C11: MLFB01 | D11: Пульт управления для установки параметров при установке | E11: 1 шт. | F11: 7535.05
C12: 785541 | D12: Пульт управления для установки параметров при установке | E12: 1 шт. | F12: по запросу
D13: ЛАЗЕРНЫЕ РАДАРЫ MAGNETIC
D14: Лазерный сканер заменяет радары, фотоэлементы и индукционные петли (принцип работы на видео https://www.youtube.com/watch?v=gZLB3gIxgmw): | H14: =IF(G14<>"",F14*G14*(1-F$2),"") -> 
C15: MLSHOR01 | D15: Горизонтальный лазерный сканер для шлагбаума, без кожуха | E15: 1 шт. | F15: 215279.88
C16: MLGHOR01 | D16: Кожух для горизонтального лазерного сканера шлагбаума для установки на тумбу c кронштейном | E16: 1 шт. | F16: 51129.38
C17: MLPEINH_0000 | D17: Столбик для горизонтального лазерного сканера шлагбаума для установки на дорожное покрытие | E17: 1 шт. | F17: 51129.38
C18: MLPREF01 | D18: Столбик с отражающей пластиной (необходим при отсутствии стены или предметов для отражения поблизости) | E18: 1 шт. | F18: 21528.45
C19: MLSVER01 | D19: Вертикальный лазерный сканер для шлагбаума без кожуха | E19: 1 шт. | F19: 242189.98
C20: MLGVER_0000 | D20: Кожух для установки вертикального лазерного сканера | E20: 1 шт. | F20: 32291.75
C21: MLPF01 | D21: Столбик для установки вертикального лазерного сканера (используется с MLGVER_0000) | E21: 1 шт. | F21: 46644.05
C22: MLVE24 | D22: Блок питания для лазерного сканера с установочными деталями | E22: 1 шт. | F22: 25115.6
C23: MLFB01 | D23: Пульт управления для установки параметров при установке | E23: 1 шт. | F23: 7535.05
D24: АКСЕССУАРЫ УПРАВЛЕНИЯ И БЕЗОПАСНОСТИ. СПЕЦ. ПРЕДЛОЖЕНИЯ | H24: =IF(G24<>"",F24*G24*(1-F$2),"") -> 
C25: 787456/50 | D25: Брелок-передатчик XT4 433 RC | E25: 50 шт. | F25: 65285.58 | H25: =IF(G25<>"",F25*G25*(1-F$2),"") -> 
C26: 787456/100 | D26: Брелок-передатчик XT4 433 RC | E26: 100 шт. | F26: 113724.13
C27: 787009/50 | D27: Брелок-передатчик XT2 868 SLH LR, белого цвета | E27: 50 шт. | F27: 123832.53
C28: 787009/100 | D28: Брелок-передатчик XT2 868 SLH LR, белого цвета | E28: 100 шт. | F28: 215654.5
C29: 7870091/50 | D29: Брелок-передатчик XT2 868 SLH LR, черного цвета | E29: 50 шт. | F29: 123832.53
C30: 7870091/100 | D30: Брелок-передатчик XT2 868 SLH LR, черного цвета | E30: 100 шт. | F30: 215654.5
C31: 787010/50 | D31: Брелок-передатчик XT4 868 SLH LR, белого цвета | E31: 50 шт. | F31: 143207.58
C32: 787010/100 | D32: Брелок-передатчик XT4 868 SLH LR, белого цвета | E32: 100 шт. | F32: 244296.2
C33: 7870101/50 | D33: Брелок-передатчик XT4 868 SLH LR, черного цвета | E33: 50 шт. | F33: 143207.58
C34: 7870101/100 | D34: Брелок-передатчик XT4 868 SLH LR, черного цвета | E34: 100 шт. | F34: 244296.2 | H34: =IF(G34<>"",F34*G34*(1-F$2),"") -> 
D35: АКСЕССУАРЫ УПРАВЛЕНИЯ И БЕЗОПАСНОСТИ
C36: 412003 | D36: Антенна 433 МГц с кронштейном и кабелем 4,8 м | E36: 1 шт. | F36: 2094.2 | H36: =IF(G36<>"",F36*G36*(1-F$2),"") -> 
C37: 412006 | D37: Антенна 868 МГц с кронштейном и кабелем 4,8 м | E37: 1 шт. | F37: 2075.7
C38: 787456 | D38: Брелок-передатчик XT4 433 RC 433 МГц 4-канальный RC код | E38: 1 шт. | F38: 1665
C39: 787008 | D39: Брелок-передатчик XT4 433 SLH LR 433 МГц 4-канальный SLH код, функция MASTER-SLAVE, белого цвета | E39: 1 шт. | F39: 3242.13
C40: 7870081 | D40: Брелок-передатчик XT4 433 SLH LR 433 МГц 4-канальный SLH код, функция MASTER-SLAVE, черного цвета | E40: 1 шт. | F40: 3242.13
C41: 787007 | D41: Брелок-передатчик XT2 433 SLH LR 433 МГц 2-канальный SLH код, функция MASTER-SLAVE, белого цвета | E41: 1 шт. | F41: 3058.05
C42: 7870071 | D42: Брелок-передатчик XT2 433 SLH LR 433 МГц 2-канальный SLH код, функция MASTER-SLAVE, черного цвета | E42: 1 шт. | F42: 3058.05
C43: 787009 | D43: Брелок-передатчик XT2 868 SLH LR 868 МГц 2-канальный SLH код, функция MASTER-SLAVE, белого цвета | E43: 1 шт. | F43: 2929.48
C44: 7870091 | D44: Брелок-передатчик XT2 868 SLH LR 868 МГц 2-канальный SLH код, функция MASTER-SLAVE, черного цвета | E44: 1 шт. | F44: 2929.48
C45: 787010 | D45: Брелок-передатчик XT4 868 SLH LR 868 МГц 4-канальный SLH код, функция MASTER-SLAVE, белого цвета | E45: 1 шт. | F45: 3418.8
C46: 7870101 | D46: Брелок-передатчик XT4 868 SLH LR 868 МГц 4-канальный SLH код, функция MASTER-SLAVE, черного цвета | E46: 1 шт. | F46: 3418.8
C47: 787826 | D47: Радиомодуль PLUS1 433 МГц с антенной, без декодера (необходим 785534) | E47: 1 шт. | F47: 3532.58
C48: 787827 | D48: Радиомодуль PLUS1 868 МГц с антенной, без декодера (необходим 785534) | E48: 1 шт. | F48: 3974.73
C49: 785534 | D49: Радиодекодер 1-канальный, память на 1000 пультов с кодировкой SLH, с релейным выходом или разъемом RP | E49: 1 шт. | F49: 2776.85
C50: 102845 | D50: Модуль Multidec для подключения до 4 радиодекодеров 785534 | E50: 1 шт. | F50: 2329.15
C51: 787824 | D51: Радиоприемник 1-канальный встраиваемый в разъем RP 433 МГц память на 250 пультов с кодировкой SLH (доступен до окончания стока) | E51: 1 шт. | F51: 3889.63
C52: 787852 | D52: Радиоприемник 1-канальный встраиваемый в разъем RP 433 МГц память на 250 пультов с кодировкой SLH | E52: 1 шт. | F52: скоро
C53: 787853 | D53: Радиоприемник 2-канальный встраиваемый в разъем RP 433 МГц память на 250 пультов с кодировкой SLH | E53: 1 шт. | F53: 9763.38
C54: 787857 | D54: Радиоприемник 2-канальный встраиваемый в разъем RP 433 МГц память на 250 пультов с кодировкой RC | E54: 1 шт. | F54: 8478.55 | H54: =IF(G54<>"",F54*G54*(1-F$2),"") -> 
C55: 787856 | D55: Радиоприемник 1-канальный встраиваемый в разъем RP 433 МГц память на 250 пультов с кодировкой RC | E55: 1 шт. | F55: 5755.35 | H55: =IF(G55<>"",F55*G55*(1-F$2),"") -> 
C56: 787854 | D56: Радиоприемник 1-канальный встраиваемый в разъем RP 868 МГц память на 250 пультов с кодировкой SLH | E56: 1 шт. | F56: 6628.55
C57: 787855 | D57: Радиоприемник 2-канальный встраиваемый в разъем RP 868 МГц память на 250 пультов с кодировкой SLH | E57: 1 шт. | F57: 9763.38
C58: 787725 | D58: Модуль релейный для проводного подключения 1 встраиваемого радиоприемника с разъемом RP | E58: 1 шт. | F58: 2136.75
C59: 787752 | D59: Радиоприемник 2-канальный внешний универсальный XR 433 МГц память на 250 пультов с кодировкой SLH или RC | E59: 1 шт. | F59: 7965.18 | H59: =IF(G59<>"",F59*G59*(1-F$2),"") -> 
C60: 787754 | D60: Радиоприемник 2-канальный внешний универсальный XR 868 МГц память на 250 пультов с кодировкой SLH | E60: 1 шт. | F60: 7965.18 | H60: =IF(G60<>"",F60*G60*(1-F$2),"") -> 
C61: 787831 | D61: Радиомодуль, встраиваемый в разъем XF 433 МГц | E61: 1 шт. | F61: 5241.05
C62: 787832 | D62: Радиомодуль, встраиваемый в разъем XF 868 МГц | E62: 1 шт. | F62: 5216.08
C63: 410029 | D63: Сигнальная лампа XLED питание ~ 230В или = 24В, сверхяркое свечение | E63: 1 шт. | F63: 6947.68
C64: 6100315 | D64: Сигнальная лампа Genius Guard питание ~ 230В | E64: 1 шт. | F64: 4907.13
C65: 6100316 | D65: Сигнальная лампа Genius Guard питание 24В | E65: 1 шт. | F65: 4271.65
C66: 4010191 | D66: Ключ выключатель Т10 Е, комбинация №1 монтаж в стойку или на стену с одним микровыключателем (доступен до окончания стока) | E66: 1 шт. | F66: 4295.7
C67: 401019003 | D67: Ключ выключатель Т10 Е, комбинация №3 монтаж в стойку или на стену с одним микровыключателем (доступен до окончания стока) | E67: 1 шт. | F67: 2735.23
C68: 401019005 | D68: Ключ выключатель Т10 Е, комбинация №5 монтаж в стойку или на стену с одним микровыключателем (доступен до окончания стока) | E68: 1 шт. | F68: 3154.25 | H68: =IF(G68<>"",F68*G68*(1-F$2),"") -> 
C69: 401019009 | D69: Ключ выключатель Т10 Е, комбинация №9 монтаж в стойку или на стену с одним микровыключателем (доступен до окончания стока) | E69: 1 шт. | F69: 3009.03
C70: 401018001 | D70: Ключ выключатель Т11 E, монтаж на стену с двумя микровыключателем, с цилиндром | E70: 1 шт. | F70: 2568.725 | H70: =IF(G70<>"",F70*G70*(1-F$2),"") -> 
C71: 401018007 | D71: Ключ выключатель Т11 E, монтаж на стену с двумя микровыключателем, с цилиндром | E71: 1 шт. | F71: 2191.325
C72: 4010181 | D72: Ключ выключатель Т11 E, монтаж на стену с двумя микровыключателем, с цилиндром | E72: 1 шт. | F72: 1779.33 | H72: =IF(G72<>"",F72*G72*(1-F$2),"") -> 
C73: 401012 | D73: Ключ выключатель Т20 Е, монтаж на стену с двумя микровыключателем, без цилиндра замка (необходим 7120xx) | E73: 1 шт. | F73: 1016.484
C74: 7120xx | D74: Цилиндр ЕВРО с персональным ключом, комбинации с 1 по 36, коды артикулов для заказа с 712052 по 712087 (Например, 712053, 712059) | E74: 1 шт. | F74: 1459.65
C75: 401002 | D75: Панель управления FAAC SWITCH 2 кнопки, встраиваемая | E75: 1 шт. | F75: 3058.05 | H75: =IF(G75<>"",F75*G75*(1-F$2),"") -> 
C76: 402500 | D76: Панель управления XB300 3х кнопочная с ключом, настенный монтаж | E76: 1 шт. | F76: 4730.45
C77: 785105 | D77: Фотоэлементы XP30 настенные, пара: передатчик и релейный приемник (НЗ и НО контакты) | E77: 1 шт. | F77: 8541.45
C78: 785102 | D78: Фотоэлементы XP20 D настенные, пара: приемник и передатчик (Взаимозаменяемость с Safebeam арт.785165 ) | E78: 1 шт. | F78: 5338.18
C79: 785104 | D79: Фотоэлементы XP20W D настенные, пара: приемник и передатчик c возможностью питания от батареи CR2 | E79: 1 шт. | F79: 6308.5
C80: 785103 | D80: Фотоэлементы XP20B D двухпроводные BUS 2EASY настенные, пара: приемник и передатчик | E80: 1 шт. | F80: 6211.38
C81: 790062 | D81: Плата BUS XIB для сопряжения релейных фотоэлементов с блоками управления с шиной BUS 2EASU | E81: 1 шт. | F81: 970.33
C82: 401028 | D82: Стойка 575 мм для XP30 (необходим адаптер 401065), FOTOSWITCH, PHOTOBEAM | E82: 1 шт. | F82: 3058.05
C83: 401039 | D83: Стойка 628 мм для XP20 | E83: 1 шт. | F83: 2513.23
C84: 401043 | D84: Стойка высокая двойная 1100 мм для XP20 | E84: 1 шт. | F84: 5999.55
C85: 112003 | D85: Кронштейн поворотный для фотоэлементов, совместим с XP20, XP15, SAFEBEAM | E85: 1 шт. | F85: 2312.5
C86: 401064 | D86: Адаптер наружной установки фотоэлементов XP30 или встраивания в стену/канал | E86: 1 шт. | F86: 613.28
C87: 401065 | D87: Адаптер для встроенного монтажа XP30 в стойку 401028 | E87: 1 шт. | F87: 970.33
C88: 401034 | D88: Стойка высокая 1115 мм для монтажа устройств управления и безопасности (T10 - T11 - T10 E - T11 E) | E88: 1 шт. | F88: 5401.08
C89: 401035 | D89: Стойка высокая двойная 1115 мм для монтажа устройств управления и безопасности (T10 - T11 - T10 E - T11 E) | E89: 1 шт. | F89: 5794.2
C90: 737637 | D90: Пластина монтажная с анкерами для стойки 401039 | E90: 1 шт. | F90: 523.55
C91: 737630 | D91: Пластина монтажная с анкерами для стойки 401028 | E91: 1 шт. | F91: 916.68
C92: 720037 | D92: Коробка стальная приварная для монтажа устройств управления и безопасности, например FAAC SWITCH | E92: 1 шт. | F92: 1764.9
C93: 785529 | D93: Детектор FG1 индукционный обнаружения транспорта, 1-канальный, питание ~/= 24В, крепление на DIN-рейку | E93: 1 шт. | F93: 17276.23
C94: 785527 | D94: Детектор FG2 индукционный обнаружения транспорта, 2-канальный, питание ~/= 24В, крепление на DIN-рейку | E94: 1 шт. | F94: 27428.1
C95: 720118 | D95: Корпус "L" для плат управления и принадлежностей, с замком под 3-гранный ключ, IP55, (ШxГxВ): 213x118x270мм | E95: 1 шт. | F95: 2343.95
C96: 720119 | D96: Корпус "Е" для плат управления и принадлежностей, крышка на винтах, IP55, (ШxГxВ): 204x85x265мм | E96: 1 шт. | F96: 1605.8
C97: 786040 | D97: Считыватель XTR B для брелков KEYTAG, двухпроводной BUS 2easy, в корпусе из нержавеющей стали | E97: 1 шт. | F97: 10360
C98: 786041 | D98: Считыватель XTR B для брелков KEYTAG, двухпроводной BUS 2easy | E98: 1 шт. | F98: 7089.2
C99: 401048 | D99: Брелок KEYTAG | E99: 1 шт. | F99: 271.95
C100: 401306 | D100: Брелок KEYTAG в металлическом корпусе | E100: 1 шт. | F100: 726.13
C101: 404037 | D101: Беспроводная радиокодовая клавиатура XKPW 433 МГц в корпусе из нержавеющей стали | E101: 1 шт. | F101: 12722.45
C102: 404038 | D102: Беспроводная радиокодовая клавиатура XKPW 868 МГц в корпусе из нержавеющей стали | E102: 1 шт. | F102: 12722.45
C103: 404039 | D103: Радиокодовая клавиатура XKP B, двухпроводная BUS 2easy, в корпусе из нержавеющей стали | E103: 1 шт. | F103: 10723.53
C104: 790064 | D104: Интерфейс XBR2, двухканальный, для подключения устройств управления с шиной BUS 2easy к платам управления не поддерживающих данную шину | E104: 1 шт. | F104: 2907.28 | H104: =IF(G104<>"",F104*G104*(1-F$2),"") -> 
C105: 790065 | D105: Интерфейс XBR2, четырёхканальный, для подключения устройств управления с шиной BUS 2easy к платам управления не поддерживающих данную шину | E105: 1 шт. | F105: 4543.6

Sheet Одежда FAAC
H2: Внимание! Партнерские скидки на одежду FAAC не распространяются!
C3: Код артикула | D3: Зимняя одежда FAAC | E3: Остаток | F3: Розничная цена, руб. | G3: Кол-во, шт. | H3: Ваш заказ, руб.
C6: 512453 | D6: Зимний костюм FAAC (р. 88-92/182-188) | E6: 3 | F6: 2339.22 | H6: =IF(G6<>"",F6*G6*(1-F$2),"") -> 
C7: 512470 | D7: Зимний костюм FAAC (р. 96-100/182-188) | E7: 13 | F7: 2339.22 | H7: =IF(G7<>"",F7*G7*(1-F$2),"") -> 
C8: 512461 | D8: Зимний костюм FAAC (р. 96-100/170-176) | E8: 9 | F8: 2339.22 | H8: =IF(G8<>"",F8*G8*(1-F$2),"") -> 
C9: 512444 | D9: Зимний костюм FAAC (р. 88-92/170-176) | E9: 4 | F9: 2339.22 | H9: =IF(G9<>"",F9*G9*(1-F$2),"") -> 
C10: 512480 | D10: Зимний костюм FAAC (р. 120-124/182-188) | E10: 2 | F10: 2339.22 | H10: =IF(G10<>"",F10*G10*(1-F$2),"") -> 
C11: 512433 | D11: Зимний костюм FAAC (р. 112-116/170-176) | E11: 6 | F11: 2339.22
C12: 512499 | D12: Зимний костюм FAAC (р. 104-108/182-188) | E12: 6 | F12: 2339.22
C13: 512423 | D13: Зимний костюм FAAC (р. 104-108/170-176) | E13: 7 | F13: 2339.22
C14: 512507 | D14: Зимний костюм FAAC (р. 112-116/182-188) | E14: 5 | F14: 2339.22
C15: Vest_FAAC | D15: Жилет утепленный FAAC 52-54 (рост 170-176) | E15: по запросу | F15: 1088.1
C16: Vest_FAAC | D16: Жилет утепленный FAAC 56-58 (рост 170-176) | E16: по запросу | F16: 1088.1
C17: Vest_FAAC | D17: Жилет утепленный FAAC 56-58 (рост 182-188) | E17: по запросу | F17: 1088.1
C18: Vest_FAAC | D18: Жилет утепленный FAAC 60-62 (рост 182-188) | E18: по запросу | F18: 1088.1
D19: Летняя одежда FAAC | H19: Внимание! Партнерские скидки на одежду не распространяются!
C20: 514586 | D20: Летний костюм FAAC (р. 88-92/182-188) | E20: 10 | F20: 2237.82 | H20: =IF(G20<>"",F20*G20*(1-F$2),"") -> 
C21: 514580 | D21: Летний костюм FAAC (р. 96-100/182-188) | E21: 7 | F21: 2237.82
C22: 514579 | D22: Летний костюм FAAC (р. 96-100/170-176) | E22: 21 | F22: 2237.82
C23: 514588 | D23: Летний костюм FAAC (р. 120-124/182-188) | E23: 1 | F23: 2237.82
C24: 514583 | D24: Летний костюм FAAC (р. 112-116/182-188) | E24: 15 | F24: 2237.82
C25: 514582 | D25: Летний костюм FAAC (р. 104-108/182-188) | E25: 10 | F25: 2237.82
C26: 514581 | D26: Летний костюм FAAC (р. 104-108/170-176) | E26: 6 | F26: 2237.82
C27: Vest_SS60 | D27: Жилет летний FAAC 60-62/182-188 | E27: 2 | F27: 1189.5
C28: Vest_SS48 | D28: Жилет летний FAAC 48-50/170-176 | E28: 7 | F28: 1189.5
C29: Vest_BB | D29: Бейсболка FAAC | E29: более 20 | F29: 241.02
